Service Area,Service Division,Expense Type,Expense Code,Detailed Expense Type,Payment Date,Transaction Number,Amount Exc Vat,Supplier Name
Regeneration & Economic Development,Economic Development and Housing,Cap Exp on Grants & Other Financial Assistance (REFCUS),918401,Capital grants,01-Sep-2014,2787554-RED-08-2014-056,"6,036.00",A OGILVIE BUILDING CONTRACTORS LTD.
Children and Adult Services,Childrens Services,Third Party Payments,425040,Rendered by Voluntary Organisations,01-Sep-2014,2787556-14/1506,"3,100.00",ACORN HOUSE (FOSTERING SERVICES) LTD.
Children and Adult Services,Childrens Services,Third Party Payments,425040,Rendered by Voluntary Organisations,01-Sep-2014,2787557-R31INV/00013525,"3,232.68",ACTION FOR CHILDREN.
Children and Adult Services,Education,Third Party Payments,440999,Other Third Party Payments,01-Sep-2014,2787558-INV01956,"4,032.00",ACUMEN COMMUNITY ENTERPRISE DEVELOPMENT TRUST LTD.
Regeneration & Economic Development,Economic Development and Housing,Cap Exp on Grants & Other Financial Assistance (REFCUS),918401,Capital grants,01-Sep-2014,2787560-RED-08-2014-057,"2,490.00",ALAN LEE & SON.
Regeneration & Economic Development,Spatial Policy Planning Assets & Environment,Supplies and Services,384899,Miscellaneous Expenses,01-Sep-2014,2787561-RED-09-2014-003,"10,000.00",ALLENDALE LIONS CLUB.
Children and Adult Services,Public Health,Third Party Payments,460803,Contract Payments,01-Sep-2014,2787568-FDE75/JULY/14,769.00,ASDA PHARMACY.
Children and Adult Services,Childrens Services,Third Party Payments,425040,Rendered by Voluntary Organisations,01-Sep-2014,2787572-146502188,768.78,BARNARDOS.
Children and Adult Services,Childrens Services,Third Party Payments,425040,Rendered by Voluntary Organisations,01-Sep-2014,2787572-146502192,"3,805.56",BARNARDOS.
Neighbourhood Services,Direct Services,Transport,210057,Repair and Maintenance of Vehicles,01-Sep-2014,2787573-25144773,752.24,BELL TRUCK SALES LTD.
Neighbourhood Services,Direct Services,Supplies and Services,328041,Clothing Uniforms and Laundry,01-Sep-2014,2787574-SN1780590,511.40,BERENDSEN UK LTD
Neighbourhood Services,Direct Services,Supplies and Services,304221,Equipment and Materials,01-Sep-2014,2787575-B88293,"2,111.40",BIDDLE AIR SYSTEMS LTD.
Resources,Legal & Democratic Services,Creditors,952238,Chairmans Charity,01-Sep-2014,2787588-RES-08-2014-063,"11,275.67",BUTTERWICK HOSPICE RETAIL LTD.
Neighbourhood Services,Direct Services,Transport,210057,Repair and Maintenance of Vehicles,01-Sep-2014,2787590-285412,588.32,CARRS BILLINGTON AGRICULTURE.
Neighbourhood Services,Direct Services,Stock,926004,Stock,01-Sep-2014,2787590-285414,"1,564.21",CARRS BILLINGTON AGRICULTURE.
Neighbourhood Services,Culture & Sport,Supplies and Services,338099,Services,01-Sep-2014,2787592-1AUGUST2014,500.00,CATHERINE KINSON.
Children and Adult Services,Head of Adults,Supplies and Services,384619,Miscellaneous Expenses,01-Sep-2014,2787602-3910004491,"7,023.25",CO DURHAM & DARLINGTON NHS FOUNDATION TRUST.
Children and Adult Services,Head of Adults,Supplies and Services,338370,Services,01-Sep-2014,2787602-3910004515,"47,685.00",CO DURHAM & DARLINGTON NHS FOUNDATION TRUST.
Neighbourhood Services,Technical Services,Stock,926900,Stock in hand-Inventory system,01-Sep-2014,2787605-155650,"1,109.52",COLAS LTD.
Neighbourhood Services,Culture & Sport,Income,720810,Fees and Charges,01-Sep-2014,2787608-PS23357,"4,753.33",COMPETITION LINE UK LTD.
Children and Adult Services,Childrens Services,Supplies and Services,324500,Provisions,01-Sep-2014,2787612-13048,"12,127.66",CREATIVE MANAGEMENT SERVICES LTD.
Children and Adult Services,Head of Adults,Third Party Payments,472101,Purchase of Care,01-Sep-2014,2787618-5974,"1,838.70",DCS & D LTD T/A HERITAGE HEALTHCARE.
Children and Adult Services,Head of Adults,Third Party Payments,472101,Purchase of Care,01-Sep-2014,2787618-6130,"1,589.00",DCS & D LTD T/A HERITAGE HEALTHCARE.
Neighbourhood Services,Direct Services,Supplies and Services,338099,Services,01-Sep-2014,2787619-3596,742.33,DEERNESS KENNELS.
RED HRA,HRA Capital,Construction Work,908105,Construction work,01-Sep-2014,2787621-201946,"1,177.46",DELTA ELECTRICAL & MECHANICAL SERVICES.
Regeneration & Economic Development,Economic Development and Housing,Income,710765,Other Grants and Contributions,01-Sep-2014,2787622-RED-09-2014-002,"1,235.91",DERWENTSIDE HOMES LTD.
Neighbourhood Services,Technical Services,Supplies and Services,338027,Services,01-Sep-2014,2787626-4415,"3,822.20",DUNELM GEOTECHNICAL & ENVIRONMENTAL LTD.
RED HRA,HRA Capital,Construction Work,908105,Construction work,01-Sep-2014,2787634-CERT4-1/8/14,"35,287.46",EDENDENE CONSTRUCTION SERVICES LTD.
Neighbourhood Services,Culture & Sport,Supplies and Services,384199,Miscellaneous Expenses,01-Sep-2014,2787639-K46884,"16,203.25",EVENT DURHAM.
Regeneration & Economic Development,Economic Development and Housing,Cap Exp on Grants & Other Financial Assistance (REFCUS),918401,Capital grants,01-Sep-2014,2787642-4165,"250,000.00",FIVE LAMPS ORGANISATION.
Neighbourhood Services,Technical Services,Stock,926900,Stock in hand-Inventory system,01-Sep-2014,2787644-OP/I281490,"1,055.54",FLEMING & CO (MACHINERY) LTD.
Children and Adult Services,Childrens Services,Third Party Payments,425040,Rendered by Voluntary Organisations,01-Sep-2014,2787645-3273,"3,024.12",FOSTER CARE SOLUTIONS LTD.
Children and Adult Services,Childrens Services,Third Party Payments,425040,Rendered by Voluntary Organisations,01-Sep-2014,2787646-10840,730.00,FOSTER CARES LTD.
Children and Adult Services,Childrens Services,Third Party Payments,425040,Rendered by Voluntary Organisations,01-Sep-2014,2787646-10851,820.00,FOSTER CARES LTD.
Children and Adult Services,Childrens Services,Third Party Payments,425040,Rendered by Voluntary Organisations,01-Sep-2014,2787646-10855,730.00,FOSTER CARES LTD.
Children and Adult Services,Childrens Services,Supplies and Services,364353,Grants to Voluntary Organisations,01-Sep-2014,2787647-1,690.76,FOUR HOUSING GROUP.
Children and Adult Services,Public Health,Third Party Payments,460803,Contract Payments,01-Sep-2014,2787652-FXD45/JULY/14,899.00,G WHITFIELD LTD.
Resources,Corporate Finance,Supplies and Services,372009,Subscriptions,01-Sep-2014,2787653-112003394,"146,363.00",GATESHEAD COUNCIL.
Children and Adult Services,Education,Transport,230005,Contract Hire,01-Sep-2014,2787655-1391,882.00,GEM TRAVEL.
Neighbourhood Services,Technical Services,Third Party Payments,430100,Rendered by Private Contractors,01-Sep-2014,2787661-25564,640.00,GRAB & DELIVER LTD.
Neighbourhood Services,Technical Services,Third Party Payments,430100,Rendered by Private Contractors,01-Sep-2014,2787661-25605,640.00,GRAB & DELIVER LTD.
Neighbourhood Services,Technical Services,Stock,926900,Stock in hand-Inventory system,01-Sep-2014,2787663-06/522795,713.46,GREENHAM TRADING LTD.
Resources,I.C.T. Services,Stock,926900,Stock in hand-Inventory system,01-Sep-2014,2787664-INV0155058,"3,818.33",GV MULTI MEDIA LTD.
Children and Adult Services,Childrens Services,Supplies and Services,364352,Grants to Voluntary Organisations,01-Sep-2014,2787668-HTASS001,"1,685.85",HOME GROUP LTD.
Neighbourhood Services,Direct Services,Supplies and Services,304221,Equipment and Materials,01-Sep-2014,2787669-B33/0071075,804.88,HOWDENS JOINERY LTD.
Neighbourhood Services,Direct Services,Supplies and Services,304221,Equipment and Materials,01-Sep-2014,2787669-B33/0071134,851.57,HOWDENS JOINERY LTD.
Neighbourhood Services,Technical Services,Stock,926900,Stock in hand-Inventory system,01-Sep-2014,2787671-459011,"1,794.80",INSTARMAC GROUP PLC.
RED HRA,Housing Revenue Account,Supplies and Services,338027,Services,01-Sep-2014,2787675-11222,"2,560.00",IPB COMMUNICATIONS LTD.
Neighbourhood Services,Technical Services,Supplies and Services,304221,Equipment and Materials,01-Sep-2014,2787680-08/80833,"1,258.80",JOHN DAVIDSON (PIPES) LTD.
Neighbourhood Services,Technical Services,Supplies and Services,304221,Equipment and Materials,01-Sep-2014,2787680-08/80834,"1,832.14",JOHN DAVIDSON (PIPES) LTD.
Neighbourhood Services,Technical Services,Supplies and Services,304221,Equipment and Materials,01-Sep-2014,2787680-08/80835,848.97,JOHN DAVIDSON (PIPES) LTD.
Neighbourhood Services,Technical Services,Supplies and Services,304221,Equipment and Materials,01-Sep-2014,2787680-08/80836,"1,387.84",JOHN DAVIDSON (PIPES) LTD.
Neighbourhood Services,Technical Services,Supplies and Services,304358,Equipment and Materials,01-Sep-2014,2787681-21834,935.00,JOHN R BUTTERFIELD LTD.
Neighbourhood Services,Technical Services,Supplies and Services,304358,Equipment and Materials,01-Sep-2014,2787681-21887,"1,175.50",JOHN R BUTTERFIELD LTD.
Neighbourhood Services,Technical Services,Supplies and Services,304358,Equipment and Materials,01-Sep-2014,2787681-21921,741.00,JOHN R BUTTERFIELD LTD.
Neighbourhood Services,Technical Services,Supplies and Services,304358,Equipment and Materials,01-Sep-2014,2787681-21960,767.50,JOHN R BUTTERFIELD LTD.
Neighbourhood Services,Technical Services,Supplies and Services,304358,Equipment and Materials,01-Sep-2014,2787681-21968,625.20,JOHN R BUTTERFIELD LTD.
Neighbourhood Services,Technical Services,Supplies and Services,304358,Equipment and Materials,01-Sep-2014,2787681-21969,914.20,JOHN R BUTTERFIELD LTD.
Neighbourhood Services,Technical Services,Supplies and Services,304358,Equipment and Materials,01-Sep-2014,2787681-21970,694.20,JOHN R BUTTERFIELD LTD.
Neighbourhood Services,Technical Services,Supplies and Services,304358,Equipment and Materials,01-Sep-2014,2787681-21971,929.50,JOHN R BUTTERFIELD LTD.
Neighbourhood Services,Direct Services,Supplies and Services,304221,Equipment and Materials,01-Sep-2014,2787686-CN119941/D,"3,986.63",JT DOVE LTD.
Neighbourhood Services,Direct Services,Supplies and Services,304221,Equipment and Materials,01-Sep-2014,2787686-NOI55286,"1,821.73",JT DOVE LTD.
Regeneration & Economic Development,Spatial Policy Planning Assets & Environment,Supplies and Services,384199,Miscellaneous Expenses,01-Sep-2014,2787688-473,605.00,JW BAINBRIDGE CONTRACTORS LTD.
Neighbourhood Services,Direct Services,Third Party Payments,430100,Rendered by Private Contractors,01-Sep-2014,2787692-2037,580.00,KTD NE LTD.
Regeneration & Economic Development,Economic Development and Housing,Cap Exp on Grants & Other Financial Assistance (REFCUS),918401,Capital grants,01-Sep-2014,2787693-RED-08-2014-070,"4,024.00",L & M  BUILDING SOLUTIONS LTD.
Neighbourhood Services,Technical Services,Stock,926900,Stock in hand-Inventory system,01-Sep-2014,2787697-LFP/14/1913,"1,093.50",LIFELINE FIRE PREVENTION LTD.
Children and Adult Services,Education,Construction Work,908105,Construction work,01-Sep-2014,2787703-13538,640.00,LUCION ENVIRONMENTAL LLP LTD.
Children and Adult Services,Education,Construction Work,908105,Construction work,01-Sep-2014,2787703-15009,500.00,LUCION ENVIRONMENTAL LLP LTD.
Children and Adult Services,Education,Construction Work,908105,Construction work,01-Sep-2014,2787703-15019,980.00,LUCION ENVIRONMENTAL LLP LTD.
Children and Adult Services,Education,Construction Work,908105,Construction work,01-Sep-2014,2787703-15028,940.00,LUCION ENVIRONMENTAL LLP LTD.
Children and Adult Services,Education,Construction Work,908105,Construction work,01-Sep-2014,2787703-15029,640.00,LUCION ENVIRONMENTAL LLP LTD.
Children and Adult Services,Head of Adults,Construction Work,908105,Construction work,01-Sep-2014,2787703-15012,640.00,LUCION ENVIRONMENTAL LLP LTD.
Neighbourhood Services,Culture & Sport,Construction Work,908105,Construction work,01-Sep-2014,2787703-15010,540.00,LUCION ENVIRONMENTAL LLP LTD.
Neighbourhood Services,Direct Services,Construction Work,908105,Construction work,01-Sep-2014,2787703-15015,"1,360.00",LUCION ENVIRONMENTAL LLP LTD.
Regeneration & Economic Development,Spatial Policy Planning Assets & Environment,Construction Work,908105,Construction work,01-Sep-2014,2787703-15016,"3,360.00",LUCION ENVIRONMENTAL LLP LTD.
Neighbourhood Services,Direct Services,Third Party Payments,430100,Rendered by Private Contractors,01-Sep-2014,2787704-3232,"14,158.59",LYNCH HEALTHCARE LTD.
Neighbourhood Services,Direct Services,Third Party Payments,430100,Rendered by Private Contractors,01-Sep-2014,2787712-30014,"4,494.00",MCCARRICK CONSTRUCTION CO LTD.
Regeneration & Economic Development,Transport and Contracted Services,Supplies and Services,336005,Advertising,01-Sep-2014,2787714-53138,"2,960.00",MERCHANDISE MANIA LTD.
Regeneration & Economic Development,Transport and Contracted Services,Supplies and Services,336005,Advertising,01-Sep-2014,2787714-53273,975.00,MERCHANDISE MANIA LTD.
Regeneration & Economic Development,Spatial Policy Planning Assets & Environment,Third Party Payments,440999,Other Third Party Payments,01-Sep-2014,2787715-3539,"5,491.25",MICROCOPY SYSTEMS LTD.
Resources,Legal & Democratic Services,Supplies and Services,338042,Services,01-Sep-2014,2787720,850.00,MRS ELIZABETH CALLAGHAN.
Neighbourhood Services,Technical Services,Supplies and Services,304221,Equipment and Materials,01-Sep-2014,2787721-37042,"4,625.00",NAL LTD.
Neighbourhood Services,Technical Services,Employees,040149,Recruitment Instruction and Training,01-Sep-2014,2787722-11624,"2,275.00",NATIONAL ASSOCIATION OF MEMORIAL MASONS.
Children and Adult Services,Childrens Services,Third Party Payments,425040,Rendered by Voluntary Organisations,01-Sep-2014,2787723-NFA113140,"3,232.99",NATIONAL FOSTERING AGENCY LTD.
Children and Adult Services,Childrens Services,Third Party Payments,425040,Rendered by Voluntary Organisations,01-Sep-2014,2787723-NFA113141,"3,232.99",NATIONAL FOSTERING AGENCY LTD.
Children and Adult Services,Childrens Services,Third Party Payments,425040,Rendered by Voluntary Organisations,01-Sep-2014,2787723-NFA113142,"3,100.00",NATIONAL FOSTERING AGENCY LTD.
Children and Adult Services,Childrens Services,Third Party Payments,425040,Rendered by Voluntary Organisations,01-Sep-2014,2787723-NFA113143,"3,100.00",NATIONAL FOSTERING AGENCY LTD.
Children and Adult Services,Childrens Services,Supplies and Services,384638,Miscellaneous Expenses,01-Sep-2014,2787729-0000018417,668.25,NORTH EAST AUTISM SOCIETY.
Children and Adult Services,Childrens Services,Supplies and Services,384638,Miscellaneous Expenses,01-Sep-2014,2787729-0000018420,"1,944.00",NORTH EAST AUTISM SOCIETY.
Children and Adult Services,Childrens Services,Supplies and Services,384638,Miscellaneous Expenses,01-Sep-2014,2787729-0000018441,614.25,NORTH EAST AUTISM SOCIETY.
Children and Adult Services,Childrens Services,Supplies and Services,384638,Miscellaneous Expenses,01-Sep-2014,2787729-0000018442,913.50,NORTH EAST AUTISM SOCIETY.
Children and Adult Services,Childrens Services,Supplies and Services,384638,Miscellaneous Expenses,01-Sep-2014,2787729-0000018444,"1,023.75",NORTH EAST AUTISM SOCIETY.
Children and Adult Services,Childrens Services,Supplies and Services,384638,Miscellaneous Expenses,01-Sep-2014,2787729-0000018445,551.25,NORTH EAST AUTISM SOCIETY.
Children and Adult Services,Childrens Services,Supplies and Services,384638,Miscellaneous Expenses,01-Sep-2014,2787729-0000018447,819.00,NORTH EAST AUTISM SOCIETY.
Children and Adult Services,Childrens Services,Supplies and Services,384638,Miscellaneous Expenses,01-Sep-2014,2787729-0000018450,"1,023.75",NORTH EAST AUTISM SOCIETY.
Children and Adult Services,Childrens Services,Supplies and Services,384638,Miscellaneous Expenses,01-Sep-2014,2787729-0000018452,"1,309.50",NORTH EAST AUTISM SOCIETY.
Children and Adult Services,Childrens Services,Supplies and Services,384638,Miscellaneous Expenses,01-Sep-2014,2787729-0000018468,"2,712.58",NORTH EAST AUTISM SOCIETY.
Children and Adult Services,Childrens Services,Supplies and Services,384638,Miscellaneous Expenses,01-Sep-2014,2787729-0000018469,"1,548.00",NORTH EAST AUTISM SOCIETY.
Resources,I.C.T. Services,Construction Work,908105,Construction work,01-Sep-2014,2787733-DI20192937,"2,069.00",NORTHERN POWERGRID (NORTHEAST) LTD.
Resources,Financial Services,Supplies and Services,384199,Miscellaneous Expenses,01-Sep-2014,2787734-91314245,"19,576.83",NORTHGATE INFORMATION SOLUTIONS UK LTD.
Regeneration & Economic Development,Spatial Policy Planning Assets & Environment,Income,725025,Rents,01-Sep-2014,2787740-RED-08-2014-050,"1,588.91",NPOWER.
Children and Adult Services,Head of Adults,Supplies and Services,304259,Equipment and Materials,01-Sep-2014,2787741-CN18770180,738.90,OCS GROUP UK LTD T/A CANNON HYGIENE.
RED HRA,HRA Capital,Construction Work,908105,Construction work,01-Sep-2014,2787743-969930,"2,841.60",OPENREACH LLU.
Neighbourhood Services,Technical Services,Third Party Payments,430100,Rendered by Private Contractors,01-Sep-2014,2787744-201520,"5,426.83",OWEN PUGH CONTRACTS LTD.
Children and Adult Services,Childrens Services,Supplies and Services,364999,Grants to Voluntary Organisations,01-Sep-2014,2787746-CAS-08-2014-271,"2,258.00",OXHILL YOUTH CLUB.
Neighbourhood Services,Technical Services,Stock,926900,Stock in hand-Inventory system,01-Sep-2014,2787748-XL121318,"1,105.38",PARK ELECTRICAL DISTRIBUTORS LTD.
Neighbourhood Services,Technical Services,Stock,926900,Stock in hand-Inventory system,01-Sep-2014,2787748-XL121549,"1,516.10",PARK ELECTRICAL DISTRIBUTORS LTD.
Neighbourhood Services,Technical Services,Stock,926900,Stock in hand-Inventory system,01-Sep-2014,2787748-XL121559,"1,170.68",PARK ELECTRICAL DISTRIBUTORS LTD.
Neighbourhood Services,Technical Services,Stock,926900,Stock in hand-Inventory system,01-Sep-2014,2787748-XL121576,"4,638.15",PARK ELECTRICAL DISTRIBUTORS LTD.
Neighbourhood Services,Technical Services,Stock,926900,Stock in hand-Inventory system,01-Sep-2014,2787748-XL122146,"4,085.66",PARK ELECTRICAL DISTRIBUTORS LTD.
Regeneration & Economic Development,Transport and Contracted Services,Construction Work,908105,Construction work,01-Sep-2014,2787751-RED-08-2014-052,"2,500.00",PETE PICKARD T/A RECYLCE Y BIKE LTD.
Neighbourhood Services,Direct Services,Supplies and Services,304252,Equipment and Materials,01-Sep-2014,2787756-IN3039,"3,495.00",PHOENIX PARTNERSHIP.
Resources,I.C.T. Services,Stock,926900,Stock in hand-Inventory system,01-Sep-2014,2787757-OP/I733687,"6,213.57",PHOENIX SOFTWARE LTD.
Children and Adult Services,Education,Supplies and Services,304259,Equipment and Materials,01-Sep-2014,2787760-28534,"1,161.00",PLASTIC MOULDINGS NORTHERN LTD.
Neighbourhood Services,Direct Services,Supplies and Services,304221,Equipment and Materials,01-Sep-2014,2787762-203564,515.12,PLUMBING TRADE SUPPLIES LTD.
Neighbourhood Services,Culture & Sport,Supplies and Services,384956,Miscellaneous Expenses,01-Sep-2014,2787767-4305856,"2,658.47",PRS FOR MUSIC.
Neighbourhood Services,Culture & Sport,Supplies and Services,384956,Miscellaneous Expenses,01-Sep-2014,2787767-4305858,"5,119.04",PRS FOR MUSIC.
Regeneration & Economic Development,Transport and Contracted Services,Third Party Payments,440999,Other Third Party Payments,01-Sep-2014,2787768-4314,525.00,QW SECURITY LTD.
Neighbourhood Services,Technical Services,Third Party Payments,430100,Rendered by Private Contractors,01-Sep-2014,2787769-2580/140840,"41,499.13",RAINTON CONSTRUCTION LTD.
Neighbourhood Services,Projects and Business services,Supplies and Services,304358,Equipment and Materials,01-Sep-2014,2787770-8970,"2,873.00",RD KEARTON & SONS LTD.
Neighbourhood Services,Projects and Business services,Supplies and Services,304358,Equipment and Materials,01-Sep-2014,2787770-8974,"1,275.00",RD KEARTON & SONS LTD.
Neighbourhood Services,Projects and Business services,Supplies and Services,304358,Equipment and Materials,01-Sep-2014,2787770-8983,"1,513.00",RD KEARTON & SONS LTD.
Resources,Financial Services,Supplies and Services,384999,Miscellaneous Expenses,01-Sep-2014,2787719-RED-08-2014-061,615.16,REDACTED - PAYMENT TO INDIVIDUAL
Neighbourhood Services,Direct Services,Third Party Payments,430100,Rendered by Private Contractors,01-Sep-2014,2787776-AUG01614,"1,748.64",RW CHICKEN (SCAFFOLDING) LTD.
Neighbourhood Services,Direct Services,Third Party Payments,430100,Rendered by Private Contractors,01-Sep-2014,2787776-AUG02014,845.66,RW CHICKEN (SCAFFOLDING) LTD.
Neighbourhood Services,Direct Services,Third Party Payments,430100,Rendered by Private Contractors,01-Sep-2014,2787776-AUG02114,619.04,RW CHICKEN (SCAFFOLDING) LTD.
Regeneration & Economic Development,Spatial Policy Planning Assets & Environment,Construction Work,908105,Construction work,01-Sep-2014,2787778-524651,"16,650.00",SABIEN TECHNOLOGY LTD.
Neighbourhood Services,Direct Services,Transport,230005,Contract Hire,01-Sep-2014,2787782-30681,770.00,SALFORD VAN HIRE LTD.
Children and Adult Services,Childrens Services,Supplies and Services,384871,Miscellaneous Expenses,01-Sep-2014,2787783-1828,900.00,SCARLET BAND BUS & COACH LTD.
Neighbourhood Services,Technical Services,Stock,926900,Stock in hand-Inventory system,01-Sep-2014,2787784-31838,"4,048.00",SG BAKER LTD.
RED HRA,HRA Capital,Construction Work,908105,Construction work,01-Sep-2014,2787785-76746,810.00,SGS MIS ENVIRONMENTAL LTD.
Regeneration & Economic Development,Transport and Contracted Services,Supplies and Services,342053,Computers and Communications,01-Sep-2014,2787786-M0714050,750.00,SIAS LTD.
Neighbourhood Services,Technical Services,Supplies and Services,304221,Equipment and Materials,01-Sep-2014,2787787-714517152955,"1,980.00",SIG TRADING LTD.
Resources,I.C.T. Services,Supplies and Services,342215,Computers and Communications,01-Sep-2014,2787789-INV00996109,583.97,SOFTCAT LTD.
Resources,I.C.T. Services,Vehicles Equipment Furniture and Fittings,912701,Computer equipment,01-Sep-2014,2787789-INV00997957,"2,913.68",SOFTCAT LTD.
Resources,I.C.T. Services,Supplies and Services,342033,Computers and Communications,01-Sep-2014,2787789-INV00999854,"9,500.00",SOFTCAT LTD.
Resources,Financial Services,Supplies and Services,384199,Miscellaneous Expenses,01-Sep-2014,2787796-90422790,"2,661.00",STOCKPORT MBC.
Children and Adult Services,Planning & Service Strategy,Supplies and Services,332047,Printing Stationery and Gen Off Exps,01-Sep-2014,2787797-6877746,567.00,SUPPLIES TEAM LTD.
Neighbourhood Services,Technical Services,Stock,926900,Stock in hand-Inventory system,01-Sep-2014,2787798-46/859153,"1,160.00",SUPPLY UK.
Resources,I.C.T. Services,Construction Work,908105,Construction work,01-Sep-2014,2787801-120251,815.00,SWITCHSHOP LTD.
Children and Adult Services,Childrens Services,Third Party Payments,425040,Rendered by Voluntary Organisations,01-Sep-2014,2787805-22688,"3,232.86",TEAM FOSTERING.
Children and Adult Services,Childrens Services,Third Party Payments,425040,Rendered by Voluntary Organisations,01-Sep-2014,2787805-22690,"6,111.34",TEAM FOSTERING.
Children and Adult Services,Childrens Services,Third Party Payments,425040,Rendered by Voluntary Organisations,01-Sep-2014,2787805-22713,"3,232.86",TEAM FOSTERING.
Children and Adult Services,Childrens Services,Third Party Payments,425040,Rendered by Voluntary Organisations,01-Sep-2014,2787805-22726,"2,767.86",TEAM FOSTERING.
Children and Adult Services,Education,Premises,125009,Rents,01-Sep-2014,2787810-3177,"4,813.75",THE WORK PLACE (AYCLIFFE) LTD.
Children and Adult Services,Education,Premises,125009,Rents,01-Sep-2014,2787810-3178,"1,233.30",THE WORK PLACE (AYCLIFFE) LTD.
Neighbourhood Services,Technical Services,Stock,926900,Stock in hand-Inventory system,01-Sep-2014,2787811-0037243849,"1,168.50",THOMAS & BETTS NETHERLANDS BV.
Neighbourhood Services,Technical Services,Stock,926900,Stock in hand-Inventory system,01-Sep-2014,2787812-N/IN127731,834.97,THOMAS OWEN & SONS (NEWCASTLE) LTD.
Regeneration & Economic Development,Economic Development and Housing,Cap Exp on Grants & Other Financial Assistance (REFCUS),918401,Capital grants,01-Sep-2014,2787813-RED-08-2014-055,"1,470.00",THYSSENKRUPP ENCASA A DIVISION OF THYSSENKRUPP ACCESS LTD.
Neighbourhood Services,Technical Services,Stock,926900,Stock in hand-Inventory system,01-Sep-2014,2787817-97821,548.00,TOFCO LTD.
Resources,I.C.T. Services,Stock,926900,Stock in hand-Inventory system,01-Sep-2014,2787832-2348589,"17,100.00",VIGLEN LTD.
Resources,I.C.T. Services,Stock,926900,Stock in hand-Inventory system,01-Sep-2014,2787832-2348590,"17,100.00",VIGLEN LTD.
Regeneration & Economic Development,Econ Dev and Regen Financing,Creditors,952146,Creditor-Section 106 agreement,01-Sep-2014,2787835-RED-09-2014-001,"5,400.00",WALDRIDGE PARISH COUNCIL.
Neighbourhood Services,Direct Services,Supplies and Services,304358,Equipment and Materials,01-Sep-2014,2787837-64041,520.00,WARREN ACCESS LTD.
Regeneration & Economic Development,Strategy Programmes and Performance,Supplies and Services,384899,Miscellaneous Expenses,01-Sep-2014,2787839-FEDF020/1,"1,360.00",WILLIAMSTONE.
Neighbourhood Services,Technical Services,Supplies and Services,304221,Equipment and Materials,01-Sep-2014,2787840-36479,628.73,WILLOWCRETE MFG CO LTD.
Assistant Chief Executive,Partnerships & Community Engagement Div.,Supplies and Services,384085,Miscellaneous Expenses,01-Sep-2014,2787841,"1,050.00",WISHING WELL CLUB.
RED HRA,Housing Revenue Account,Supplies and Services,342007,Computers and Communications,01-Sep-2014,2787842-DCC063,"1,475.00",WYNYARD IT & CONSULTANCY SERVICES LT.
Resources,I.C.T. Services,Supplies and Services,304303,Equipment and Materials,01-Sep-2014,2787843-V902973,"2,275.00",XMA LTD.
Resources,I.C.T. Services,Stock,926900,Stock in hand-Inventory system,01-Sep-2014,2787843-V978416,"5,355.78",XMA LTD.
Resources,I.C.T. Services,Stock,926900,Stock in hand-Inventory system,01-Sep-2014,2787843-V979014,"4,185.00",XMA LTD.
Regeneration & Economic Development,Transport and Contracted Services,Other Expenses,914001,Other capital expenses,02-Sep-2014,2788480-SI15633,"43,535.00",3M UNITED KINGDOM PLC.
Children and Adult Services,Education,Third Party Payments,440999,Other Third Party Payments,02-Sep-2014,2788481-INV01955,"1,728.00",ACUMEN COMMUNITY ENTERPRISE DEVELOPMENT TRUST LTD.
Neighbourhood Services,Technical Services,Supplies and Services,304221,Equipment and Materials,02-Sep-2014,2788483-20134381,"1,217.68",AGGREGATE INDUSTRIES UK LTD.
Neighbourhood Services,Technical Services,Supplies and Services,304221,Equipment and Materials,02-Sep-2014,2788483-20151583,"2,951.20",AGGREGATE INDUSTRIES UK LTD.
Neighbourhood Services,Technical Services,Supplies and Services,304221,Equipment and Materials,02-Sep-2014,2788486-1325/017,"8,073.04",BCE NORTHERN LTD.
Resources,Legal & Democratic Services,Premises,125009,Rents,02-Sep-2014,2788488-D14180,"3,197.34",BRADLEY HALL CHARTERED SURVEYORS CLIENT ACCOUNT.
Resources,Legal & Democratic Services,Premises,125009,Rents,02-Sep-2014,2788488-D14181,723.61,BRADLEY HALL CHARTERED SURVEYORS CLIENT ACCOUNT.
Neighbourhood Services,Direct Services,Third Party Payments,430100,Rendered by Private Contractors,02-Sep-2014,2788491-15323,"1,005.27",CATHEDRAL LOCK & SAFE SERVICES LTD.
Neighbourhood Services,Direct Services,Third Party Payments,430100,Rendered by Private Contractors,02-Sep-2014,2788491-15370,"1,375.26",CATHEDRAL LOCK & SAFE SERVICES LTD.
Neighbourhood Services,Direct Services,Third Party Payments,430100,Rendered by Private Contractors,02-Sep-2014,2788491-15383,"1,821.86",CATHEDRAL LOCK & SAFE SERVICES LTD.
Neighbourhood Services,Direct Services,Third Party Payments,430100,Rendered by Private Contractors,02-Sep-2014,2788491-15384,"1,590.10",CATHEDRAL LOCK & SAFE SERVICES LTD.
Neighbourhood Services,Direct Services,Third Party Payments,430100,Rendered by Private Contractors,02-Sep-2014,2788491-15385,"7,370.05",CATHEDRAL LOCK & SAFE SERVICES LTD.
Neighbourhood Services,Direct Services,Third Party Payments,430100,Rendered by Private Contractors,02-Sep-2014,2788491-15490,"17,348.42",CATHEDRAL LOCK & SAFE SERVICES LTD.
Resources,Centrally Administered Costs,Supplies and Services,384199,Miscellaneous Expenses,02-Sep-2014,2788493-C/BC126396,"20,541.66",CIVICA UK LTD.
Resources,Centrally Administered Costs,Third Party Payments,440999,Other Third Party Payments,02-Sep-2014,2788494,"84,000.00",CIVICA UK LTD.
Children and Adult Services,Childrens Services,Premises,145050,Cleaning and Domestic Supplies,02-Sep-2014,2788495-3910004518,"1,054.93",CO DURHAM & DARLINGTON NHS FOUNDATION TRUST.
Neighbourhood Services,Technical Services,Construction Work,908108,Capital - Surface Dressing,02-Sep-2014,2788496-10500,884.94,COUPE LINE LTD.
Neighbourhood Services,Technical Services,Construction Work,908108,Capital - Surface Dressing,02-Sep-2014,2788496-10510,"3,586.78",COUPE LINE LTD.
Neighbourhood Services,Technical Services,Construction Work,908108,Capital - Surface Dressing,02-Sep-2014,2788496-10512,"1,878.87",COUPE LINE LTD.
Neighbourhood Services,Technical Services,Construction Work,908108,Capital - Surface Dressing,02-Sep-2014,2788496-10513,"1,267.78",COUPE LINE LTD.
Neighbourhood Services,Technical Services,Construction Work,908108,Capital - Surface Dressing,02-Sep-2014,2788496-10515,"1,556.77",COUPE LINE LTD.
Neighbourhood Services,Technical Services,Construction Work,908108,Capital - Surface Dressing,02-Sep-2014,2788496-10516,757.67,COUPE LINE LTD.
Neighbourhood Services,Technical Services,Construction Work,908108,Capital - Surface Dressing,02-Sep-2014,2788496-10517,595.95,COUPE LINE LTD.
Neighbourhood Services,Technical Services,Construction Work,908108,Capital - Surface Dressing,02-Sep-2014,2788496-10518,685.09,COUPE LINE LTD.
Neighbourhood Services,Technical Services,Construction Work,908108,Capital - Surface Dressing,02-Sep-2014,2788496-10519,"2,540.76",COUPE LINE LTD.
Neighbourhood Services,Technical Services,Construction Work,908108,Capital - Surface Dressing,02-Sep-2014,2788496-10520,"14,546.84",COUPE LINE LTD.
Neighbourhood Services,Technical Services,Construction Work,908108,Capital - Surface Dressing,02-Sep-2014,2788496-10521,"1,551.01",COUPE LINE LTD.
Neighbourhood Services,Technical Services,Construction Work,908108,Capital - Surface Dressing,02-Sep-2014,2788496-10522,"1,457.39",COUPE LINE LTD.
Neighbourhood Services,Technical Services,Construction Work,908108,Capital - Surface Dressing,02-Sep-2014,2788496-10535,589.22,COUPE LINE LTD.
Neighbourhood Services,Technical Services,Construction Work,908108,Capital - Surface Dressing,02-Sep-2014,2788496-10536,"1,061.96",COUPE LINE LTD.
Neighbourhood Services,Technical Services,Construction Work,908108,Capital - Surface Dressing,02-Sep-2014,2788496-10537,"1,297.42",COUPE LINE LTD.
Neighbourhood Services,Technical Services,Construction Work,908108,Capital - Surface Dressing,02-Sep-2014,2788496-10538,"1,029.14",COUPE LINE LTD.
Neighbourhood Services,Technical Services,Construction Work,908108,Capital - Surface Dressing,02-Sep-2014,2788496-10539,"1,336.61",COUPE LINE LTD.
Neighbourhood Services,Technical Services,Construction Work,908108,Capital - Surface Dressing,02-Sep-2014,2788496-10540,590.42,COUPE LINE LTD.
Neighbourhood Services,Technical Services,Construction Work,908108,Capital - Surface Dressing,02-Sep-2014,2788496-10541,"12,098.86",COUPE LINE LTD.
Neighbourhood Services,Technical Services,Construction Work,908108,Capital - Surface Dressing,02-Sep-2014,2788496-10545,755.52,COUPE LINE LTD.
Neighbourhood Services,Technical Services,Construction Work,908108,Capital - Surface Dressing,02-Sep-2014,2788496-10547,"2,262.60",COUPE LINE LTD.
Neighbourhood Services,Technical Services,Construction Work,908108,Capital - Surface Dressing,02-Sep-2014,2788496-10548,"2,155.36",COUPE LINE LTD.
Neighbourhood Services,Technical Services,Construction Work,908108,Capital - Surface Dressing,02-Sep-2014,2788496-10549,"1,308.50",COUPE LINE LTD.
Neighbourhood Services,Technical Services,Construction Work,908108,Capital - Surface Dressing,02-Sep-2014,2788496-10551,837.09,COUPE LINE LTD.
Neighbourhood Services,Technical Services,Construction Work,908108,Capital - Surface Dressing,02-Sep-2014,2788496-10552,"2,004.69",COUPE LINE LTD.
Neighbourhood Services,Technical Services,Construction Work,908108,Capital - Surface Dressing,02-Sep-2014,2788496-10553,"4,053.27",COUPE LINE LTD.
Neighbourhood Services,Technical Services,Construction Work,908108,Capital - Surface Dressing,02-Sep-2014,2788496-10561,"4,434.58",COUPE LINE LTD.
Neighbourhood Services,Technical Services,Construction Work,908108,Capital - Surface Dressing,02-Sep-2014,2788496-10568,606.65,COUPE LINE LTD.
Neighbourhood Services,Technical Services,Construction Work,908108,Capital - Surface Dressing,02-Sep-2014,2788496-10569,"16,319.07",COUPE LINE LTD.
Neighbourhood Services,Technical Services,Construction Work,908108,Capital - Surface Dressing,02-Sep-2014,2788496-10570,"1,813.01",COUPE LINE LTD.
Neighbourhood Services,Technical Services,Construction Work,908108,Capital - Surface Dressing,02-Sep-2014,2788496-10571,"1,728.11",COUPE LINE LTD.
Neighbourhood Services,Technical Services,Construction Work,908108,Capital - Surface Dressing,02-Sep-2014,2788496-10572,"1,136.77",COUPE LINE LTD.
Neighbourhood Services,Technical Services,Construction Work,908108,Capital - Surface Dressing,02-Sep-2014,2788496-10573,"1,268.14",COUPE LINE LTD.
Neighbourhood Services,Technical Services,Construction Work,908108,Capital - Surface Dressing,02-Sep-2014,2788496-10575,941.42,COUPE LINE LTD.
Neighbourhood Services,Technical Services,Construction Work,908108,Capital - Surface Dressing,02-Sep-2014,2788496-10577,"5,340.10",COUPE LINE LTD.
Neighbourhood Services,Technical Services,Construction Work,908108,Capital - Surface Dressing,02-Sep-2014,2788496-10578,"5,923.72",COUPE LINE LTD.
Neighbourhood Services,Technical Services,Construction Work,908108,Capital - Surface Dressing,02-Sep-2014,2788496-10592,"1,273.00",COUPE LINE LTD.
Neighbourhood Services,Technical Services,Construction Work,908108,Capital - Surface Dressing,02-Sep-2014,2788496-10595,947.10,COUPE LINE LTD.
Neighbourhood Services,Technical Services,Construction Work,908108,Capital - Surface Dressing,02-Sep-2014,2788496-10600,"9,061.40",COUPE LINE LTD.
Neighbourhood Services,Technical Services,Construction Work,908108,Capital - Surface Dressing,02-Sep-2014,2788496-10601,"6,298.60",COUPE LINE LTD.
Neighbourhood Services,Technical Services,Construction Work,908108,Capital - Surface Dressing,02-Sep-2014,2788496-10602,"2,229.50",COUPE LINE LTD.
Neighbourhood Services,Technical Services,Construction Work,908108,Capital - Surface Dressing,02-Sep-2014,2788496-10603,"3,778.50",COUPE LINE LTD.
Neighbourhood Services,Technical Services,Construction Work,908108,Capital - Surface Dressing,02-Sep-2014,2788496-10627,"6,510.78",COUPE LINE LTD.
Regeneration & Economic Development,Transport and Contracted Services,Other Expenses,914001,Other capital expenses,02-Sep-2014,2788496-10654,"3,770.95",COUPE LINE LTD.
Assistant Chief Executive,Partnerships & Community Engagement Div.,Cap Exp on Grants & Other Financial Assistance (REFCUS),918004,Contributions to other bodies,02-Sep-2014,2788500,"1,503.00",EGGLESTON HOLY TRINITY PCC.
Children and Adult Services,Commissioning inc Supporting People,Debtors,930138,Debtor ISIS Residential Care Voids - CCG,02-Sep-2014,2788501-CAS-08-2014-260,"5,244.76",EMBRACE ALL LTD.
Neighbourhood Services,Direct Services,Supplies and Services,304221,Equipment and Materials,02-Sep-2014,2788503-1408-209401,603.43,FLAME HEATING SPARES LTD.
Neighbourhood Services,Technical Services,Supplies and Services,304221,Equipment and Materials,02-Sep-2014,2788504-OP/I281038,736.80,FLEMING & CO (MACHINERY) LTD.
Neighbourhood Services,Technical Services,Stock,926900,Stock in hand-Inventory system,02-Sep-2014,2788508-06/521476,"1,801.64",GREENHAM TRADING LTD.
Neighbourhood Services,Direct Services,Premises,115125,Repairs to Grounds,02-Sep-2014,2788511-0342/14,"1,755.00",H BRADLEY.
Neighbourhood Services,Projects and Business services,Third Party Payments,430119,Rendered by Private Contractors,02-Sep-2014,2788512-SIN7041150,609.94,HCS DRAIN SERVICES LTD.
Children and Adult Services,Public Health,Third Party Payments,460803,Contract Payments,02-Sep-2014,2788516-FG885/0514/NRT,635.94,INTRAHEALTH LTD.
Children and Adult Services,Public Health,Third Party Payments,460803,Contract Payments,02-Sep-2014,2788518-FJL38/MAY/14,802.16,JOHN LOW LTD T/A MOORSIDE PHARMACY.
Neighbourhood Services,Projects and Business services,Supplies and Services,304357,Equipment and Materials,02-Sep-2014,2788519-1332937,602.82,JOHN NIXON LTD.
Children and Adult Services,Head of Adults,Supplies and Services,324117,Provisions,02-Sep-2014,2788521-161282,561.34,JR HOLLAND FOOD SERVICES LTD.
Neighbourhood Services,Direct Services,Supplies and Services,304221,Equipment and Materials,02-Sep-2014,2788522-BII131386,"1,683.78",JT DOVE LTD.
Neighbourhood Services,Technical Services,Supplies and Services,304221,Equipment and Materials,02-Sep-2014,2788525-5271,"2,222.20",KEN THOMAS (SITE CLEARANCE LTD).
Neighbourhood Services,Technical Services,Supplies and Services,304221,Equipment and Materials,02-Sep-2014,2788525-5275,"3,247.80",KEN THOMAS (SITE CLEARANCE LTD).
Neighbourhood Services,Technical Services,Construction Work,908108,Capital - Surface Dressing,02-Sep-2014,2788526-14456,"62,117.12",KIELY BROS LTD.
Neighbourhood Services,Technical Services,Supplies and Services,304221,Equipment and Materials,02-Sep-2014,2788527-9031401314,945.75,LAFARGE TARMAC TRADING LTD.
Neighbourhood Services,Technical Services,Supplies and Services,304221,Equipment and Materials,02-Sep-2014,2788528-9031119706,629.45,LAFARGE TARMAC TRADING LTD.
Neighbourhood Services,Technical Services,Supplies and Services,304221,Equipment and Materials,02-Sep-2014,2788528-9031133343,735.43,LAFARGE TARMAC TRADING LTD.
Neighbourhood Services,Technical Services,Supplies and Services,304221,Equipment and Materials,02-Sep-2014,2788528-9031164332,800.01,LAFARGE TARMAC TRADING LTD.
Neighbourhood Services,Technical Services,Supplies and Services,304221,Equipment and Materials,02-Sep-2014,2788528-9031179470,548.10,LAFARGE TARMAC TRADING LTD.
Children and Adult Services,Head of Adults,Transport,230005,Contract Hire,02-Sep-2014,2788531-3038,736.00,LINCAB TAXIS.
Neighbourhood Services,Technical Services,Stock,926900,Stock in hand-Inventory system,02-Sep-2014,2788535-108714,941.76,LONDONDERRY GARAGE LTD.
Regeneration & Economic Development,Spatial Policy Planning Assets & Environment,Construction Work,908105,Construction work,02-Sep-2014,2788536-14534,"10,200.00",LUCION ENVIRONMENTAL LLP LTD.
Neighbourhood Services,Projects and Business services,Supplies and Services,304357,Equipment and Materials,02-Sep-2014,2788537-13,960.00,M & E & MR WALTON.
Children and Adult Services,Public Health,Third Party Payments,460803,Contract Payments,02-Sep-2014,2788538-FH490/05214/NRT,"1,342.25",M & M PHARMACIES LTD.
Children and Adult Services,Public Health,Third Party Payments,460803,Contract Payments,02-Sep-2014,2788539-FHV08/0514/NRT,704.04,M & M PHARMACIES LTD.
Children and Adult Services,Commissioning inc Supporting People,Debtors,930138,Debtor ISIS Residential Care Voids - CCG,02-Sep-2014,2788540-CAS-08-2014-257,897.13,MARIA MALLABAND NURSING HOMES LTD.
Regeneration & Economic Development,Spatial Policy Planning Assets & Environment,Third Party Payments,440999,Other Third Party Payments,02-Sep-2014,2788542-3540,"5,000.69",MICROCOPY SYSTEMS LTD.
Regeneration & Economic Development,Economic Development and Housing,Supplies and Services,338035,Services,02-Sep-2014,2788551-SI00005289,888.00,NCFE.
Neighbourhood Services,Direct Services,Third Party Payments,430100,Rendered by Private Contractors,02-Sep-2014,2788558-INV371,"20,000.00",PASSFM LTD.
Children and Adult Services,Public Health,Third Party Payments,460803,Contract Payments,02-Sep-2014,2788559-FCQ82/NRT/APR/14,755.04,PELTON FELL PHARMACY.
Neighbourhood Services,Direct Services,Supplies and Services,304221,Equipment and Materials,02-Sep-2014,2788563-203565,"9,527.95",PLUMBING TRADE SUPPLIES LTD.
Neighbourhood Services,Culture & Sport,Supplies and Services,384956,Miscellaneous Expenses,02-Sep-2014,2788567-4298812,"3,597.20",PRS FOR MUSIC.
Regeneration & Economic Development,Economic Development and Housing,Supplies and Services,338078,Services,02-Sep-2014,2788568-4343,"4,788.91",QW SECURITY LTD.
Neighbourhood Services,Direct Services,Supplies and Services,304357,Equipment and Materials,02-Sep-2014,2788571-8966,"1,410.00",RD KEARTON & SONS LTD.
Resources,Legal & Democratic Services,Premises,125009,Rents,02-Sep-2014,2788573-6264,859.58,RIVERGREEN DEVELOPMENTS PLC.
Children and Adult Services,Public Health,Premises,150005,Apportioned Exps of Operational Blds,02-Sep-2014,2788574-I/DURHAMPCT30745,"3,625.99",ROBERTSON FACILITIES MANAGEMENT.
Neighbourhood Services,Projects and Business services,Supplies and Services,340001,Postages,02-Sep-2014,2788575-9047862153,"1,757.66",ROYAL MAIL GROUP PLC.
Neighbourhood Services,Direct Services,Third Party Payments,430100,Rendered by Private Contractors,02-Sep-2014,2788576-JULY02614,891.76,RW CHICKEN (SCAFFOLDING) LTD.
Neighbourhood Services,Direct Services,Vehicles Equipment Furniture and Fittings,912541,Purchase-vehicles,02-Sep-2014,2788577-10022985,"9,733.83",S JENNINGS LTD.
Neighbourhood Services,Direct Services,Vehicles Equipment Furniture and Fittings,912541,Purchase-vehicles,02-Sep-2014,2788577-10022986,"9,733.83",S JENNINGS LTD.
Regeneration & Economic Development,Economic Development and Housing,Supplies and Services,338066,Services,02-Sep-2014,2788578-SSL0004,"10,000.00",SMART SPECIALISATION LTD.
Children and Adult Services,Childrens Services,Third Party Payments,425017,Rendered by Voluntary Organisations,02-Sep-2014,2788580-1150462,"1,945.00",ST CUTHBERTS CARE.
Children and Adult Services,Childrens Services,Third Party Payments,425017,Rendered by Voluntary Organisations,02-Sep-2014,2788580-1150464,"2,096.25",ST CUTHBERTS CARE.
Children and Adult Services,Childrens Services,Third Party Payments,425017,Rendered by Voluntary Organisations,02-Sep-2014,2788580-1150465,"1,762.50",ST CUTHBERTS CARE.
Neighbourhood Services,Direct Services,Supplies and Services,338099,Services,02-Sep-2014,2788584-SA016-14,518.83,STRAY AID LTD.
RED HRA,HRA Capital,Construction Work,908105,Construction work,02-Sep-2014,2788585-LTS/555/015,"2,493.58",SUNTER LTD.
Children and Adult Services,Childrens Services,Supplies and Services,342013,Computers and Communications,02-Sep-2014,2788586-6841818,506.11,SUPPLIES TEAM LTD.
Neighbourhood Services,Direct Services,Supplies and Services,304221,Equipment and Materials,02-Sep-2014,2788588-JE00631/TL/EP,"6,097.01",T MANNERS & SONS LTD.
Children and Adult Services,Head of Adults,Transport,230005,Contract Hire,02-Sep-2014,2788589-CLS041JULY,"1,100.00",TAYLOR`S TAXIS.
Resources,I.C.T. Services,Stock,926900,Stock in hand-Inventory system,02-Sep-2014,2788594-2347816,"16,250.00",VIGLEN LTD.
Neighbourhood Services,Direct Services,Third Party Payments,430100,Rendered by Private Contractors,02-Sep-2014,2788595-0000142980,"39,453.95",WARMSEAL WINDOWS (NEWCASTLE) LTD.
Neighbourhood Services,Direct Services,Premises,106080,Centrally Controlled Rep and Maint,02-Sep-2014,2788596-1838,"18,777.13",WATERMAN ENVIRONMENTAL SERVICES.
RED HRA,HRA Capital,Construction Work,908105,Construction work,02-Sep-2014,2788597-4,"45,122.48",WATES CONSTRUCTION LTD.
RED HRA,HRA Capital,Construction Work,908105,Construction work,02-Sep-2014,2788597-5,"365,836.51",WATES CONSTRUCTION LTD.
Children and Adult Services,Childrens Services,Transport,235073,Public Transport,02-Sep-2014,2788598-123,"1,870.00",WE AR CABS.
Resources,Financial Services,Supplies and Services,338066,Services,02-Sep-2014,2788601-37471,848.75,WILKS HEAD & EVE.
Resources,Financial Services,Supplies and Services,338066,Services,02-Sep-2014,2788601-37472,"1,018.50",WILKS HEAD & EVE.
Resources,Financial Services,Supplies and Services,338066,Services,02-Sep-2014,2788601-37480,533.50,WILKS HEAD & EVE.
Resources,Financial Services,Supplies and Services,338066,Services,02-Sep-2014,2788601-37482,582.00,WILKS HEAD & EVE.
Neighbourhood Services,Technical Services,Stock,926900,Stock in hand-Inventory system,02-Sep-2014,2788602-14578602,646.29,WOLSELEY UK LTD.
Regeneration & Economic Development,Economic Development and Housing,Supplies and Services,304337,Equipment and Materials,03-Sep-2014,2788608-229753E,818.26,ABACUS CARDS LTD.
Neighbourhood Services,Direct Services,Supplies and Services,304221,Equipment and Materials,03-Sep-2014,2788609-2137,"3,150.00",ABACUS PLAYGROUNDS LTD.
Neighbourhood Services,Culture & Sport,Supplies and Services,304259,Equipment and Materials,03-Sep-2014,2788610-116243765,797.50,AC ENTERTAINMENT TECHNOLOGIES.
Neighbourhood Services,Culture & Sport,Supplies and Services,304259,Equipment and Materials,03-Sep-2014,2788610-116244047,"1,091.60",AC ENTERTAINMENT TECHNOLOGIES.
Neighbourhood Services,Technical Services,Supplies and Services,304221,Equipment and Materials,03-Sep-2014,2788612-20134382,"1,142.87",AGGREGATE INDUSTRIES UK LTD.
Neighbourhood Services,Technical Services,Supplies and Services,304221,Equipment and Materials,03-Sep-2014,2788612-20151584,"1,147.00",AGGREGATE INDUSTRIES UK LTD.
Neighbourhood Services,Technical Services,Supplies and Services,304221,Equipment and Materials,03-Sep-2014,2788612-20151585,"2,280.08",AGGREGATE INDUSTRIES UK LTD.
Neighbourhood Services,Technical Services,Supplies and Services,304221,Equipment and Materials,03-Sep-2014,2788612-20151586,"1,240.00",AGGREGATE INDUSTRIES UK LTD.
Neighbourhood Services,Technical Services,Supplies and Services,304221,Equipment and Materials,03-Sep-2014,2788612-20151589,"3,752.24",AGGREGATE INDUSTRIES UK LTD.
Neighbourhood Services,Technical Services,Supplies and Services,304221,Equipment and Materials,03-Sep-2014,2788612-20151590,"1,556.20",AGGREGATE INDUSTRIES UK LTD.
Neighbourhood Services,Technical Services,Supplies and Services,304221,Equipment and Materials,03-Sep-2014,2788612-20151592,"1,104.84",AGGREGATE INDUSTRIES UK LTD.
Neighbourhood Services,Direct Services,Third Party Payments,430100,Rendered by Private Contractors,03-Sep-2014,2788614-51420,"1,936.00",AIRCON REFRIGERATION LTD.
Neighbourhood Services,Technical Services,Supplies and Services,304221,Equipment and Materials,03-Sep-2014,234222-11530,"4,800.00",ALSTON NATURAL STONE LTD.
Regeneration & Economic Development,Economic Development and Housing,Other Expenses,914001,Other capital expenses,03-Sep-2014,2788618-5,564.58,ANN GILL T/A  LILY ANN.
Children and Adult Services,Planning & Service Strategy,Supplies and Services,338089,Services,03-Sep-2014,2788620-3044,"4,165.00",APT TRAINING & CONSULTANCY LTD.
Regeneration & Economic Development,Spatial Policy Planning Assets & Environment,Supplies and Services,338099,Services,03-Sep-2014,2788622-AE08III14,800.00,ARCHAEO ENVIRONMENT LTD.
Neighbourhood Services,Technical Services,Stock,926900,Stock in hand-Inventory system,03-Sep-2014,2788623-922559878,508.47,ARCO LTD.
Neighbourhood Services,Technical Services,Stock,926900,Stock in hand-Inventory system,03-Sep-2014,2788623-922636907,"3,795.90",ARCO LTD.
Regeneration & Economic Development,Economic Development and Housing,Fees,901002,Professional fees,03-Sep-2014,2788627-14020820,"2,925.00",ATKINS GLOBAL.
Regeneration & Economic Development,Economic Development and Housing,Fees,901002,Professional fees,03-Sep-2014,2788627-14020837,"5,760.00",ATKINS GLOBAL.
Children and Adult Services,Childrens Services,Supplies and Services,364352,Grants to Voluntary Organisations,03-Sep-2014,2788629-AHS00340,686.91,AUCKLAND HOME SOLUTIONS CIC.
Children and Adult Services,Education,Construction Work,908105,Construction work,03-Sep-2014,2788630-28687,790.00,AYCLIFFE FABRICATIONS LTD.
Children and Adult Services,Childrens Services,Premises,108135,Service Repairs and Maintenance,03-Sep-2014,2788631-327509,861.42,BAY PLASTICS LTD.
Children and Adult Services,Commissioning inc Supporting People,Third Party Payments,442002,Supporting People,03-Sep-2014,2788635-1958688,"17,375.04",BID SERVICES WITH DEAF PEOPLE.
Children and Adult Services,Head of Adults,Transport,230005,Contract Hire,03-Sep-2014,2788636-06587,"3,779.84",BIRDS TAXIS.
Neighbourhood Services,Direct Services,Third Party Payments,430100,Rendered by Private Contractors,03-Sep-2014,2788638-7640,870.00,BOLTON GATE CO.
Regeneration & Economic Development,Transport and Contracted Services,Construction Work,908105,Construction work,03-Sep-2014,2788647-02174,"2,542.78",BUS SHELTERS LTD.
Regeneration & Economic Development,Transport and Contracted Services,Construction Work,908105,Construction work,03-Sep-2014,2788647-21486,"2,804.01",BUS SHELTERS LTD.
Regeneration & Economic Development,Transport and Contracted Services,Construction Work,908105,Construction work,03-Sep-2014,2788647-21631,"2,804.01",BUS SHELTERS LTD.
Regeneration & Economic Development,Transport and Contracted Services,Construction Work,908105,Construction work,03-Sep-2014,2788647-21653,"2,804.01",BUS SHELTERS LTD.
Children and Adult Services,Commissioning inc Supporting People,Supplies and Services,384540,Miscellaneous Expenses,03-Sep-2014,2788651-04/08/2014,895.00,CALCO PUBLICATIONS LLP.
Regeneration & Economic Development,Transport and Contracted Services,Supplies and Services,336005,Advertising,03-Sep-2014,2788651-115767,695.00,CALCO PUBLICATIONS LLP.
Resources,Financial Services,Supplies and Services,384199,Miscellaneous Expenses,03-Sep-2014,2788652-89185RI,"2,553.60",CAPACITYGRID.
Resources,Financial Services,Supplies and Services,384199,Miscellaneous Expenses,03-Sep-2014,2788652-89186RI,"8,504.00",CAPACITYGRID.
Neighbourhood Services,Direct Services,Third Party Payments,430100,Rendered by Private Contractors,03-Sep-2014,234226-CI-26760,"24,239.60",CASTLE CONSTRUCTION NORTH EAST LTD.
Neighbourhood Services,Direct Services,Third Party Payments,430100,Rendered by Private Contractors,03-Sep-2014,2788653-15386,"2,232.31",CATHEDRAL LOCK & SAFE SERVICES LTD.
Dedicated Schools Grant,Dedicated Schools Grant,Third Party Payments,410037,Rendered by Other Local Authorities,03-Sep-2014,234227-SEPT13-JULY14,780.00,CCC SAMUEL KINGS SCHOOL.
Children and Adult Services,Childrens Services,Employees,080025,Agency Staff,03-Sep-2014,2788655-2292381,"2,191.00",CELSIAN.
Children and Adult Services,Childrens Services,Supplies and Services,372009,Subscriptions,03-Sep-2014,2788659-3099850,"2,110.00",CIPFA BUSINESS LTD.
Neighbourhood Services,Direct Services,Premises,145009,Cleaning and Domestic Supplies,03-Sep-2014,2788661-CC94171,"1,125.00",CITY CLEAN NORTHERN LTD.
Dedicated Schools Grant,Dedicated Schools Grant,Third Party Payments,410037,Rendered by Other Local Authorities,03-Sep-2014,2788663-NV012,"1,953.00",CITY OF SUNDERLAND.
Resources,Centrally Administered Costs,Third Party Payments,440999,Other Third Party Payments,03-Sep-2014,2788664,"40,000.00",CIVICA UK LTD.
Resources,Financial Services,Supplies and Services,342051,Computers and Communications,03-Sep-2014,2788665-C/RB126673,500.00,CIVICA UK LTD.
Children and Adult Services,Education,Transport,230007,Contract Hire,03-Sep-2014,2788666-44499,"1,287.00",CJ GRIERSON.
Resources,Legal & Democratic Services,Creditors,952238,Chairmans Charity,03-Sep-2014,234228-RES-08-2014-062,"7,867.23",CO DURHAM & DARLINGTON NHS FOUNDATION TRUST.
Children and Adult Services,Education,Employees,080025,Agency Staff,03-Sep-2014,2788674-540628,"144,444.65",COMENSURA LTD.
Children and Adult Services,Education,Employees,080025,Agency Staff,03-Sep-2014,2788674-540788,"127,247.72",COMENSURA LTD.
Neighbourhood Services,Culture & Sport,Income,720810,Fees and Charges,03-Sep-2014,2788675-PS23358,"24,004.10",COMPETITION LINE UK LTD.
Neighbourhood Services,Culture & Sport,Income,720810,Fees and Charges,03-Sep-2014,2788675-PS23359,"22,225.73",COMPETITION LINE UK LTD.
Children and Adult Services,Public Health,Third Party Payments,460803,Contract Payments,03-Sep-2014,2788670-FGN07/07/14,769.00,CO-OPERATIVE PHARMACY.
Neighbourhood Services,Technical Services,Third Party Payments,430100,Rendered by Private Contractors,03-Sep-2014,2788677-15921,598.48,COUPE LINE LTD.
Neighbourhood Services,Technical Services,Third Party Payments,430100,Rendered by Private Contractors,03-Sep-2014,2788677-15922,"3,265.81",COUPE LINE LTD.
Neighbourhood Services,Technical Services,Third Party Payments,430100,Rendered by Private Contractors,03-Sep-2014,2788677-15930,626.84,COUPE LINE LTD.
Neighbourhood Services,Technical Services,Third Party Payments,430100,Rendered by Private Contractors,03-Sep-2014,2788677-15931,"5,484.26",COUPE LINE LTD.
Neighbourhood Services,Technical Services,Third Party Payments,430100,Rendered by Private Contractors,03-Sep-2014,2788677-15939,657.80,COUPE LINE LTD.
Children and Adult Services,Commissioning inc Supporting People,Third Party Payments,442002,Supporting People,03-Sep-2014,2788679-1958624,"19,868.48",CREATIVE SUPPORT LTD.
Neighbourhood Services,Technical Services,Supplies and Services,304221,Equipment and Materials,03-Sep-2014,2788687-283337,"1,073.20",DACRYLATE PAINTS LTD.
RED HRA,HRA Capital,Construction Work,908105,Construction work,03-Sep-2014,2788691-203135,"63,143.98",DEERNESS FENCING LTD.
RED HRA,HRA Capital,Construction Work,908105,Construction work,03-Sep-2014,2788692-204712,"2,015.56",DELTA ELECTRICAL & MECHANICAL SERVICES.
Assistant Chief Executive,Partnerships & Community Engagement Div.,Transfer Payments,525030,Other,03-Sep-2014,2788694,"11,028.00",DERIC YOUTH BUS PROJECT.
Neighbourhood Services,Culture & Sport,Supplies and Services,384700,Miscellaneous Expenses,03-Sep-2014,2788695,688.00,DERWENTSIDE COMMUNITY TENNIS PARTNERSHIP.
Children and Adult Services,Commissioning inc Supporting People,Third Party Payments,442002,Supporting People,03-Sep-2014,2788698-1958470,"27,885.68",DISC LTD.
Children and Adult Services,Commissioning inc Supporting People,Third Party Payments,442002,Supporting People,03-Sep-2014,2788698-1958623,"5,668.48",DISC LTD.
Dedicated Schools Grant,Dedicated Schools Grant,Income,710291,Other Grants and Contributions,03-Sep-2014,234231-20455053,"1,592.93",DONCASTER METROPOLITAN COUNCIL.
Neighbourhood Services,Technical Services,Supplies and Services,338027,Services,03-Sep-2014,2788702-4515,"1,470.00",DUNELM GEOTECHNICAL & ENVIRONMENTAL LTD.
Children and Adult Services,Commissioning inc Supporting People,Third Party Payments,441001,Supporting People,03-Sep-2014,2788703-1958430,"20,819.76",DURHAM ACTION ON SINGLE HOUSING.
Children and Adult Services,Commissioning inc Supporting People,Third Party Payments,443001,Supporting People,03-Sep-2014,2788703-1958647,"3,689.80",DURHAM ACTION ON SINGLE HOUSING.
Children and Adult Services,Commissioning inc Supporting People,Third Party Payments,443001,Supporting People,03-Sep-2014,2788703-1958652,737.96,DURHAM ACTION ON SINGLE HOUSING.
Children and Adult Services,Head of Adults,Cap Exp on Grants & Other Financial Assistance (REFCUS),918401,Capital grants,03-Sep-2014,2788707-CAS-08-2014-247,"1,182.14",EAST DURHAM COMMUNITY DEVELOPMENT TRUST LTD.
Children and Adult Services,Commissioning inc Supporting People,Third Party Payments,441001,Supporting People,03-Sep-2014,2788708-1958483,"5,483.40",EAST DURHAM COMMUNITY INITIATIVES LTD.
RED HRA,HRA Capital,Construction Work,908105,Construction work,03-Sep-2014,2788715-118352,"9,646.12",ESH CONSTRUCTION LTD FORMERLY LUMSDEN & CARROLL CONSTRUCTION LTD.
RED HRA,HRA Capital,Construction Work,908105,Construction work,03-Sep-2014,2788715-B50373/11,"6,675.23",ESH CONSTRUCTION LTD FORMERLY LUMSDEN & CARROLL CONSTRUCTION LTD.
RED HRA,HRA Capital,Construction Work,908105,Construction work,03-Sep-2014,2788715-B50374/9,"28,788.24",ESH CONSTRUCTION LTD FORMERLY LUMSDEN & CARROLL CONSTRUCTION LTD.
RED HRA,HRA Capital,Construction Work,908105,Construction work,03-Sep-2014,2788715-B50375/9,"107,242.08",ESH CONSTRUCTION LTD FORMERLY LUMSDEN & CARROLL CONSTRUCTION LTD.
RED HRA,HRA Capital,Construction Work,908105,Construction work,03-Sep-2014,2788715-B50376/7,"117,132.78",ESH CONSTRUCTION LTD FORMERLY LUMSDEN & CARROLL CONSTRUCTION LTD.
RED HRA,HRA Capital,Construction Work,908105,Construction work,03-Sep-2014,2788715-B50379/5,"67,226.39",ESH CONSTRUCTION LTD FORMERLY LUMSDEN & CARROLL CONSTRUCTION LTD.
RED HRA,HRA Capital,Construction Work,908105,Construction work,03-Sep-2014,2788715-B50380/4,"216,240.82",ESH CONSTRUCTION LTD FORMERLY LUMSDEN & CARROLL CONSTRUCTION LTD.
RED HRA,HRA Capital,Construction Work,908105,Construction work,03-Sep-2014,2788715-B50395/6,"31,887.28",ESH CONSTRUCTION LTD FORMERLY LUMSDEN & CARROLL CONSTRUCTION LTD.
Children and Adult Services,Commissioning inc Supporting People,Third Party Payments,442002,Supporting People,03-Sep-2014,2788717-1958621,"9,851.44",FABRICK HOUSING GROUP LTD.
Children and Adult Services,Commissioning inc Supporting People,Third Party Payments,441001,Supporting People,03-Sep-2014,2788717-1958656,"26,571.84",FABRICK HOUSING GROUP LTD.
Children and Adult Services,Education,Supplies and Services,338094,Services,03-Sep-2014,2788719-624,"1,400.00",FERRYHILL LADDER CENTRE LTD.
Children and Adult Services,Education,Supplies and Services,338099,Services,03-Sep-2014,2788720-542,"17,410.00",FIRST IN TRAINING LTD.
Neighbourhood Services,Technical Services,Stock,926900,Stock in hand-Inventory system,03-Sep-2014,2788723-OP/I281735,"2,000.60",FLEMING & CO (MACHINERY) LTD.
Children and Adult Services,Commissioning inc Supporting People,Third Party Payments,442002,Supporting People,03-Sep-2014,2788724-1958625,"30,071.20",FOUNDATION HOUSING.
Resources,Corporate Finance,Supplies and Services,372009,Subscriptions,03-Sep-2014,2788725-30013218,"2,350.00",FRC PREPARERS LEVY.
Children and Adult Services,Public Health,Third Party Payments,460803,Contract Payments,03-Sep-2014,2788656-FRW33/JUL/2014,682.00,GILL & SCHOFIELD PHARMACEUTICAL CHEMISTS LTD.
Neighbourhood Services,Technical Services,Supplies and Services,338027,Services,03-Sep-2014,2788730-BGPP0125/045,"1,680.00",GLEEDS ADVISORY LTD.
Children and Adult Services,Commissioning inc Supporting People,Third Party Payments,442002,Supporting People,03-Sep-2014,2788737-1958655,"5,995.44",HANOVER HOUSING ASSOCIATION.
Children and Adult Services,Commissioning inc Supporting People,Third Party Payments,441001,Supporting People,03-Sep-2014,2788738-1958626,"8,938.68",HARBOUR SUPPORT SERVICES.
Neighbourhood Services,Technical Services,Premises,120037,Energy Costs,03-Sep-2014,2788739-694372,"1,219.00",HARVEST ENERGY LTD.
Neighbourhood Services,Projects and Business services,Third Party Payments,430119,Rendered by Private Contractors,03-Sep-2014,2788740-SIN7041162,"6,257.92",HCS DRAIN SERVICES LTD.
Children and Adult Services,Commissioning inc Supporting People,Third Party Payments,443001,Supporting People,03-Sep-2014,2788748-1958516,970.96,HOME HOUSING ASSOCIATION LTD.
Children and Adult Services,Commissioning inc Supporting People,Third Party Payments,443001,Supporting People,03-Sep-2014,2788748-1958528,804.00,HOME HOUSING ASSOCIATION LTD.
Neighbourhood Services,Direct Services,Supplies and Services,304221,Equipment and Materials,03-Sep-2014,2788753-B33/0071403,861.53,HOWDENS JOINERY LTD.
Neighbourhood Services,Technical Services,Employees,040149,Recruitment Instruction and Training,03-Sep-2014,2788754-1284,600.00,HSF TRAINING LTD.
Resources,I.C.T. Services,Supplies and Services,304303,Equipment and Materials,03-Sep-2014,2788757-1984942,812.94,INSIGHT DIRECT (UK) LTD.
Neighbourhood Services,Technical Services,Stock,926900,Stock in hand-Inventory system,03-Sep-2014,2788758-460108,"2,307.20",INSTARMAC GROUP PLC.
Children and Adult Services,Childrens Services,Third Party Payments,440061,Other Third Party Payments,03-Sep-2014,2788759-INV-0180,"6,570.72",INTERACT CARE LTD.
Children and Adult Services,Education,Transport,230008,Contract Hire,03-Sep-2014,2788762-568,644.00,JDS PRIVATE HIRE DURHAM.
Children and Adult Services,Childrens Services,Supplies and Services,338094,Services,03-Sep-2014,2788771-1276,720.00,JUBILEE FIELDS COMMUNITY ASSOCIATION.
Children and Adult Services,Education,Transport,230007,Contract Hire,03-Sep-2014,2788779-20323,"2,614.50",LEE`S COACHES LTD.
Children and Adult Services,Commissioning inc Supporting People,Third Party Payments,479101,Purchase of Care,03-Sep-2014,2788780-SI-002348,"4,000.00",LEISUREWORKS.
Children and Adult Services,Public Health,Third Party Payments,460803,Contract Payments,03-Sep-2014,2788786-FHM85JULY2014,862.00,LLOYDS PHARMACY.
Children and Adult Services,Public Health,Third Party Payments,460803,Contract Payments,03-Sep-2014,2788787-6663CA071401,829.00,LLOYDS PHARMACY.
Children and Adult Services,Public Health,Third Party Payments,460803,Contract Payments,03-Sep-2014,2788788-FXL31/014/JULY,"1,004.00",LLOYDS PHARMACY.
Neighbourhood Services,Direct Services,Premises,108135,Service Repairs and Maintenance,03-Sep-2014,2788793-40425,"1,896.00",MARIAN DOORS & SHUTTERS.
Children and Adult Services,Commissioning inc Supporting People,Third Party Payments,442002,Supporting People,03-Sep-2014,2788797-1958638,"5,469.72",MENTAL HEALTH MATTERS.
Neighbourhood Services,Technical Services,Supplies and Services,384110,Miscellaneous Expenses,03-Sep-2014,2788799-M11684437,"1,079.99",MISCO.
Regeneration & Economic Development,Economic Development and Housing,Supplies and Services,384700,Miscellaneous Expenses,03-Sep-2014,2788802-RED-09-2014-015,"1,500.00",MONK HESLEDEN PARISH COUNCIL.
Children and Adult Services,Commissioning inc Supporting People,Third Party Payments,442002,Supporting People,03-Sep-2014,2788803-1958587,"5,240.36",MOVING ON.
Neighbourhood Services,Direct Services,Supplies and Services,384199,Miscellaneous Expenses,03-Sep-2014,234257-214902,"1,000.00",MR JAMES MARWICK.
Neighbourhood Services,Culture & Sport,Supplies and Services,384700,Miscellaneous Expenses,03-Sep-2014,2788814,734.00,NATIONAL TRUST.
Neighbourhood Services,Technical Services,Supplies and Services,336005,Advertising,03-Sep-2014,2788818-5652138,746.48,NEWSQUEST (YORKSHIRE & NORTH EAST) LTD.
Children and Adult Services,Education,Third Party Payments,440999,Other Third Party Payments,03-Sep-2014,2788821-3-27/7/14,"7,165.35",NIGEL BROUGH T/A BESPOKE TRAINING SOLUTIONS LTD.
Children and Adult Services,Childrens Services,Supplies and Services,364352,Grants to Voluntary Organisations,03-Sep-2014,2788822-31/HC/14,923.75,NORCARE LTD.
Children and Adult Services,Childrens Services,Supplies and Services,364352,Grants to Voluntary Organisations,03-Sep-2014,2788822-40/HC/14,923.75,NORCARE LTD.
Children and Adult Services,Commissioning inc Supporting People,Third Party Payments,441001,Supporting People,03-Sep-2014,2788822-1958475,"7,791.04",NORCARE LTD.
Children and Adult Services,Commissioning inc Supporting People,Third Party Payments,441001,Supporting People,03-Sep-2014,2788822-1958515,"10,205.64",NORCARE LTD.
Children and Adult Services,Commissioning inc Supporting People,Third Party Payments,442002,Supporting People,03-Sep-2014,2788822-1958641,"1,800.52",NORCARE LTD.
Children and Adult Services,Childrens Services,Transfer Payments,525065,Other,03-Sep-2014,2788823-CAS-08-2014-317,"326,776.40",NORTH DURHAM ACADEMY.
Children and Adult Services,Head of Adults,Third Party Payments,473101,Purchase of Care,03-Sep-2014,2788824-0000016233,971.04,NORTH EAST AUTISM SOCIETY.
Children and Adult Services,Head of Adults,Third Party Payments,440080,Other Third Party Payments,03-Sep-2014,2788824-0000018395,"28,627.46",NORTH EAST AUTISM SOCIETY.
Neighbourhood Services,Technical Services,Supplies and Services,304221,Equipment and Materials,03-Sep-2014,2788825-001501,"1,102.96",NORTH EAST CONCRETE LTD.
Neighbourhood Services,Technical Services,Supplies and Services,338066,Services,03-Sep-2014,234299-A129605,"22,175.45",OPENREACH LLU.
Regeneration & Economic Development,Spatial Policy Planning Assets & Environment,Supplies and Services,342051,Computers and Communications,03-Sep-2014,2788831-1452957,"16,235.42",ORACLE CORPORATION UK LTD.
Resources,Corporate Finance,Supplies and Services,384199,Miscellaneous Expenses,03-Sep-2014,2788831-1434990,"30,180.83",ORACLE CORPORATION UK LTD.
Neighbourhood Services,Technical Services,Supplies and Services,304221,Equipment and Materials,03-Sep-2014,2788832-201518,"5,030.80",OWEN PUGH CONTRACTS LTD.
Neighbourhood Services,Direct Services,Supplies and Services,304221,Equipment and Materials,03-Sep-2014,2788833-XL119056,566.22,PARK ELECTRICAL DISTRIBUTORS LTD.
Neighbourhood Services,Direct Services,Supplies and Services,304221,Equipment and Materials,03-Sep-2014,2788833-XL120140,"2,733.16",PARK ELECTRICAL DISTRIBUTORS LTD.
Neighbourhood Services,Direct Services,Supplies and Services,304221,Equipment and Materials,03-Sep-2014,2788833-XL120478,"1,076.38",PARK ELECTRICAL DISTRIBUTORS LTD.
Neighbourhood Services,Direct Services,Supplies and Services,304221,Equipment and Materials,03-Sep-2014,2788833-XL120570,527.00,PARK ELECTRICAL DISTRIBUTORS LTD.
Resources,I.C.T. Services,Supplies and Services,342033,Computers and Communications,03-Sep-2014,2788835-OP/I732632,"4,812.17",PHOENIX SOFTWARE LTD.
Neighbourhood Services,Culture & Sport,Supplies and Services,384700,Miscellaneous Expenses,03-Sep-2014,2788838-007922,"4,156.50",PLATINUM PHYSIOTHERAPY & PERSONAL TRAINING.
Neighbourhood Services,Direct Services,Supplies and Services,304221,Equipment and Materials,03-Sep-2014,2788840-4120168349,"11,288.27",PLUMBING TRADE SUPPLIES LTD.
Neighbourhood Services,Direct Services,Third Party Payments,430100,Rendered by Private Contractors,03-Sep-2014,2788842-900673675,"2,513.33",PORTAKABIN LTD.
Children and Adult Services,Planning & Service Strategy,Supplies and Services,338089,Services,03-Sep-2014,2788845-184,"1,008.50",PRICE TRAINING LTD.
Children and Adult Services,Planning & Service Strategy,Supplies and Services,338089,Services,03-Sep-2014,2788845-192,"1,014.45",PRICE TRAINING LTD.
Children and Adult Services,Planning & Service Strategy,Supplies and Services,338089,Services,03-Sep-2014,2788845-219,"1,027.61",PRICE TRAINING LTD.
Neighbourhood Services,Technical Services,Third Party Payments,430100,Rendered by Private Contractors,03-Sep-2014,2788848-69250,550.00,PROTECTOR SECURITY GROUP LTD.
Resources,I.C.T. Services,Supplies and Services,304040,Equipment and Materials,03-Sep-2014,2788849-6089912,"1,900.00",PUBLIC HEALTH ENGLAND (PHE).
Children and Adult Services,Public Health,Premises,145009,Cleaning and Domestic Supplies,03-Sep-2014,234301-14619,531.25,QUALITY CLEANING SERVICES (NORTHERN) LTD.
Neighbourhood Services,Direct Services,Third Party Payments,430100,Rendered by Private Contractors,03-Sep-2014,2788851-24789,"1,351.90",R PARKER WALL & FLOOR TILING CONTRACTOR.
Neighbourhood Services,Direct Services,Supplies and Services,304358,Equipment and Materials,03-Sep-2014,2788853-8929,"1,038.00",RD KEARTON & SONS LTD.
Neighbourhood Services,Direct Services,Supplies and Services,304358,Equipment and Materials,03-Sep-2014,2788853-8941,780.00,RD KEARTON & SONS LTD.
Children and Adult Services,Childrens Services,Supplies and Services,364353,Grants to Voluntary Organisations,03-Sep-2014,2788897-CAS-08-2014-294,"8,000.00",REDACTED - PAYMENT TO INDIVIDUAL
Neighbourhood Services,Direct Services,Supplies and Services,338045,Services,03-Sep-2014,234259,625.00,REDACTED - PAYMENT TO INDIVIDUAL
RED HRA,HRA Capital,Construction Work,908105,Construction work,03-Sep-2014,234279-RED-08-2014-058,"1,750.00",REDACTED - PAYMENT TO INDIVIDUAL
RED HRA,HRA Centrally Managed,Supplies and Services,384999,Miscellaneous Expenses,03-Sep-2014,234254-1018058,862.01,REDACTED - PAYMENT TO INDIVIDUAL
RED HRA,HRA Centrally Managed,Supplies and Services,384999,Miscellaneous Expenses,03-Sep-2014,234264-RENTREFUND,749.32,REDACTED - PAYMENT TO INDIVIDUAL
RED HRA,HRA Centrally Managed,Supplies and Services,384999,Miscellaneous Expenses,03-Sep-2014,234288-RENTREFUND,800.00,REDACTED - PAYMENT TO INDIVIDUAL
RED HRA,HRA Centrally Managed,Supplies and Services,384999,Miscellaneous Expenses,03-Sep-2014,234293-RENTREFUND,"1,047.12",REDACTED - PAYMENT TO INDIVIDUAL
Resources,Human Resources,Supplies and Services,338066,Services,03-Sep-2014,234265-248960,"1,000.00",REDACTED - PAYMENT TO INDIVIDUAL
Children and Adult Services,Commissioning inc Supporting People,Third Party Payments,442002,Supporting People,03-Sep-2014,2788854-1958643,"7,356.72",RICHMOND FELLOWSHIP.
Children and Adult Services,Commissioning inc Supporting People,Third Party Payments,441001,Supporting People,03-Sep-2014,2788854-1958645,"9,423.88",RICHMOND FELLOWSHIP.
Children and Adult Services,Head of Adults,Supplies and Services,338365,Services,03-Sep-2014,2788865-194801,518.94,SARABEC LTD.
Children and Adult Services,Commissioning inc Supporting People,Third Party Payments,442002,Supporting People,03-Sep-2014,2788870-1958639,"9,044.36",SHAID.
Resources,I.C.T. Services,Supplies and Services,342033,Computers and Communications,03-Sep-2014,2788872-INV00991026,"2,485.98",SOFTCAT LTD.
Neighbourhood Services,Direct Services,Third Party Payments,430100,Rendered by Private Contractors,03-Sep-2014,2788873-4381,"4,950.00",ST ASTIER LTD.
Neighbourhood Services,Direct Services,Supplies and Services,304221,Equipment and Materials,03-Sep-2014,2788876-R050013431,"2,600.00",STANNAH LIFT SERVICE LTD.
Children and Adult Services,Education,Transport,230007,Contract Hire,03-Sep-2014,2788877-251,"1,344.00",STEPHEN MAUDE LTD T/A MAUDES COACHES.
Children and Adult Services,Education,Transport,230007,Contract Hire,03-Sep-2014,2788877-252,812.00,STEPHEN MAUDE LTD T/A MAUDES COACHES.
Children and Adult Services,Childrens Services,Supplies and Services,364352,Grants to Voluntary Organisations,03-Sep-2014,2788879-HTASS002,"3,653.22",STONHAM HOUSING ASSOCIATION LTD.
Children and Adult Services,Commissioning inc Supporting People,Third Party Payments,442002,Supporting People,03-Sep-2014,2788880-1958474,"145,778.32",STONHAM HOUSING ASSOCIATION LTD.
Children and Adult Services,Commissioning inc Supporting People,Third Party Payments,442002,Supporting People,03-Sep-2014,2788880-1958567,"32,872.00",STONHAM HOUSING ASSOCIATION LTD.
Children and Adult Services,Commissioning inc Supporting People,Third Party Payments,441001,Supporting People,03-Sep-2014,2788880-1958588,"71,243.52",STONHAM HOUSING ASSOCIATION LTD.
Children and Adult Services,Commissioning inc Supporting People,Third Party Payments,443001,Supporting People,03-Sep-2014,2788880-1958627,"22,897.93",STONHAM HOUSING ASSOCIATION LTD.
Children and Adult Services,Commissioning inc Supporting People,Third Party Payments,442002,Supporting People,03-Sep-2014,2788880-1958642,"29,343.52",STONHAM HOUSING ASSOCIATION LTD.
Children and Adult Services,Commissioning inc Supporting People,Third Party Payments,443001,Supporting People,03-Sep-2014,2788880-1958679,"10,384.53",STONHAM HOUSING ASSOCIATION LTD.
Neighbourhood Services,Direct Services,Third Party Payments,430100,Rendered by Private Contractors,03-Sep-2014,2788881-0001030676,525.00,STROMA CERTIFICATION LTD.
Children and Adult Services,Planning & Service Strategy,Supplies and Services,332047,Printing Stationery and Gen Off Exps,03-Sep-2014,2788883-6898046,"1,134.00",SUPPLIES TEAM LTD.
Neighbourhood Services,Technical Services,Stock,926900,Stock in hand-Inventory system,03-Sep-2014,2788884-46/861187,825.00,SUPPLY UK.
Neighbourhood Services,Technical Services,Stock,926900,Stock in hand-Inventory system,03-Sep-2014,2788884-46/861189,"1,760.00",SUPPLY UK.
Neighbourhood Services,Direct Services,Supplies and Services,304221,Equipment and Materials,03-Sep-2014,2788885-1257448,"3,497.85",T CROSSLING & CO LTD.
Neighbourhood Services,Direct Services,Supplies and Services,304221,Equipment and Materials,03-Sep-2014,2788885-1258776,538.00,T CROSSLING & CO LTD.
Neighbourhood Services,Direct Services,Supplies and Services,304221,Equipment and Materials,03-Sep-2014,2788885-1265548,933.30,T CROSSLING & CO LTD.
Neighbourhood Services,Direct Services,Supplies and Services,304221,Equipment and Materials,03-Sep-2014,2788885-1270650,"1,006.98",T CROSSLING & CO LTD.
Neighbourhood Services,Direct Services,Supplies and Services,304221,Equipment and Materials,03-Sep-2014,2788885-1271398,770.25,T CROSSLING & CO LTD.
Neighbourhood Services,Direct Services,Supplies and Services,304221,Equipment and Materials,03-Sep-2014,2788885-262067,"2,136.00",T CROSSLING & CO LTD.
Regeneration & Economic Development,Economic Development and Housing,Supplies and Services,384700,Miscellaneous Expenses,03-Sep-2014,2788887-RED-09-2014-014,"1,000.00",TANFIELD GROUNDWORKS LTD
Children and Adult Services,Education,Supplies and Services,324500,Provisions,03-Sep-2014,2788888-SI-TSD-1000507,"2,668,491.05",TAYLOR SHAW LTD.
Children and Adult Services,Childrens Services,Third Party Payments,425040,Rendered by Voluntary Organisations,03-Sep-2014,2788890-22739,"3,232.86",TEAM FOSTERING.
Children and Adult Services,Childrens Services,Third Party Payments,425040,Rendered by Voluntary Organisations,03-Sep-2014,2788890-22747,"3,232.68",TEAM FOSTERING.
Regeneration & Economic Development,Transport and Contracted Services,Supplies and Services,352001,Conference Expenses,03-Sep-2014,2788892-95167,900.00,TELECARE SERVICES ASSOCIATION.
Children and Adult Services,Education,Employees,040001,Recruitment Instruction and Training,03-Sep-2014,2788893-TARINV/15316860,652.50,TES GLOBAL LTD.
Children and Adult Services,Education,Employees,040001,Recruitment Instruction and Training,03-Sep-2014,2788893-TARINV/15316866,652.50,TES GLOBAL LTD.
Children and Adult Services,Commissioning inc Supporting People,Third Party Payments,441001,Supporting People,03-Sep-2014,2788894-1958618,"19,231.20",THE CYRENIANS LTD.
Neighbourhood Services,Direct Services,Premises,145015,Cleaning and Domestic Supplies,03-Sep-2014,2788898-N/IN128404,"3,286.35",THOMAS OWEN & SONS (NEWCASTLE) LTD.
Children and Adult Services,Commissioning inc Supporting People,Third Party Payments,441001,Supporting People,03-Sep-2014,2788900-1958614,"9,402.72",THREE RIVERS HOUSING ASSOCIATION LTD.
Children and Adult Services,Commissioning inc Supporting People,Third Party Payments,442002,Supporting People,03-Sep-2014,2788900-1958646,"36,446.00",THREE RIVERS HOUSING ASSOCIATION LTD.
Children and Adult Services,Commissioning inc Supporting People,Third Party Payments,442002,Supporting People,03-Sep-2014,2788900-1958659,"3,449.96",THREE RIVERS HOUSING ASSOCIATION LTD.
Regeneration & Economic Development,Economic Development and Housing,Cap Exp on Grants & Other Financial Assistance (REFCUS),918401,Capital grants,03-Sep-2014,2788901-RED-08-2014-080,"5,197.61",THYSSENKRUPP ENCASA A DIVISION OF THYSSENKRUPP ACCESS LTD.
Regeneration & Economic Development,Economic Development and Housing,Cap Exp on Grants & Other Financial Assistance (REFCUS),918401,Capital grants,03-Sep-2014,2788901-RED-08-2014-081,"3,915.00",THYSSENKRUPP ENCASA A DIVISION OF THYSSENKRUPP ACCESS LTD.
Regeneration & Economic Development,Economic Development and Housing,Cap Exp on Grants & Other Financial Assistance (REFCUS),918401,Capital grants,03-Sep-2014,2788901-RED-08-2014-082,"11,566.00",THYSSENKRUPP ENCASA A DIVISION OF THYSSENKRUPP ACCESS LTD.
Children and Adult Services,Education,Third Party Payments,440999,Other Third Party Payments,03-Sep-2014,2788902-2838,"15,610.00",TIN ARTS.
Children and Adult Services,Education,Third Party Payments,440999,Other Third Party Payments,03-Sep-2014,2788902-2839,"3,940.00",TIN ARTS.
Neighbourhood Services,Technical Services,Stock,926900,Stock in hand-Inventory system,03-Sep-2014,2788903-100141,632.08,TOMMY WARDLE.
Neighbourhood Services,Direct Services,Supplies and Services,304221,Equipment and Materials,03-Sep-2014,2788903-10024,972.00,TOMMY WARDLE.
Children and Adult Services,Childrens Services,Transport,235073,Public Transport,03-Sep-2014,2788904,812.00,TONYS TAXIS (A BIRCH).
Dedicated Schools Grant,Dedicated Schools Grant,Transport,230010,Contract Hire,03-Sep-2014,2788905-TS14-22,"1,400.00",TOP STAR TRAVEL.
Neighbourhood Services,Culture & Sport,Supplies and Services,338047,Services,03-Sep-2014,2788908-GB14B0075634,980.63,TWENTIETH CENTURY FOX FILM CO LTD.
Neighbourhood Services,Direct Services,Supplies and Services,304221,Equipment and Materials,03-Sep-2014,2788910-20379,"1,840.00",UK CONTAINER MAINTENANCE LTD.
Neighbourhood Services,AAP - Area Action Partnerships,Construction Work,908105,Construction work,03-Sep-2014,2788911-085677,985.00,UNIPART DORMAN.
Resources,I.C.T. Services,Debtors,930174,MFD - Paper Holdings,03-Sep-2014,2788912,"11,636.98",UNITED CARLTON OFFICE SYSTEMS LTD.
Regeneration & Economic Development,Spatial Policy Planning Assets & Environment,Supplies and Services,384899,Miscellaneous Expenses,03-Sep-2014,2788913-RED-09-2014-028,"13,833.33",UNIVERSITY OF LEEDS.
Neighbourhood Services,Direct Services,Premises,106080,Centrally Controlled Rep and Maint,03-Sep-2014,234313-87,616.00,VENTILATION HYGIENE SPECIALISTS (VHS) LTD.
Neighbourhood Services,EnvironmentHealth & Consumer Protection,Supplies and Services,332047,Printing Stationery and Gen Off Exps,03-Sep-2014,234314-5194,"2,496.14",VIP SYSTEM LTD.
Children and Adult Services,Public Health,Third Party Payments,460803,Contract Payments,03-Sep-2014,2788916-FML95/0514/NRT,637.89,W SMITH (DURHAM) LTD.
Children and Adult Services,Commissioning inc Supporting People,Third Party Payments,441001,Supporting People,03-Sep-2014,2788917-1958592,"1,183.60",WADDINGTON STREET CENTRE LTD.
Children and Adult Services,Commissioning inc Supporting People,Third Party Payments,441001,Supporting People,03-Sep-2014,2788918-1958640,"7,157.00",WEAR VALLEY WOMENS AID.
RED HRA,HRA Capital,Construction Work,908105,Construction work,03-Sep-2014,2788921-315708,780.69,WERNICK HIRE LTD.
Children and Adult Services,Childrens Services,Premises,125009,Rents,03-Sep-2014,2788923-302663,612.00,WHITTLE JONES (GROUP) LTD.
Children and Adult Services,Commissioning inc Supporting People,Supplies and Services,384700,Miscellaneous Expenses,03-Sep-2014,234317-CAS-08-2014-238,500.00,WILLINGTON LUNCHEON CLUB.
Neighbourhood Services,Direct Services,Supplies and Services,304221,Equipment and Materials,03-Sep-2014,2788926-14455139,"1,201.74",WOLSELEY UK LTD.
Resources,I.C.T. Services,Supplies and Services,304259,Equipment and Materials,03-Sep-2014,2788928-900123339,"103,095.79",XEROX FINANCE LTD.
Resources,I.C.T. Services,Supplies and Services,304303,Equipment and Materials,03-Sep-2014,2788929-W035201,"1,062.99",XMA LTD.
Neighbourhood Services,Projects and Business services,Third Party Payments,430115,Rendered by Private Contractors,04-Sep-2014,2788936-0031,"17,141.58",A WILLEY T/A GREENTECH RECYCLING.
Children and Adult Services,Education,Transport,230008,Contract Hire,04-Sep-2014,2788942-128-NO22,624.00,ACE TAXIS..
Neighbourhood Services,Technical Services,Employees,080025,Agency Staff,04-Sep-2014,2788944-28198462,"8,369.24",AECOM LTD.
Neighbourhood Services,Technical Services,Supplies and Services,304221,Equipment and Materials,04-Sep-2014,2788945-19604905,"1,403.97",AGGREGATE INDUSTRIES UK LTD.
Neighbourhood Services,Technical Services,Supplies and Services,304221,Equipment and Materials,04-Sep-2014,2788945-19688876,788.96,AGGREGATE INDUSTRIES UK LTD.
Neighbourhood Services,Technical Services,Supplies and Services,304221,Equipment and Materials,04-Sep-2014,2788945-19729070,860.16,AGGREGATE INDUSTRIES UK LTD.
Neighbourhood Services,Technical Services,Supplies and Services,304221,Equipment and Materials,04-Sep-2014,2788945-19738102,548.82,AGGREGATE INDUSTRIES UK LTD.
Neighbourhood Services,Technical Services,Supplies and Services,304221,Equipment and Materials,04-Sep-2014,2788945-19766616,610.30,AGGREGATE INDUSTRIES UK LTD.
Neighbourhood Services,Technical Services,Supplies and Services,304221,Equipment and Materials,04-Sep-2014,2788945-19825513,554.12,AGGREGATE INDUSTRIES UK LTD.
Neighbourhood Services,Technical Services,Supplies and Services,304221,Equipment and Materials,04-Sep-2014,2788945-19896253,556.18,AGGREGATE INDUSTRIES UK LTD.
Neighbourhood Services,Technical Services,Supplies and Services,304221,Equipment and Materials,04-Sep-2014,2788945-19954705,568.29,AGGREGATE INDUSTRIES UK LTD.
Neighbourhood Services,Technical Services,Supplies and Services,304221,Equipment and Materials,04-Sep-2014,2788945-19984303,"1,819.02",AGGREGATE INDUSTRIES UK LTD.
Neighbourhood Services,Technical Services,Supplies and Services,304221,Equipment and Materials,04-Sep-2014,2788945-19994586,982.10,AGGREGATE INDUSTRIES UK LTD.
Neighbourhood Services,Technical Services,Supplies and Services,304221,Equipment and Materials,04-Sep-2014,2788945-20005750,928.65,AGGREGATE INDUSTRIES UK LTD.
Neighbourhood Services,Technical Services,Supplies and Services,304221,Equipment and Materials,04-Sep-2014,2788945-20005751,"1,603.11",AGGREGATE INDUSTRIES UK LTD.
Neighbourhood Services,Technical Services,Supplies and Services,304221,Equipment and Materials,04-Sep-2014,2788945-20015033,"1,213.96",AGGREGATE INDUSTRIES UK LTD.
Neighbourhood Services,Technical Services,Supplies and Services,304221,Equipment and Materials,04-Sep-2014,2788945-20043334,"1,464.09",AGGREGATE INDUSTRIES UK LTD.
Neighbourhood Services,Technical Services,Supplies and Services,304221,Equipment and Materials,04-Sep-2014,2788945-20052695,"2,517.20",AGGREGATE INDUSTRIES UK LTD.
Neighbourhood Services,Technical Services,Supplies and Services,304221,Equipment and Materials,04-Sep-2014,2788945-20052698,644.41,AGGREGATE INDUSTRIES UK LTD.
Neighbourhood Services,Technical Services,Supplies and Services,304221,Equipment and Materials,04-Sep-2014,2788945-20058657,"1,311.92",AGGREGATE INDUSTRIES UK LTD.
Neighbourhood Services,Technical Services,Supplies and Services,304221,Equipment and Materials,04-Sep-2014,2788945-20058658,"1,119.36",AGGREGATE INDUSTRIES UK LTD.
Neighbourhood Services,Technical Services,Supplies and Services,304221,Equipment and Materials,04-Sep-2014,2788945-20058660,658.00,AGGREGATE INDUSTRIES UK LTD.
Neighbourhood Services,Technical Services,Supplies and Services,304221,Equipment and Materials,04-Sep-2014,2788945-20065140,"1,453.28",AGGREGATE INDUSTRIES UK LTD.
Neighbourhood Services,Technical Services,Supplies and Services,304221,Equipment and Materials,04-Sep-2014,2788945-20071506,"1,192.88",AGGREGATE INDUSTRIES UK LTD.
Neighbourhood Services,Technical Services,Supplies and Services,304221,Equipment and Materials,04-Sep-2014,2788945-20071585,"1,930.68",AGGREGATE INDUSTRIES UK LTD.
Neighbourhood Services,Technical Services,Supplies and Services,304221,Equipment and Materials,04-Sep-2014,2788945-20071588,"1,529.30",AGGREGATE INDUSTRIES UK LTD.
Neighbourhood Services,Technical Services,Supplies and Services,304221,Equipment and Materials,04-Sep-2014,2788945-20078305,"1,563.64",AGGREGATE INDUSTRIES UK LTD.
Neighbourhood Services,Technical Services,Supplies and Services,304221,Equipment and Materials,04-Sep-2014,2788945-20078308,"1,025.00",AGGREGATE INDUSTRIES UK LTD.
Neighbourhood Services,Technical Services,Supplies and Services,304221,Equipment and Materials,04-Sep-2014,2788945-20078310,718.30,AGGREGATE INDUSTRIES UK LTD.
Neighbourhood Services,Technical Services,Supplies and Services,304221,Equipment and Materials,04-Sep-2014,2788945-20084644,725.24,AGGREGATE INDUSTRIES UK LTD.
Neighbourhood Services,Technical Services,Supplies and Services,304221,Equipment and Materials,04-Sep-2014,2788945-20084647,569.15,AGGREGATE INDUSTRIES UK LTD.
Neighbourhood Services,Technical Services,Supplies and Services,304221,Equipment and Materials,04-Sep-2014,2788945-20087332,937.44,AGGREGATE INDUSTRIES UK LTD.
Neighbourhood Services,Technical Services,Supplies and Services,304221,Equipment and Materials,04-Sep-2014,2788945-20087334,500.00,AGGREGATE INDUSTRIES UK LTD.
Neighbourhood Services,Technical Services,Supplies and Services,304221,Equipment and Materials,04-Sep-2014,2788945-20093327,"1,316.88",AGGREGATE INDUSTRIES UK LTD.
Neighbourhood Services,Technical Services,Supplies and Services,304221,Equipment and Materials,04-Sep-2014,2788945-20093328,926.28,AGGREGATE INDUSTRIES UK LTD.
Neighbourhood Services,Technical Services,Supplies and Services,304221,Equipment and Materials,04-Sep-2014,2788945-20099139,"1,569.84",AGGREGATE INDUSTRIES UK LTD.
Neighbourhood Services,Technical Services,Supplies and Services,304221,Equipment and Materials,04-Sep-2014,2788945-20099142,"1,590.92",AGGREGATE INDUSTRIES UK LTD.
Neighbourhood Services,Technical Services,Supplies and Services,304221,Equipment and Materials,04-Sep-2014,2788945-20105304,"1,200.32",AGGREGATE INDUSTRIES UK LTD.
Neighbourhood Services,Technical Services,Supplies and Services,304221,Equipment and Materials,04-Sep-2014,2788945-20105305,"1,375.16",AGGREGATE INDUSTRIES UK LTD.
Neighbourhood Services,Technical Services,Supplies and Services,304221,Equipment and Materials,04-Sep-2014,2788945-20111545,"1,613.24",AGGREGATE INDUSTRIES UK LTD.
Neighbourhood Services,Technical Services,Supplies and Services,304221,Equipment and Materials,04-Sep-2014,2788945-20111548,613.66,AGGREGATE INDUSTRIES UK LTD.
Neighbourhood Services,Technical Services,Supplies and Services,304221,Equipment and Materials,04-Sep-2014,2788945-20120892,572.96,AGGREGATE INDUSTRIES UK LTD.
Neighbourhood Services,Technical Services,Supplies and Services,304221,Equipment and Materials,04-Sep-2014,2788945-20120893,995.72,AGGREGATE INDUSTRIES UK LTD.
Neighbourhood Services,Technical Services,Supplies and Services,304221,Equipment and Materials,04-Sep-2014,2788945-20120894,"2,375.84",AGGREGATE INDUSTRIES UK LTD.
Neighbourhood Services,Technical Services,Supplies and Services,304221,Equipment and Materials,04-Sep-2014,2788946-20052696,"1,204.04",AGGREGATE INDUSTRIES UK LTD.
Neighbourhood Services,Technical Services,Supplies and Services,304221,Equipment and Materials,04-Sep-2014,2788946-20052697,"1,217.68",AGGREGATE INDUSTRIES UK LTD.
Neighbourhood Services,Technical Services,Supplies and Services,304221,Equipment and Materials,04-Sep-2014,2788946-20058659,"1,209.00",AGGREGATE INDUSTRIES UK LTD.
Neighbourhood Services,Technical Services,Supplies and Services,304221,Equipment and Materials,04-Sep-2014,2788946-20065141,943.64,AGGREGATE INDUSTRIES UK LTD.
Neighbourhood Services,Technical Services,Supplies and Services,304221,Equipment and Materials,04-Sep-2014,2788946-20065142,"1,202.96",AGGREGATE INDUSTRIES UK LTD.
Neighbourhood Services,Technical Services,Supplies and Services,304221,Equipment and Materials,04-Sep-2014,2788946-20065143,570.02,AGGREGATE INDUSTRIES UK LTD.
Neighbourhood Services,Technical Services,Supplies and Services,304221,Equipment and Materials,04-Sep-2014,2788946-20078306,967.20,AGGREGATE INDUSTRIES UK LTD.
Neighbourhood Services,Technical Services,Supplies and Services,304221,Equipment and Materials,04-Sep-2014,2788946-20078307,"1,231.32",AGGREGATE INDUSTRIES UK LTD.
Neighbourhood Services,Technical Services,Supplies and Services,304221,Equipment and Materials,04-Sep-2014,2788946-20084645,"1,070.12",AGGREGATE INDUSTRIES UK LTD.
Neighbourhood Services,Technical Services,Supplies and Services,304221,Equipment and Materials,04-Sep-2014,2788946-20084646,"1,263.56",AGGREGATE INDUSTRIES UK LTD.
Neighbourhood Services,Technical Services,Supplies and Services,304221,Equipment and Materials,04-Sep-2014,2788946-20087335,"1,240.00",AGGREGATE INDUSTRIES UK LTD.
Neighbourhood Services,Technical Services,Supplies and Services,304221,Equipment and Materials,04-Sep-2014,2788946-20087336,935.72,AGGREGATE INDUSTRIES UK LTD.
Neighbourhood Services,Technical Services,Supplies and Services,304221,Equipment and Materials,04-Sep-2014,2788946-20087337,567.90,AGGREGATE INDUSTRIES UK LTD.
Neighbourhood Services,Technical Services,Supplies and Services,304221,Equipment and Materials,04-Sep-2014,2788946-20093329,"1,254.88",AGGREGATE INDUSTRIES UK LTD.
Neighbourhood Services,Technical Services,Supplies and Services,304221,Equipment and Materials,04-Sep-2014,2788946-20093330,659.16,AGGREGATE INDUSTRIES UK LTD.
Neighbourhood Services,Technical Services,Supplies and Services,304221,Equipment and Materials,04-Sep-2014,2788946-20093331,579.53,AGGREGATE INDUSTRIES UK LTD.
Neighbourhood Services,Technical Services,Supplies and Services,304221,Equipment and Materials,04-Sep-2014,2788946-20099141,"3,920.40",AGGREGATE INDUSTRIES UK LTD.
Neighbourhood Services,Technical Services,Supplies and Services,304221,Equipment and Materials,04-Sep-2014,2788946-20099143,"1,244.96",AGGREGATE INDUSTRIES UK LTD.
Neighbourhood Services,Technical Services,Supplies and Services,304221,Equipment and Materials,04-Sep-2014,2788946-20099144,660.12,AGGREGATE INDUSTRIES UK LTD.
Neighbourhood Services,Technical Services,Supplies and Services,304221,Equipment and Materials,04-Sep-2014,2788946-20099145,836.40,AGGREGATE INDUSTRIES UK LTD.
Neighbourhood Services,Technical Services,Supplies and Services,304221,Equipment and Materials,04-Sep-2014,2788946-20099146,611.54,AGGREGATE INDUSTRIES UK LTD.
Neighbourhood Services,Technical Services,Supplies and Services,304221,Equipment and Materials,04-Sep-2014,2788946-20105306,"1,251.16",AGGREGATE INDUSTRIES UK LTD.
Neighbourhood Services,Technical Services,Supplies and Services,304221,Equipment and Materials,04-Sep-2014,2788946-20105307,642.58,AGGREGATE INDUSTRIES UK LTD.
Neighbourhood Services,Technical Services,Supplies and Services,304221,Equipment and Materials,04-Sep-2014,2788946-20105308,520.55,AGGREGATE INDUSTRIES UK LTD.
Neighbourhood Services,Technical Services,Supplies and Services,304221,Equipment and Materials,04-Sep-2014,2788946-20105309,566.56,AGGREGATE INDUSTRIES UK LTD.
Neighbourhood Services,Technical Services,Supplies and Services,304221,Equipment and Materials,04-Sep-2014,2788946-20111546,"1,248.68",AGGREGATE INDUSTRIES UK LTD.
Neighbourhood Services,Technical Services,Supplies and Services,304221,Equipment and Materials,04-Sep-2014,2788946-20120895,"2,447.76",AGGREGATE INDUSTRIES UK LTD.
Neighbourhood Services,Direct Services,Third Party Payments,430100,Rendered by Private Contractors,04-Sep-2014,2788947-51421,"22,490.00",AIRCON REFRIGERATION LTD.
Neighbourhood Services,Direct Services,Third Party Payments,430100,Rendered by Private Contractors,04-Sep-2014,2788947-51458,"4,085.00",AIRCON REFRIGERATION LTD.
Neighbourhood Services,Culture & Sport,Supplies and Services,304221,Equipment and Materials,04-Sep-2014,2788956-SIN130059,"1,420.92",ASA AWARDS.
Regeneration & Economic Development,Economic Development and Housing,Other Expenses,914001,Other capital expenses,04-Sep-2014,2788959-13231,"1,478.00",AUCKLAND CASTLE GROUP.
Neighbourhood Services,Direct Services,Supplies and Services,304259,Equipment and Materials,04-Sep-2014,2788964-95537914,"1,320.90",BALL COLEGRAVE LTD.
Children and Adult Services,Childrens Services,Third Party Payments,425040,Rendered by Voluntary Organisations,04-Sep-2014,2788965-146502208,"4,129.82",BARNARDOS.
Children and Adult Services,Childrens Services,Supplies and Services,304259,Equipment and Materials,04-Sep-2014,2788966-26188,575.00,BARR & WRAY LTD.
Neighbourhood Services,Culture & Sport,Supplies and Services,384199,Miscellaneous Expenses,04-Sep-2014,2788969-00037,"9,779.31",BISHOP CATERING LTD.
Assistant Chief Executive,Partnerships & Community Engagement Div.,Supplies and Services,384086,Miscellaneous Expenses,04-Sep-2014,2788970,"3,025.00",BISHOP MIDDLEHAM FILM & DRAMA CLUB.
Regeneration & Economic Development,Transport and Contracted Services,Construction Work,908105,Construction work,04-Sep-2014,2788985-21658,"2,367.88",BUS SHELTERS LTD.
Children and Adult Services,Education,Third Party Payments,440999,Other Third Party Payments,04-Sep-2014,2788991-001,"10,000.00",CAPITAL 4 TRAINING LTD
Neighbourhood Services,Technical Services,Stock,926900,Stock in hand-Inventory system,04-Sep-2014,2788992-851402167,"5,232.00",CARLISLE CONSTRUCTION MATERIALS LTD.
Neighbourhood Services,Direct Services,Supplies and Services,304221,Equipment and Materials,04-Sep-2014,2788995-451454,980.00,CARRS BILLINGTON AGRICULTURE.
Children and Adult Services,Childrens Services,Employees,080025,Agency Staff,04-Sep-2014,2788998-2286983,"2,859.50",CELSIAN.
Regeneration & Economic Development,Economic Development and Housing,Cap Exp on Grants & Other Financial Assistance (REFCUS),918401,Capital grants,04-Sep-2014,2789000-RED-08-2014-071,"5,765.29",CHILTERN INVADEX LTD.
Assistant Chief Executive,Partnerships & Community Engagement Div.,Transfer Payments,525030,Other,04-Sep-2014,2789006,"5,000.00",CITIZENS ADVICE COUNTY DURHAM.
Assistant Chief Executive,Partnerships & Community Engagement Div.,Transfer Payments,525030,Other,04-Sep-2014,2789006,"10,000.00",CITIZENS ADVICE COUNTY DURHAM.
Regeneration & Economic Development,Economic Development and Housing,Supplies and Services,384199,Miscellaneous Expenses,04-Sep-2014,2789022-722,"1,320.00",CRAIGNEGARRA LTD T/A THE SECRET SERVICE.
Regeneration & Economic Development,Economic Development and Housing,Supplies and Services,384199,Miscellaneous Expenses,04-Sep-2014,2789023-548,"2,991.00",CROOK HALL & GARDENS.
RED HRA,Housing Revenue Account,Premises,105013,HRA Repair & Maintenance,04-Sep-2014,2789035-204716,"1,038.96",DELTA ELECTRICAL & MECHANICAL SERVICES.
Children and Adult Services,Commissioning inc Supporting People,Supplies and Services,384700,Miscellaneous Expenses,04-Sep-2014,2789036-RMIN/00000547,"10,000.00",DERWENTSIDE HOMES LTD.
Neighbourhood Services,Culture & Sport,Supplies and Services,384700,Miscellaneous Expenses,04-Sep-2014,2789048,990.00,DURHAM AMATEUR ROWING CLUB.
Neighbourhood Services,Projects and Business services,Third Party Payments,430121,Rendered by Private Contractors,04-Sep-2014,2789062-9124,561.66,ELECTRO SERVE CONTRACTS LTD.
Children and Adult Services,Head of Adults,Supplies and Services,384616,Miscellaneous Expenses,04-Sep-2014,2789074-SH131415,"2,277.34",FOUR HOUSING GROUP.
Neighbourhood Services,Technical Services,Stock,926900,Stock in hand-Inventory system,04-Sep-2014,2789084-SINV-073715,"5,400.03",GELPACK EXCELSIOR LTD.
Resources,I.C.T. Services,Supplies and Services,352001,Conference Expenses,04-Sep-2014,2789091-15078,"9,500.00",GOSS INTERACTIVE LTD.
Neighbourhood Services,Technical Services,Supplies and Services,304221,Equipment and Materials,04-Sep-2014,2789092-108144,935.30,GREEN TECH LTD.
Neighbourhood Services,Culture & Sport,Premises,145023,Cleaning and Domestic Supplies,04-Sep-2014,2789093-06/523275,766.68,GREENHAM TRADING LTD.
Neighbourhood Services,Direct Services,Supplies and Services,304221,Equipment and Materials,04-Sep-2014,2789103-B33/0071585,910.58,HOWDENS JOINERY LTD.
RED HRA,Housing Revenue Account,Supplies and Services,338027,Services,04-Sep-2014,2789105-SPINV19680,"2,970.00",HQN LTD.
Resources,I.C.T. Services,Stock,926900,Stock in hand-Inventory system,04-Sep-2014,2789106-SIN338956,"6,112.00",IDN SUPPLIES LTD.
Regeneration & Economic Development,Spatial Policy Planning Assets & Environment,Vehicles Equipment Furniture and Fittings,912701,Computer equipment,04-Sep-2014,2789107-7003451,"2,800.00",IDOX SOFTWARE LTD.
Regeneration & Economic Development,Economic Development and Housing,Supplies and Services,308011,Furniture,04-Sep-2014,2789109-8395,"1,200.00",INGRAMS REMOVERS & STORERS.
Children and Adult Services,Public Health,Third Party Payments,460802,Contract Payments,04-Sep-2014,2789113-3869,"9,800.00",INTRAHEALTH LTD.
Children and Adult Services,Public Health,Third Party Payments,460802,Contract Payments,04-Sep-2014,2789113-3961,"12,600.00",INTRAHEALTH LTD.
Neighbourhood Services,Direct Services,Supplies and Services,304221,Equipment and Materials,04-Sep-2014,2789121-347074,711.61,JOINERY & TIMBER CREATIONS (65) LTD.
Neighbourhood Services,Technical Services,Supplies and Services,304221,Equipment and Materials,04-Sep-2014,2789123-BI1142079,696.96,JT DOVE LTD.
Neighbourhood Services,Technical Services,Supplies and Services,304221,Equipment and Materials,04-Sep-2014,2789123-CNI20142/D,"2,671.12",JT DOVE LTD.
Neighbourhood Services,Direct Services,Supplies and Services,304221,Equipment and Materials,04-Sep-2014,2789123-NOI57894,936.00,JT DOVE LTD.
Neighbourhood Services,Technical Services,Stock,926900,Stock in hand-Inventory system,04-Sep-2014,2789123-STI406562,981.60,JT DOVE LTD.
Resources,Financial Services,Employees,040149,Recruitment Instruction and Training,04-Sep-2014,2789125-SINV14062412,840.83,KAPLAN FINANCIAL LTD.
Neighbourhood Services,Direct Services,Supplies and Services,304259,Equipment and Materials,04-Sep-2014,2789132-SI02-0035178,606.20,KILLGERM CHEMICALS LTD.
Neighbourhood Services,Technical Services,Supplies and Services,304221,Equipment and Materials,04-Sep-2014,2789135-9031230949,831.04,LAFARGE TARMAC TRADING LTD.
Neighbourhood Services,Technical Services,Supplies and Services,304221,Equipment and Materials,04-Sep-2014,2789135-9031230954,663.60,LAFARGE TARMAC TRADING LTD.
Neighbourhood Services,Technical Services,Supplies and Services,304221,Equipment and Materials,04-Sep-2014,2789135-9031256036,531.36,LAFARGE TARMAC TRADING LTD.
Neighbourhood Services,Technical Services,Supplies and Services,304221,Equipment and Materials,04-Sep-2014,2789135-9031310111,650.80,LAFARGE TARMAC TRADING LTD.
Neighbourhood Services,Technical Services,Supplies and Services,304221,Equipment and Materials,04-Sep-2014,2789135-9031324625,"2,003.40",LAFARGE TARMAC TRADING LTD.
Neighbourhood Services,Technical Services,Supplies and Services,304221,Equipment and Materials,04-Sep-2014,2789135-9031330554,"1,892.10",LAFARGE TARMAC TRADING LTD.
Neighbourhood Services,Technical Services,Supplies and Services,304221,Equipment and Materials,04-Sep-2014,2789135-9031342730,"1,929.20",LAFARGE TARMAC TRADING LTD.
Neighbourhood Services,Technical Services,Supplies and Services,304221,Equipment and Materials,04-Sep-2014,2789135-9031349717,"1,676.73",LAFARGE TARMAC TRADING LTD.
Neighbourhood Services,Technical Services,Supplies and Services,304221,Equipment and Materials,04-Sep-2014,2789135-9031359305,638.40,LAFARGE TARMAC TRADING LTD.
Neighbourhood Services,Technical Services,Stock,926900,Stock in hand-Inventory system,04-Sep-2014,2789135-9031361478,588.50,LAFARGE TARMAC TRADING LTD.
Neighbourhood Services,Technical Services,Supplies and Services,304221,Equipment and Materials,04-Sep-2014,2789135-9031367907,537.30,LAFARGE TARMAC TRADING LTD.
Neighbourhood Services,Technical Services,Supplies and Services,304221,Equipment and Materials,04-Sep-2014,2789135-9031367908,"2,367.70",LAFARGE TARMAC TRADING LTD.
Neighbourhood Services,Technical Services,Supplies and Services,304221,Equipment and Materials,04-Sep-2014,2789135-9031384182,535.41,LAFARGE TARMAC TRADING LTD.
Neighbourhood Services,Technical Services,Supplies and Services,304221,Equipment and Materials,04-Sep-2014,2789135-9031384183,535.20,LAFARGE TARMAC TRADING LTD.
Neighbourhood Services,Technical Services,Supplies and Services,304221,Equipment and Materials,04-Sep-2014,2789136-9031342731,534.87,LAFARGE TARMAC TRADING LTD.
Neighbourhood Services,Technical Services,Supplies and Services,304221,Equipment and Materials,04-Sep-2014,2789136-9031346703,"1,324.40",LAFARGE TARMAC TRADING LTD.
Neighbourhood Services,Technical Services,Supplies and Services,304221,Equipment and Materials,04-Sep-2014,2789136-9031353229,626.00,LAFARGE TARMAC TRADING LTD.
Neighbourhood Services,Technical Services,Supplies and Services,304221,Equipment and Materials,04-Sep-2014,2789136-9031371899,"1,516.75",LAFARGE TARMAC TRADING LTD.
Neighbourhood Services,Technical Services,Supplies and Services,304221,Equipment and Materials,04-Sep-2014,2789136-9031371901,666.80,LAFARGE TARMAC TRADING LTD.
Neighbourhood Services,Technical Services,Supplies and Services,304221,Equipment and Materials,04-Sep-2014,2789136-9031403620,576.58,LAFARGE TARMAC TRADING LTD.
Neighbourhood Services,Technical Services,Supplies and Services,304221,Equipment and Materials,04-Sep-2014,2789136-9031403622,973.76,LAFARGE TARMAC TRADING LTD.
Neighbourhood Services,Technical Services,Supplies and Services,304221,Equipment and Materials,04-Sep-2014,2789136-9031416054,"3,206.48",LAFARGE TARMAC TRADING LTD.
Neighbourhood Services,Technical Services,Supplies and Services,304221,Equipment and Materials,04-Sep-2014,2789136-9031419245,568.70,LAFARGE TARMAC TRADING LTD.
Neighbourhood Services,Technical Services,Supplies and Services,304221,Equipment and Materials,04-Sep-2014,2789136-9031421675,551.50,LAFARGE TARMAC TRADING LTD.
Neighbourhood Services,Technical Services,Supplies and Services,304221,Equipment and Materials,04-Sep-2014,2789136-9031422128,"1,312.20",LAFARGE TARMAC TRADING LTD.
Neighbourhood Services,Technical Services,Supplies and Services,304221,Equipment and Materials,04-Sep-2014,2789136-9031425964,"1,595.30",LAFARGE TARMAC TRADING LTD.
Neighbourhood Services,Technical Services,Supplies and Services,304221,Equipment and Materials,04-Sep-2014,2789136-9031430268,602.75,LAFARGE TARMAC TRADING LTD.
Neighbourhood Services,Technical Services,Supplies and Services,304221,Equipment and Materials,04-Sep-2014,2789136-9031438817,"1,298.50",LAFARGE TARMAC TRADING LTD.
Neighbourhood Services,Technical Services,Supplies and Services,304221,Equipment and Materials,04-Sep-2014,2789136-9031438819,925.97,LAFARGE TARMAC TRADING LTD.
Neighbourhood Services,Technical Services,Stock,926900,Stock in hand-Inventory system,04-Sep-2014,2789136-9031438822,907.34,LAFARGE TARMAC TRADING LTD.
Children and Adult Services,Childrens Services,Transport,230005,Contract Hire,04-Sep-2014,2789145-1865,"2,750.00",LOCAL TRANSPORT LTD.
Regeneration & Economic Development,Spatial Policy Planning Assets & Environment,Construction Work,908105,Construction work,04-Sep-2014,2789149-13578,"5,880.00",LUCION ENVIRONMENTAL LLP LTD.
Regeneration & Economic Development,Economic Development and Housing,Cap Exp on Grants & Other Financial Assistance (REFCUS),918401,Capital grants,04-Sep-2014,2789154-RED-08-2014-072,"4,462.00",M & R DEVELOPMENTS & CONTRACTORS LTD..
Neighbourhood Services,Technical Services,Supplies and Services,304221,Equipment and Materials,04-Sep-2014,2789163-ZBB0676552,"1,509.14",MARSHALLS MONO LTD.
Regeneration & Economic Development,Economic Development and Housing,Premises,145050,Cleaning and Domestic Supplies,04-Sep-2014,2789168-077,736.00,MIKE TINKLER T/A ABSOLUTELY CLEAN.
Neighbourhood Services,Technical Services,Third Party Payments,430100,Rendered by Private Contractors,04-Sep-2014,2789169-4997,"39,162.68",MILES MACADAM LTD.
Neighbourhood Services,Technical Services,Third Party Payments,430100,Rendered by Private Contractors,04-Sep-2014,2789169-4998,"63,663.02",MILES MACADAM LTD.
Neighbourhood Services,Technical Services,Third Party Payments,430100,Rendered by Private Contractors,04-Sep-2014,2789169-4999,"76,366.78",MILES MACADAM LTD.
Children and Adult Services,Head of Adults,Transport,230005,Contract Hire,04-Sep-2014,2789173-KDC030414,812.00,MJ TIMNEY T/A KDC & C&M TAXIS.
Children and Adult Services,Education,Supplies and Services,338066,Services,04-Sep-2014,2789190-DCC-1610-0814-NL,"6,512.20",NEPRO LTD.
Regeneration & Economic Development,Spatial Policy Planning Assets & Environment,Supplies and Services,338099,Services,04-Sep-2014,2789192,"1,250.00",NETWORK RAIL.
Children and Adult Services,Education,Transfer Payments,525065,Other,04-Sep-2014,2789193-CAS-08-2014-316,"8,796.45",NEW COLLEGE ACADEMIES TRUST - CONSETT ACADEMY.
Children and Adult Services,Childrens Services,Supplies and Services,384638,Miscellaneous Expenses,04-Sep-2014,2789201-0000015427,535.50,NORTH EAST AUTISM SOCIETY.
Children and Adult Services,Childrens Services,Third Party Payments,425019,Rendered by Voluntary Organisations,04-Sep-2014,2789201-0000018404,"50,996.25",NORTH EAST AUTISM SOCIETY.
Children and Adult Services,Childrens Services,Third Party Payments,425019,Rendered by Voluntary Organisations,04-Sep-2014,2789202-0000018401,"33,997.50",NORTH EAST AUTISM SOCIETY.
Children and Adult Services,Childrens Services,Third Party Payments,425019,Rendered by Voluntary Organisations,04-Sep-2014,2789202-0000018402,"50,996.25",NORTH EAST AUTISM SOCIETY.
Children and Adult Services,Childrens Services,Third Party Payments,425019,Rendered by Voluntary Organisations,04-Sep-2014,2789202-0000018403,"50,996.25",NORTH EAST AUTISM SOCIETY.
Children and Adult Services,Head of Adults,Third Party Payments,473101,Purchase of Care,04-Sep-2014,2789201-0000015750,"1,132.88",NORTH EAST AUTISM SOCIETY.
Children and Adult Services,Head of Adults,Third Party Payments,440080,Other Third Party Payments,04-Sep-2014,2789202-0000018394,"13,835.17",NORTH EAST AUTISM SOCIETY.
Children and Adult Services,Head of Adults,Third Party Payments,440080,Other Third Party Payments,04-Sep-2014,2789202-0000018398,"40,216.95",NORTH EAST AUTISM SOCIETY.
Regeneration & Economic Development,Transport and Contracted Services,Premises,120009,Energy Costs,04-Sep-2014,2789208-NNO7LPYQ,"3,185.88",NPOWER.
Neighbourhood Services,Technical Services,Supplies and Services,304221,Equipment and Materials,04-Sep-2014,2789213-201519,"4,336.58",OWEN PUGH CONTRACTS LTD.
Neighbourhood Services,Direct Services,Supplies and Services,304221,Equipment and Materials,04-Sep-2014,2789217-XL120532,934.75,PARK ELECTRICAL DISTRIBUTORS LTD.
Neighbourhood Services,Technical Services,Stock,926900,Stock in hand-Inventory system,04-Sep-2014,2789217-XL122172,"1,188.00",PARK ELECTRICAL DISTRIBUTORS LTD.
Regeneration & Economic Development,Transport and Contracted Services,Third Party Payments,430100,Rendered by Private Contractors,04-Sep-2014,2789218-4895,"3,654.00",PATROL.
Children and Adult Services,Education,Transport,230008,Contract Hire,04-Sep-2014,2789219-SC-018,"1,120.00",PAUL BURRELL T/A PAUL BURRELL TAXIS.
Neighbourhood Services,Direct Services,Supplies and Services,304259,Equipment and Materials,04-Sep-2014,2789230-11190,"1,018.50",PROBRUSH T/A NORTHERN MUNICIPAL SPARES LTD.
Neighbourhood Services,Culture & Sport,Supplies and Services,384956,Miscellaneous Expenses,04-Sep-2014,2789234-4298822,"2,391.54",PRS FOR MUSIC.
Children and Adult Services,Childrens Services,Supplies and Services,338099,Services,04-Sep-2014,2789151-3,720.00,REDACTED - PAYMENT TO INDIVIDUAL
Children and Adult Services,Childrens Services,Supplies and Services,364353,Grants to Voluntary Organisations,04-Sep-2014,2789293-CAS-09-2014-206,"2,835.95",REDACTED - PAYMENT TO INDIVIDUAL
RED HRA,HRA Centrally Managed,Creditors,952191,Creditor-HRA-rents-refunds,04-Sep-2014,2789184-DVHR00017,617.84,REDACTED - PAYMENT TO INDIVIDUAL
Children and Adult Services,Childrens Services,Supplies and Services,340001,Postages,04-Sep-2014,2789247-1801605559,787.00,ROYAL MAIL GROUP PLC.
Neighbourhood Services,Direct Services,Third Party Payments,430100,Rendered by Private Contractors,04-Sep-2014,2789250-10233,571.42,RW CHICKEN (SCAFFOLDING) LTD.
Regeneration & Economic Development,Transport and Contracted Services,Third Party Payments,430106,Rendered by Private Contractors,04-Sep-2014,2789254-92,665.76,SB TRAVEL.
Children and Adult Services,Childrens Services,Supplies and Services,364358,Grants to Voluntary Organisations,04-Sep-2014,2789255-CAS-09-2014-217,"3,499.00",SC MELBOURNE STREET MANAGEMENT LTD.
Children and Adult Services,Education,Construction Work,908105,Construction work,04-Sep-2014,2789264-7193,"80,861.85",SIGMA CATERING EQUIPMENT LTD.
Neighbourhood Services,Direct Services,Supplies and Services,304221,Equipment and Materials,04-Sep-2014,2789265-2450037997,"3,212.09",SIKA LIQUID PLASTICS LTD.
Neighbourhood Services,Culture & Sport,Premises,145023,Cleaning and Domestic Supplies,04-Sep-2014,2789266-267600,866.60,SIS CHEMICALS.
Neighbourhood Services,Culture & Sport,Premises,145023,Cleaning and Domestic Supplies,04-Sep-2014,2789266-267686,532.90,SIS CHEMICALS.
Resources,I.C.T. Services,Supplies and Services,342051,Computers and Communications,04-Sep-2014,2789269-INV71480,"188,880.00",SOFTWARE BOX LTD.
Assistant Chief Executive,Partnerships & Community Engagement Div.,Transfer Payments,525030,Other,04-Sep-2014,2789270,"33,500.00",SOUTH DURHAM ENTERPRISE AGENCY LTD.
Assistant Chief Executive,Partnerships & Community Engagement Div.,Supplies and Services,384086,Miscellaneous Expenses,04-Sep-2014,2789270,"8,500.00",SOUTH DURHAM ENTERPRISE AGENCY LTD.
Neighbourhood Services,Culture & Sport,Supplies and Services,384199,Miscellaneous Expenses,04-Sep-2014,2789272-2599,"2,000.00",STARK HARTLEY ATKINSON LTD.
Neighbourhood Services,Direct Services,Supplies and Services,304221,Equipment and Materials,04-Sep-2014,2789280-1280261,"1,659.63",T CROSSLING & CO LTD.
Neighbourhood Services,Direct Services,Supplies and Services,304221,Equipment and Materials,04-Sep-2014,2789280-1281759,759.75,T CROSSLING & CO LTD.
Children and Adult Services,Childrens Services,Third Party Payments,425040,Rendered by Voluntary Organisations,04-Sep-2014,2789285-22659,"3,631.14",TEAM FOSTERING.
Children and Adult Services,Childrens Services,Third Party Payments,425040,Rendered by Voluntary Organisations,04-Sep-2014,2789285-22669,"3,100.00",TEAM FOSTERING.
Children and Adult Services,Childrens Services,Third Party Payments,425040,Rendered by Voluntary Organisations,04-Sep-2014,2789285-22689,"3,100.00",TEAM FOSTERING.
Children and Adult Services,Childrens Services,Third Party Payments,425040,Rendered by Voluntary Organisations,04-Sep-2014,2789285-22714,"3,631.43",TEAM FOSTERING.
Children and Adult Services,Childrens Services,Third Party Payments,425040,Rendered by Voluntary Organisations,04-Sep-2014,2789285-22746,"3,232.86",TEAM FOSTERING.
Children and Adult Services,Childrens Services,Third Party Payments,425040,Rendered by Voluntary Organisations,04-Sep-2014,2789285-22758,"3,100.00",TEAM FOSTERING.
Children and Adult Services,Public Health,Third Party Payments,460803,Contract Payments,04-Sep-2014,2789290-FA121/JULY/14,"1,056.00",TESCO PHARMACY.
Regeneration & Economic Development,Spatial Policy Planning Assets & Environment,Supplies and Services,384540,Miscellaneous Expenses,04-Sep-2014,2789298-1071,"1,800.00",THE UNKNOWN CREATIVE LTD.
Neighbourhood Services,Culture & Sport,Supplies and Services,304259,Equipment and Materials,04-Sep-2014,2789300-WF07/14/25531,"3,570.00",THE WRIGHT FOUNDATION.
Neighbourhood Services,Direct Services,Supplies and Services,304221,Equipment and Materials,04-Sep-2014,2789304-SIP-127476,551.30,THYSSENKRUPP ENCASA A DIVISION OF THYSSENKRUPP ACCESS LTD.
RED HRA,HRA Capital,Construction Work,908105,Construction work,04-Sep-2014,2789304-SIP-128992,734.00,THYSSENKRUPP ENCASA A DIVISION OF THYSSENKRUPP ACCESS LTD.
RED HRA,HRA Capital,Construction Work,908105,Construction work,04-Sep-2014,2789304-SIP-128993,734.00,THYSSENKRUPP ENCASA A DIVISION OF THYSSENKRUPP ACCESS LTD.
RED HRA,HRA Capital,Construction Work,908105,Construction work,04-Sep-2014,2789304-SIP-129056,710.00,THYSSENKRUPP ENCASA A DIVISION OF THYSSENKRUPP ACCESS LTD.
Regeneration & Economic Development,Economic Development and Housing,Cap Exp on Grants & Other Financial Assistance (REFCUS),918401,Capital grants,04-Sep-2014,2789304-RED-08-2014-078,"2,118.00",THYSSENKRUPP ENCASA A DIVISION OF THYSSENKRUPP ACCESS LTD.
Neighbourhood Services,Direct Services,Supplies and Services,304221,Equipment and Materials,04-Sep-2014,2789306-29427,"1,263.00",TOTAL PUMP SOLUTIONS LTD.
Regeneration & Economic Development,Economic Development and Housing,Supplies and Services,364320,Grants to Voluntary Organisations,04-Sep-2014,2789312,805.00,TYNE MANAGEMENT LTD.
Children and Adult Services,Public Health,Third Party Payments,460802,Contract Payments,04-Sep-2014,2789322-828Z1088,"15,715.00",VIRGIN CARE STOCKTON LLP.
Regeneration & Economic Development,Economic Development and Housing,Supplies and Services,384199,Miscellaneous Expenses,04-Sep-2014,2789324-2578,"5,000.00",VISIT KENT LTD.
Neighbourhood Services,Culture & Sport,Supplies and Services,384700,Miscellaneous Expenses,04-Sep-2014,2789327,608.00,VIXEN NETBALL.
Neighbourhood Services,Technical Services,Supplies and Services,304221,Equipment and Materials,04-Sep-2014,2789330-37498,"4,950.00",W MARLEY AGRICULTURAL CONTRACTORS LTD.
Neighbourhood Services,Technical Services,Supplies and Services,304357,Equipment and Materials,04-Sep-2014,2789330-37795,750.00,W MARLEY AGRICULTURAL CONTRACTORS LTD.
Children and Adult Services,Central Charges,Debtors,930170,CDDFT Winter Pressures Placements,04-Sep-2014,2789335-302-1083986,"1,857.24",WESTERLEIGH NURSING HOME.
Children and Adult Services,Central Charges,Debtors,930170,CDDFT Winter Pressures Placements,04-Sep-2014,2789335-302-1086402,928.62,WESTERLEIGH NURSING HOME.
Children and Adult Services,Central Charges,Debtors,930170,CDDFT Winter Pressures Placements,04-Sep-2014,2789335-302-1086406,"1,260.27",WESTERLEIGH NURSING HOME.
Children and Adult Services,Central Charges,Debtors,930170,CDDFT Winter Pressures Placements,04-Sep-2014,2789335-302-1087789,"1,857.24",WESTERLEIGH NURSING HOME.
Children and Adult Services,Central Charges,Debtors,930170,CDDFT Winter Pressures Placements,04-Sep-2014,2789335-302-1087791,"1,857.24",WESTERLEIGH NURSING HOME.
Children and Adult Services,Central Charges,Debtors,930170,CDDFT Winter Pressures Placements,04-Sep-2014,2789335-302-1087796,663.30,WESTERLEIGH NURSING HOME.
Children and Adult Services,Education,Transport,230008,Contract Hire,05-Sep-2014,2789345-71407,630.00,24/7 TAXI SERVICES LTD.
Neighbourhood Services,Culture & Sport,Supplies and Services,384199,Miscellaneous Expenses,05-Sep-2014,2789347-JKBB14/012,"1,080.00",ACCESS ALL AREAS.
Resources,Legal & Democratic Services,Supplies and Services,340001,Postages,05-Sep-2014,2789348-IS1240320,"6,230.64",ADARE INSPIRED COMMUNICATIONS.
Children and Adult Services,Education,Premises,106080,Centrally Controlled Rep and Maint,05-Sep-2014,2789349-27250085-61,"1,271.91",ADT FIRE & SECURITY PLC.
Neighbourhood Services,Technical Services,Supplies and Services,304221,Equipment and Materials,05-Sep-2014,2789350-19968199,"6,005.49",AGGREGATE INDUSTRIES UK LTD.
Neighbourhood Services,Technical Services,Supplies and Services,304221,Equipment and Materials,05-Sep-2014,2789350-20151591,886.60,AGGREGATE INDUSTRIES UK LTD.
Neighbourhood Services,Technical Services,Supplies and Services,304221,Equipment and Materials,05-Sep-2014,2789350-20166912,"1,247.44",AGGREGATE INDUSTRIES UK LTD.
Neighbourhood Services,Technical Services,Supplies and Services,304221,Equipment and Materials,05-Sep-2014,2789350-20188300,"1,790.88",AGGREGATE INDUSTRIES UK LTD.
Neighbourhood Services,Technical Services,Supplies and Services,304221,Equipment and Materials,05-Sep-2014,2789350-20188301,"2,125.36",AGGREGATE INDUSTRIES UK LTD.
Neighbourhood Services,Technical Services,Supplies and Services,304221,Equipment and Materials,05-Sep-2014,2789350-20194417,"1,755.84",AGGREGATE INDUSTRIES UK LTD.
Neighbourhood Services,Technical Services,Supplies and Services,304221,Equipment and Materials,05-Sep-2014,2789350-20194418,"1,488.00",AGGREGATE INDUSTRIES UK LTD.
Neighbourhood Services,Technical Services,Supplies and Services,304221,Equipment and Materials,05-Sep-2014,2789350-20194419,"1,468.23",AGGREGATE INDUSTRIES UK LTD.
Neighbourhood Services,Technical Services,Supplies and Services,304221,Equipment and Materials,05-Sep-2014,2789350-20201010,"1,807.92",AGGREGATE INDUSTRIES UK LTD.
Neighbourhood Services,Technical Services,Supplies and Services,304221,Equipment and Materials,05-Sep-2014,2789350-20201011,"1,056.48",AGGREGATE INDUSTRIES UK LTD.
Neighbourhood Services,Technical Services,Supplies and Services,304221,Equipment and Materials,05-Sep-2014,2789350-20201013,"1,018.42",AGGREGATE INDUSTRIES UK LTD.
Neighbourhood Services,Technical Services,Supplies and Services,304221,Equipment and Materials,05-Sep-2014,2789350-20207894,"1,775.68",AGGREGATE INDUSTRIES UK LTD.
Neighbourhood Services,Technical Services,Supplies and Services,304221,Equipment and Materials,05-Sep-2014,2789350-20207895,"1,019.28",AGGREGATE INDUSTRIES UK LTD.
Neighbourhood Services,Technical Services,Supplies and Services,304221,Equipment and Materials,05-Sep-2014,2789350-20214404,"1,980.40",AGGREGATE INDUSTRIES UK LTD.
Neighbourhood Services,Technical Services,Supplies and Services,304221,Equipment and Materials,05-Sep-2014,2789350-20257495,"6,002.40",AGGREGATE INDUSTRIES UK LTD.
Neighbourhood Services,Technical Services,Supplies and Services,304221,Equipment and Materials,05-Sep-2014,2789351-20015032,"1,995.06",AGGREGATE INDUSTRIES UK LTD.
Neighbourhood Services,Technical Services,Supplies and Services,304221,Equipment and Materials,05-Sep-2014,2789351-20127253,"1,216.44",AGGREGATE INDUSTRIES UK LTD.
Neighbourhood Services,Technical Services,Supplies and Services,304221,Equipment and Materials,05-Sep-2014,2789351-20127255,"1,272.16",AGGREGATE INDUSTRIES UK LTD.
Neighbourhood Services,Technical Services,Supplies and Services,304221,Equipment and Materials,05-Sep-2014,2789351-20127256,"1,131.53",AGGREGATE INDUSTRIES UK LTD.
Neighbourhood Services,Technical Services,Supplies and Services,304221,Equipment and Materials,05-Sep-2014,2789351-20134379,"1,506.60",AGGREGATE INDUSTRIES UK LTD.
Neighbourhood Services,Technical Services,Supplies and Services,304221,Equipment and Materials,05-Sep-2014,2789351-20142025,"1,082.52",AGGREGATE INDUSTRIES UK LTD.
Neighbourhood Services,Technical Services,Supplies and Services,304221,Equipment and Materials,05-Sep-2014,2789351-20142026,951.08,AGGREGATE INDUSTRIES UK LTD.
Neighbourhood Services,Technical Services,Supplies and Services,304221,Equipment and Materials,05-Sep-2014,2789351-20142029,"8,154.51",AGGREGATE INDUSTRIES UK LTD.
Neighbourhood Services,Technical Services,Supplies and Services,304221,Equipment and Materials,05-Sep-2014,2789351-20161138,"1,538.84",AGGREGATE INDUSTRIES UK LTD.
Neighbourhood Services,Technical Services,Supplies and Services,304221,Equipment and Materials,05-Sep-2014,2789351-20161139,"1,088.72",AGGREGATE INDUSTRIES UK LTD.
Neighbourhood Services,Technical Services,Supplies and Services,304221,Equipment and Materials,05-Sep-2014,2789351-20161140,"1,248.68",AGGREGATE INDUSTRIES UK LTD.
Neighbourhood Services,Technical Services,Supplies and Services,304221,Equipment and Materials,05-Sep-2014,2789351-20166910,"1,795.68",AGGREGATE INDUSTRIES UK LTD.
Neighbourhood Services,Technical Services,Supplies and Services,304221,Equipment and Materials,05-Sep-2014,2789351-20166911,"1,063.92",AGGREGATE INDUSTRIES UK LTD.
Neighbourhood Services,Technical Services,Supplies and Services,304221,Equipment and Materials,05-Sep-2014,2789351-20166916,525.00,AGGREGATE INDUSTRIES UK LTD.
Neighbourhood Services,Technical Services,Supplies and Services,304221,Equipment and Materials,05-Sep-2014,2789351-20173280,"2,372.12",AGGREGATE INDUSTRIES UK LTD.
Neighbourhood Services,Technical Services,Supplies and Services,304221,Equipment and Materials,05-Sep-2014,2789351-20173284,"1,016.80",AGGREGATE INDUSTRIES UK LTD.
Neighbourhood Services,Technical Services,Supplies and Services,304221,Equipment and Materials,05-Sep-2014,2789351-20173289,667.76,AGGREGATE INDUSTRIES UK LTD.
Neighbourhood Services,Technical Services,Supplies and Services,304221,Equipment and Materials,05-Sep-2014,2789351-20188302,"2,481.24",AGGREGATE INDUSTRIES UK LTD.
Neighbourhood Services,Technical Services,Supplies and Services,304221,Equipment and Materials,05-Sep-2014,2789351-20194420,662.88,AGGREGATE INDUSTRIES UK LTD.
Neighbourhood Services,Technical Services,Supplies and Services,304221,Equipment and Materials,05-Sep-2014,2789351-20207898,539.22,AGGREGATE INDUSTRIES UK LTD.
Neighbourhood Services,Technical Services,Supplies and Services,304221,Equipment and Materials,05-Sep-2014,2789351-20214407,"1,045.00",AGGREGATE INDUSTRIES UK LTD.
Neighbourhood Services,Technical Services,Supplies and Services,304221,Equipment and Materials,05-Sep-2014,2789351-20242245,"1,018.04",AGGREGATE INDUSTRIES UK LTD.
Neighbourhood Services,Technical Services,Supplies and Services,304221,Equipment and Materials,05-Sep-2014,2789351-20283950,"2,086.92",AGGREGATE INDUSTRIES UK LTD.
Children and Adult Services,Commissioning inc Supporting People,Debtors,930138,Debtor ISIS Residential Care Voids - CCG,05-Sep-2014,2789357-CAS-08-2014-263,"4,623.67",ALLIANCE CARE.
Regeneration & Economic Development,Transport and Contracted Services,Construction Work,908105,Construction work,05-Sep-2014,2789358-RED-09-2014-013,"12,035.20",ALLIED EXPLORATION & GEOTECHNICS LTD.
Neighbourhood Services,Technical Services,Stock,926900,Stock in hand-Inventory system,05-Sep-2014,2789362-922709764,987.40,ARCO LTD.
Children and Adult Services,Childrens Services,Supplies and Services,364352,Grants to Voluntary Organisations,05-Sep-2014,2789365-AHS00341,915.88,AUCKLAND HOME SOLUTIONS CIC.
Neighbourhood Services,Direct Services,Third Party Payments,430100,Rendered by Private Contractors,05-Sep-2014,2789368-28683,"2,572.00",AYCLIFFE FABRICATIONS LTD.
Neighbourhood Services,Culture & Sport,Premises,106082,Centrally Controlled Rep and Maint,05-Sep-2014,2789369-26204,833.50,BARR & WRAY LTD.
Children and Adult Services,Childrens Services,Third Party Payments,440016,Other Third Party Payments,05-Sep-2014,2789370-CAS-09-2014-209,500.00,BENNETT RICHMOND SOLICITORS.
Regeneration & Economic Development,Economic Development and Housing,Supplies and Services,338029,Services,05-Sep-2014,2789372-42,"9,677.59",BLUE SKY THINK LLP.
Neighbourhood Services,Culture & Sport,Supplies and Services,324117,Provisions,05-Sep-2014,2789378-840545809,589.80,CARLSBERG UK LTD.
Neighbourhood Services,Technical Services,Stock,926900,Stock in hand-Inventory system,05-Sep-2014,2789381-9950/01607825,"2,927.30",CERAMIC TILE DISTRIBUTORS (CTD).
Neighbourhood Services,Projects and Business services,Transport,215005,Running Costs of Vehicles,05-Sep-2014,2789382-2825864,"3,923.50",CERTAS ENERGY UK LTD.
Neighbourhood Services,Culture & Sport,Premises,120037,Energy Costs,05-Sep-2014,2789382-2867657,"1,465.50",CERTAS ENERGY UK LTD.
Neighbourhood Services,Projects and Business services,Transport,215005,Running Costs of Vehicles,05-Sep-2014,2789382-2936578,"3,168.50",CERTAS ENERGY UK LTD.
Children and Adult Services,Education,Supplies and Services,384199,Miscellaneous Expenses,05-Sep-2014,2789386-010,570.00,CLICT.
Children and Adult Services,Childrens Services,Third Party Payments,479101,Purchase of Care,05-Sep-2014,2789387-3910004475,"5,138.99",CO DURHAM & DARLINGTON NHS FOUNDATION TRUST.
Children and Adult Services,Childrens Services,Third Party Payments,479101,Purchase of Care,05-Sep-2014,2789387-3910004480,"4,125.59",CO DURHAM & DARLINGTON NHS FOUNDATION TRUST.
Children and Adult Services,Public Health,Premises,145009,Cleaning and Domestic Supplies,05-Sep-2014,2789387-3980005715,"1,603.12",CO DURHAM & DARLINGTON NHS FOUNDATION TRUST.
Neighbourhood Services,Neighbourhood central costs,Debtors,930017,Debtor-gas contract holding account,05-Sep-2014,2789390,"129,004.41",CORONA ENERGY RETAIL 2 LTD.
Regeneration & Economic Development,Economic Development and Housing,Premises,120021,Energy Costs,05-Sep-2014,2789390-09507126,595.35,CORONA ENERGY RETAIL 2 LTD.
Resources,I.C.T. Services,Stock,926900,Stock in hand-Inventory system,05-Sep-2014,2789397-146911424,920.52,DIVERSEY LTD.
Resources,I.C.T. Services,Supplies and Services,342051,Computers and Communications,05-Sep-2014,2789398-6869,"21,803.46",DOCUMATION SOFTWARE LTD.
Resources,Legal & Democratic Services,Creditors,952027,Creditor-lab grp-deds frm memb all,05-Sep-2014,2789409-RES-08-2014-018,"7,351.76",DURHAM COUNTY COUNCIL LABOUR GROUP.
Neighbourhood Services,Direct Services,Supplies and Services,304999,Equipment and Materials,05-Sep-2014,2789413-IN103084,"8,330.00",EGBERT H TAYLOR & CO LTD.
Children and Adult Services,Commissioning inc Supporting People,Debtors,930138,Debtor ISIS Residential Care Voids - CCG,05-Sep-2014,2789417-CAS-08-2014-259,"4,692.68",EMBRACE ALL LTD.
Children and Adult Services,Commissioning inc Supporting People,Debtors,930138,Debtor ISIS Residential Care Voids - CCG,05-Sep-2014,2789418-CAS-08-2014-258,"1,587.23",EMBRACE ALL LTD.
Neighbourhood Services,Projects and Business services,Third Party Payments,430114,Rendered by Private Contractors,05-Sep-2014,2789425-090766,"25,482.00",G O`BRIEN & SONS LTD.
Neighbourhood Services,Technical Services,Supplies and Services,304357,Equipment and Materials,05-Sep-2014,2789426-DCC240814,"18,081.09",GAP GROUP LTD.
Regeneration & Economic Development,Economic Development and Housing,Cap Exp on Grants & Other Financial Assistance (REFCUS),918401,Capital grants,05-Sep-2014,2789430-RED-08-2014-079,"23,625.00",GHENT BUILDING CONTRACTORS LTD.
Children and Adult Services,Education,Transfer Payments,510028,School Children,05-Sep-2014,2789432-CAS-08-2014-254,"30,000.00",GIANT STEPS LTD.
Neighbourhood Services,Direct Services,Supplies and Services,304221,Equipment and Materials,05-Sep-2014,2789436-J4406,"4,121.43",GROVE REED.
Children and Adult Services,Public Health,Employees,040001,Recruitment Instruction and Training,05-Sep-2014,2789440-PKGI/01719,"4,000.00",HEMMING GROUP LTD.
Children and Adult Services,Childrens Services,Premises,106080,Centrally Controlled Rep and Maint,05-Sep-2014,2789445-7080426146,829.87,HONEYWELL NOVAR SYSTEMS LTD.
Children and Adult Services,Childrens Services,Premises,108099,Service Repairs and Maintenance,05-Sep-2014,2789445-7080426158,"4,662.77",HONEYWELL NOVAR SYSTEMS LTD.
Neighbourhood Services,Direct Services,Premises,108099,Service Repairs and Maintenance,05-Sep-2014,2789445-7080426142,"1,648.95",HONEYWELL NOVAR SYSTEMS LTD.
Neighbourhood Services,Culture & Sport,Premises,106080,Centrally Controlled Rep and Maint,05-Sep-2014,2789445-7080426152,813.61,HONEYWELL NOVAR SYSTEMS LTD.
Neighbourhood Services,Direct Services,Premises,106080,Centrally Controlled Rep and Maint,05-Sep-2014,2789445-7080426159,"4,068.25",HONEYWELL NOVAR SYSTEMS LTD.
Neighbourhood Services,Culture & Sport,Premises,106080,Centrally Controlled Rep and Maint,05-Sep-2014,2789445-7080426348,"7,208.53",HONEYWELL NOVAR SYSTEMS LTD.
Dedicated Schools Grant,Dedicated Schools Grant,Third Party Payments,425005,Rendered by Voluntary Organisations,05-Sep-2014,2789448-3053,"3,520.00",HOWARD HOUSE CARE LTD.
Dedicated Schools Grant,Dedicated Schools Grant,Third Party Payments,425005,Rendered by Voluntary Organisations,05-Sep-2014,2789448-3061,"3,520.00",HOWARD HOUSE CARE LTD.
Dedicated Schools Grant,Dedicated Schools Grant,Third Party Payments,425005,Rendered by Voluntary Organisations,05-Sep-2014,2789448-3069,"3,520.00",HOWARD HOUSE CARE LTD.
Dedicated Schools Grant,Dedicated Schools Grant,Third Party Payments,425005,Rendered by Voluntary Organisations,05-Sep-2014,2789448-3070,"3,520.00",HOWARD HOUSE CARE LTD.
Dedicated Schools Grant,Dedicated Schools Grant,Transfer Payments,510032,School Children,05-Sep-2014,2789449-CAS-09-2014-214,"2,400.00",HOWDEN LE WEAR PRE SCHOOL LTD.
Neighbourhood Services,Direct Services,Premises,115125,Repairs to Grounds,05-Sep-2014,2789450-B33/0071566,896.69,HOWDENS JOINERY LTD.
Neighbourhood Services,Direct Services,Premises,115125,Repairs to Grounds,05-Sep-2014,2789450-B33/0071584,912.83,HOWDENS JOINERY LTD.
Neighbourhood Services,Direct Services,Supplies and Services,304221,Equipment and Materials,05-Sep-2014,2789450-B33/0071649,899.67,HOWDENS JOINERY LTD.
Neighbourhood Services,Technical Services,Supplies and Services,304221,Equipment and Materials,05-Sep-2014,2789468-9030806760,529.50,LAFARGE TARMAC TRADING LTD.
Neighbourhood Services,Technical Services,Supplies and Services,304221,Equipment and Materials,05-Sep-2014,2789468-9031451320,619.22,LAFARGE TARMAC TRADING LTD.
Neighbourhood Services,Technical Services,Supplies and Services,304221,Equipment and Materials,05-Sep-2014,2789468-9031456852,"1,335.60",LAFARGE TARMAC TRADING LTD.
Neighbourhood Services,Technical Services,Supplies and Services,304221,Equipment and Materials,05-Sep-2014,2789468-9031462272,602.80,LAFARGE TARMAC TRADING LTD.
Neighbourhood Services,Technical Services,Supplies and Services,304221,Equipment and Materials,05-Sep-2014,2789468-9031462273,"1,669.50",LAFARGE TARMAC TRADING LTD.
Neighbourhood Services,Technical Services,Supplies and Services,304221,Equipment and Materials,05-Sep-2014,2789468-9031479777,"1,780.80",LAFARGE TARMAC TRADING LTD.
Children and Adult Services,Education,Transport,230007,Contract Hire,05-Sep-2014,2789469-20322,"5,018.79",LEE`S COACHES LTD.
Neighbourhood Services,Direct Services,Supplies and Services,304221,Equipment and Materials,05-Sep-2014,2789473-NE137869,664.94,LLOYD WORRALL (NEWCASTLE UPON TYNE) LTD.
Neighbourhood Services,Direct Services,Supplies and Services,304221,Equipment and Materials,05-Sep-2014,2789473-NE137881,"1,631.66",LLOYD WORRALL (NEWCASTLE UPON TYNE) LTD.
Neighbourhood Services,Direct Services,Supplies and Services,304221,Equipment and Materials,05-Sep-2014,2789474-3363496,"1,040.13",LONDON GENERAL SALES LTD.
Children and Adult Services,Education,Construction Work,908105,Construction work,05-Sep-2014,2789475-13516,"1,530.00",LUCION ENVIRONMENTAL LLP LTD.
Neighbourhood Services,Direct Services,Third Party Payments,430100,Rendered by Private Contractors,05-Sep-2014,2789476-3320,"2,971.00",LYNCH HEALTHCARE LTD.
Assistant Chief Executive,Partnerships & Community Engagement Div.,Construction Work,908105,Construction work,05-Sep-2014,2789479,"105,765.22",MGL DEMOLITION LTD.
Resources,I.C.T. Services,Supplies and Services,304303,Equipment and Materials,05-Sep-2014,2789480-0000083253,"4,998.00",MILLENNIUM BUSINESS SYSTEMS LTD.
Resources,I.C.T. Services,Supplies and Services,304303,Equipment and Materials,05-Sep-2014,2789480-0000083260,"1,949.00",MILLENNIUM BUSINESS SYSTEMS LTD.
Resources,Legal & Democratic Services,Supplies and Services,340001,Postages,05-Sep-2014,2789484-RES-08-2014-038,"1,258.55",MR ANDREW TWEDDLE.
RED HRA,Housing Revenue Account,Supplies and Services,338066,Services,05-Sep-2014,2789493-DCC-1598-0814-NL,"39,863.64",NEPRO LTD.
RED HRA,Housing Revenue Account,Supplies and Services,338066,Services,05-Sep-2014,2789493-DDC01591-0714-NL,"11,412.50",NEPRO LTD.
Assistant Chief Executive,Partnerships & Community Engagement Div.,Cap Exp on Grants & Other Financial Assistance (REFCUS),918004,Contributions to other bodies,05-Sep-2014,2789494,"4,000.00",NETTLESWORTH YOUTHIE.
Children and Adult Services,Head of Adults,Supplies and Services,308011,Furniture,05-Sep-2014,2789495-2860,"1,943.00",NEWAVE FURNITURE DESIGN.
Dedicated Schools Grant,Dedicated Schools Grant,Third Party Payments,440080,Other Third Party Payments,05-Sep-2014,2789496-M0016989,"36,000.00",NEWCASTLE COLLEGE.
Children and Adult Services,Public Health,Third Party Payments,460803,Contract Payments,05-Sep-2014,2789499-DDPCTI045,"6,350.00",NORTH 51 LTD.
Children and Adult Services,Head of Adults,Third Party Payments,440080,Other Third Party Payments,05-Sep-2014,2789500-0000018396,"40,216.95",NORTH EAST AUTISM SOCIETY.
Children and Adult Services,Education,Supplies and Services,338089,Services,05-Sep-2014,2789503-800116193,"1,275.10",NORTH SOMERSET COUNCIL.
Neighbourhood Services,Technical Services,Construction Work,908202,Capital - Public Utilities - Telephones Services,05-Sep-2014,2789510-A129691,"34,066.44",OPENREACH LLU.
Neighbourhood Services,Direct Services,Supplies and Services,304221,Equipment and Materials,05-Sep-2014,2789512-555957,"2,251.00",P & N ASSOCIATES LTD.
Children and Adult Services,Commissioning inc Supporting People,Debtors,930138,Debtor ISIS Residential Care Voids - CCG,05-Sep-2014,2789515-CAS-08-2014-261,690.10,PELTON GRANGE CARE HOME.
Children and Adult Services,Commissioning inc Supporting People,Debtors,930138,Debtor ISIS Residential Care Voids - CCG,05-Sep-2014,2789516-CAS-08-2014-264,"2,829.41",PERFECT CARE LTD T/A BELMONT GRANGE CARE HOME.
Neighbourhood Services,Direct Services,Supplies and Services,304221,Equipment and Materials,05-Sep-2014,2789518-4120169470,985.30,PLUMBING TRADE SUPPLIES LTD.
Neighbourhood Services,Direct Services,Supplies and Services,304221,Equipment and Materials,05-Sep-2014,2789518-4120169514,"1,019.33",PLUMBING TRADE SUPPLIES LTD.
Resources,I.C.T. Services,Supplies and Services,332029,Printing Stationery and Gen Off Exps,05-Sep-2014,2789520-607394,"5,168.97",POTTS PRINTERS LTD.
Children and Adult Services,Public Health,Third Party Payments,460802,Contract Payments,05-Sep-2014,2789522-1419,"1,020.00",PYGALL COACH HIRE.
RED HRA,HRA Centrally Managed,Supplies and Services,384999,Miscellaneous Expenses,05-Sep-2014,2789485-1051228,"1,234.93",REDACTED - PAYMENT TO INDIVIDUAL
RED HRA,HRA Centrally Managed,Supplies and Services,384999,Miscellaneous Expenses,05-Sep-2014,2789487-1059046008,730.65,REDACTED - PAYMENT TO INDIVIDUAL
Children and Adult Services,Head of Adults,Supplies and Services,308011,Furniture,05-Sep-2014,2789527-CLG1741,569.85,RENDLES HOUSE FURNISHER.
Children and Adult Services,Education,Fees,901002,Professional fees,05-Sep-2014,2789531-CDM/14/50/MP/DS,540.00,RNJ PARTNERSHIP LLP.
Children and Adult Services,Education,Fees,901002,Professional fees,05-Sep-2014,2789531-CDM/14/52/MP/DS,540.00,RNJ PARTNERSHIP LLP.
Neighbourhood Services,Direct Services,Third Party Payments,430100,Rendered by Private Contractors,05-Sep-2014,2789535-AUG3014,728.56,RW CHICKEN (SCAFFOLDING) LTD.
Children and Adult Services,Childrens Services,Premises,108135,Service Repairs and Maintenance,05-Sep-2014,2789536-566,650.00,S NICHOLSON & SONS.
Neighbourhood Services,Culture & Sport,Supplies and Services,384199,Miscellaneous Expenses,05-Sep-2014,2789537-2514,660.00,SALLYANNE FLEMONS.
Regeneration & Economic Development,Economic Development and Housing,Premises,106099,Centrally Controlled Rep and Maint,05-Sep-2014,2789539-96039858,"1,497.05",SCHNEIDER ELECTRIC LTD.
Resources,I.C.T. Services,Supplies and Services,342051,Computers and Communications,05-Sep-2014,2789540-140807,500.00,SPHERE INTERNATIONAL LTD.
Children and Adult Services,Head of Adults,Cap Exp on Grants & Other Financial Assistance (REFCUS),918401,Capital grants,05-Sep-2014,2789545-CAS-08-2014-269,"1,500.00",SUNDERLAND NORTH FAMILY ZONE.
Children and Adult Services,Education,Transfer Payments,510028,School Children,05-Sep-2014,2789546-CAS-08-2014-200,"1,213.20",SUNSHINE DAY NURSERY.
Neighbourhood Services,Direct Services,Supplies and Services,304221,Equipment and Materials,05-Sep-2014,2789550-1277202,614.00,T CROSSLING & CO LTD.
Children and Adult Services,Commissioning inc Supporting People,Debtors,930138,Debtor ISIS Residential Care Voids - CCG,05-Sep-2014,2789551-CAS-08-2014-262,"1,311.19",TAMARIS HEALTHCARE LTD.
Neighbourhood Services,Culture & Sport,Supplies and Services,384199,Miscellaneous Expenses,05-Sep-2014,2789552-140703,900.00,TEAM PLAYERS THEATRE CO.
Children and Adult Services,Education,Transfer Payments,510028,School Children,05-Sep-2014,2789554-CAS-08-2014-285,"10,000.00",THE LAURELS CHILD CARE.
RED HRA,HRA Capital,Construction Work,908105,Construction work,05-Sep-2014,2789559-SIP-129055,710.00,THYSSENKRUPP ENCASA A DIVISION OF THYSSENKRUPP ACCESS LTD.
Neighbourhood Services,Technical Services,Supplies and Services,304358,Equipment and Materials,05-Sep-2014,2789561-118B,"1,755.00",TN WILSON.
Neighbourhood Services,Direct Services,Supplies and Services,304259,Equipment and Materials,05-Sep-2014,2789562-INV-6259,"1,110.00",TOTAL ID LTD.
Neighbourhood Services,Technical Services,Supplies and Services,304221,Equipment and Materials,05-Sep-2014,2789564-137160,734.38,TYNEDALE ROADSTONE LTD.
Neighbourhood Services,Technical Services,Supplies and Services,304221,Equipment and Materials,05-Sep-2014,2789564-137164,995.27,TYNEDALE ROADSTONE LTD.
Neighbourhood Services,Technical Services,Supplies and Services,304221,Equipment and Materials,05-Sep-2014,2789564-138988,985.17,TYNEDALE ROADSTONE LTD.
Neighbourhood Services,Culture & Sport,Supplies and Services,338032,Services,05-Sep-2014,2789566-9100057056,"19,375.00",UNIVERSITY OF NEWCASTLE UPON TYNE.
Neighbourhood Services,Direct Services,Third Party Payments,430100,Rendered by Private Contractors,05-Sep-2014,2789567-2438,"18,047.53",UPNORTH FOODSERVICE EQUIPMENT LTD.
Neighbourhood Services,Direct Services,Third Party Payments,430100,Rendered by Private Contractors,05-Sep-2014,2789567-2439,"20,959.84",UPNORTH FOODSERVICE EQUIPMENT LTD.
Children and Adult Services,Education,Transfer Payments,510028,School Children,05-Sep-2014,2789568-CAS-08-2014-202,"1,927.20",USHAW MOOR PRE SCHOOL.
Neighbourhood Services,Culture & Sport,Supplies and Services,384199,Miscellaneous Expenses,05-Sep-2014,2789570-140717,614.40,VIN GARBUTT LTD.
Resources,I.C.T. Services,Debtors,930168,Debtor - Mobile Telephone Holding Account,05-Sep-2014,2789571-72700248,"16,018.92",VODAFONE CORPORATE LTD.
RED HRA,HRA Capital,Construction Work,908105,Construction work,05-Sep-2014,2789572-B50370-3,"83,423.98",WATES CONSTRUCTION LTD.
RED HRA,HRA Capital,Construction Work,908105,Construction work,05-Sep-2014,2789572-B50371-2,"181,894.00",WATES CONSTRUCTION LTD.
RED HRA,HRA Capital,Construction Work,908105,Construction work,05-Sep-2014,2789572-B50383-11,"12,308.25",WATES CONSTRUCTION LTD.
RED HRA,HRA Capital,Construction Work,908105,Construction work,05-Sep-2014,2789572-B50386-6,"2,050.77",WATES CONSTRUCTION LTD.
RED HRA,HRA Capital,Construction Work,908105,Construction work,05-Sep-2014,2789572-B50393-8,"28,618.80",WATES CONSTRUCTION LTD.
RED HRA,HRA Capital,Construction Work,908105,Construction work,05-Sep-2014,2789572-B50399-4,"30,570.34",WATES CONSTRUCTION LTD.
RED HRA,HRA Capital,Construction Work,908105,Construction work,05-Sep-2014,2789572-B50400-3,"5,735.80",WATES CONSTRUCTION LTD.
RED HRA,HRA Capital,Construction Work,908105,Construction work,05-Sep-2014,2789572-B50401-2,"118,367.71",WATES CONSTRUCTION LTD.
Children and Adult Services,Central Charges,Debtors,930170,CDDFT Winter Pressures Placements,05-Sep-2014,2789573-302-1083966,"1,857.24",WESTERLEIGH NURSING HOME.
Children and Adult Services,Central Charges,Debtors,930170,CDDFT Winter Pressures Placements,05-Sep-2014,2789573-302-1086408,"1,790.91",WESTERLEIGH NURSING HOME.
Children and Adult Services,Central Charges,Debtors,930170,CDDFT Winter Pressures Placements,05-Sep-2014,2789573-302-1086409,"1,857.24",WESTERLEIGH NURSING HOME.
Children and Adult Services,Central Charges,Debtors,930170,CDDFT Winter Pressures Placements,05-Sep-2014,2789573-302-1087758,"1,857.24",WESTERLEIGH NURSING HOME.
Children and Adult Services,Central Charges,Debtors,930170,CDDFT Winter Pressures Placements,05-Sep-2014,2789574-302-1080856,"1,790.91",WESTERLEIGH NURSING HOME.
Children and Adult Services,Central Charges,Debtors,930170,CDDFT Winter Pressures Placements,05-Sep-2014,2789574-302-1080870,"1,857.24",WESTERLEIGH NURSING HOME.
Children and Adult Services,Central Charges,Debtors,930170,CDDFT Winter Pressures Placements,05-Sep-2014,2789574-302-1082086,"1,193.94",WESTERLEIGH NURSING HOME.
Children and Adult Services,Central Charges,Debtors,930170,CDDFT Winter Pressures Placements,05-Sep-2014,2789574-302-1082088,"1,260.27",WESTERLEIGH NURSING HOME.
Children and Adult Services,Central Charges,Debtors,930170,CDDFT Winter Pressures Placements,05-Sep-2014,2789574-302-1083971,"1,857.24",WESTERLEIGH NURSING HOME.
Regeneration & Economic Development,Economic Development and Housing,Construction Work,908105,Construction work,05-Sep-2014,2789577-107421/M,"2,563.20",WYBONE LTD.
RED HRA,HRA Capital,Construction Work,908105,Construction work,05-Sep-2014,2789580-31920,"3,632.09",YWC GROUP LTD.
Resources,Legal & Democratic Services,Supplies and Services,340001,Postages,08-Sep-2014,2789585-IS1238726,"2,046.91",ADARE INSPIRED COMMUNICATIONS.
Resources,Legal & Democratic Services,Supplies and Services,340001,Postages,08-Sep-2014,2789585-IS1238786,"8,091.54",ADARE INSPIRED COMMUNICATIONS.
Children and Adult Services,Childrens Services,Supplies and Services,384237,Miscellaneous Expenses,08-Sep-2014,2789586-830-G,691.33,ADVENTURE VALLEY LTD.
Neighbourhood Services,Technical Services,Supplies and Services,304221,Equipment and Materials,08-Sep-2014,2789587-19614771,"3,008.52",AGGREGATE INDUSTRIES UK LTD.
Children and Adult Services,Childrens Services,Supplies and Services,304259,Equipment and Materials,08-Sep-2014,2789588-AYCLIFFE,555.00,AIRWAVE EUROPE LTD.
Neighbourhood Services,Projects and Business services,Fees,901002,Professional fees,08-Sep-2014,2789603-14020831,"7,500.00",ATKINS GLOBAL.
Neighbourhood Services,Projects and Business services,Fees,901002,Professional fees,08-Sep-2014,2789603-14020841,"4,850.00",ATKINS GLOBAL.
Neighbourhood Services,Direct Services,Third Party Payments,430100,Rendered by Private Contractors,08-Sep-2014,2789605-4732,"2,736.00",ATLAS WASHROOM SYSTEMS LTD.
Neighbourhood Services,Direct Services,Third Party Payments,430100,Rendered by Private Contractors,08-Sep-2014,2789605-4733,"2,945.00",ATLAS WASHROOM SYSTEMS LTD.
Neighbourhood Services,Direct Services,Third Party Payments,430100,Rendered by Private Contractors,08-Sep-2014,2789607-1440,"2,888.00",AWR ROOFING & ALUMIN RAINWATER SYSTEMS LTD.
Regeneration & Economic Development,Economic Development and Housing,Supplies and Services,338029,Services,08-Sep-2014,2789622-43,"10,462.59",BLUE SKY THINK LLP.
Neighbourhood Services,Direct Services,Transport,210057,Repair and Maintenance of Vehicles,08-Sep-2014,2789634-INV076022,630.00,BUS & TRUCK PARTS (NORTH EAST) LTD.
Neighbourhood Services,Direct Services,Transport,210057,Repair and Maintenance of Vehicles,08-Sep-2014,2789634-INV076140,570.00,BUS & TRUCK PARTS (NORTH EAST) LTD.
Children and Adult Services,Head of Adults,Supplies and Services,338366,Services,08-Sep-2014,2789640-18703,"1,265.00",CARE ABILITY.
Children and Adult Services,Head of Adults,Supplies and Services,338366,Services,08-Sep-2014,2789640-18704,"1,509.58",CARE ABILITY.
Children and Adult Services,Childrens Services,Supplies and Services,364999,Grants to Voluntary Organisations,08-Sep-2014,2789650-CAS-08-2014-276,"2,500.00",CIRCLE CREW FOR CHANGE LTD.
Neighbourhood Services,Technical Services,Premises,150015,Apportioned Exps of Operational Blds,08-Sep-2014,2789652-1633,862.47,CLEE HILL PLANT LTD.
Neighbourhood Services,Technical Services,Premises,150015,Apportioned Exps of Operational Blds,08-Sep-2014,2789652-1634,862.47,CLEE HILL PLANT LTD.
Neighbourhood Services,Technical Services,Premises,150015,Apportioned Exps of Operational Blds,08-Sep-2014,2789652-1635,862.47,CLEE HILL PLANT LTD.
Neighbourhood Services,Technical Services,Premises,150015,Apportioned Exps of Operational Blds,08-Sep-2014,2789652-1636,862.47,CLEE HILL PLANT LTD.
Children and Adult Services,Childrens Services,Third Party Payments,479101,Purchase of Care,08-Sep-2014,2789656-3910004829,"1,383.53",CO DURHAM & DARLINGTON NHS FOUNDATION TRUST.
Neighbourhood Services,Technical Services,Third Party Payments,430100,Rendered by Private Contractors,08-Sep-2014,2789675-N004723,624.00,D DRILL (MASTER DRILLERS) LTD.
Neighbourhood Services,Direct Services,Third Party Payments,430100,Rendered by Private Contractors,08-Sep-2014,2789684-K16381,"2,395.00",DELTA ELECTRICAL & MECHANICAL SERVICES.
Neighbourhood Services,Direct Services,Third Party Payments,430100,Rendered by Private Contractors,08-Sep-2014,2789684-K16382,"2,395.00",DELTA ELECTRICAL & MECHANICAL SERVICES.
Neighbourhood Services,Direct Services,Supplies and Services,304221,Equipment and Materials,08-Sep-2014,2789684-K16519,"2,595.00",DELTA ELECTRICAL & MECHANICAL SERVICES.
Neighbourhood Services,Direct Services,Supplies and Services,304221,Equipment and Materials,08-Sep-2014,2789684-K16521,"2,595.00",DELTA ELECTRICAL & MECHANICAL SERVICES.
Neighbourhood Services,Direct Services,Supplies and Services,304221,Equipment and Materials,08-Sep-2014,2789699-059-148773,609.00,EDMUNDSON ELECTRICAL LTD.
Neighbourhood Services,Projects and Business services,Third Party Payments,430120,Rendered by Private Contractors,08-Sep-2014,2789709-SINV8608257,"4,966.00",FINNING (UK) LTD.
Neighbourhood Services,Projects and Business services,Third Party Payments,430120,Rendered by Private Contractors,08-Sep-2014,2789709-SINV8608259,616.00,FINNING (UK) LTD.
Neighbourhood Services,Direct Services,Supplies and Services,304221,Equipment and Materials,08-Sep-2014,2789713-NO1011587,"3,207.96",FLOGAS RENEWABLES.
Neighbourhood Services,Direct Services,Third Party Payments,430100,Rendered by Private Contractors,08-Sep-2014,2789721-SIGN/00000208,"9,795.33",GENTOO CONSTRUCTION LTD.
Neighbourhood Services,Direct Services,Transport,230005,Contract Hire,08-Sep-2014,2789722-9720,517.50,GEORGE VARDY HAULAGE.
Neighbourhood Services,Technical Services,Supplies and Services,304358,Equipment and Materials,08-Sep-2014,2789722-9722,"3,273.75",GEORGE VARDY HAULAGE.
Neighbourhood Services,Technical Services,Supplies and Services,304358,Equipment and Materials,08-Sep-2014,2789722-9723,730.00,GEORGE VARDY HAULAGE.
Neighbourhood Services,Technical Services,Supplies and Services,304358,Equipment and Materials,08-Sep-2014,2789722-9724,"1,652.36",GEORGE VARDY HAULAGE.
Neighbourhood Services,Technical Services,Supplies and Services,304358,Equipment and Materials,08-Sep-2014,2789722-9725,600.00,GEORGE VARDY HAULAGE.
Neighbourhood Services,Direct Services,Transport,230005,Contract Hire,08-Sep-2014,2789722-9727,"2,030.00",GEORGE VARDY HAULAGE.
Neighbourhood Services,Technical Services,Supplies and Services,304358,Equipment and Materials,08-Sep-2014,2789722-9734,690.00,GEORGE VARDY HAULAGE.
Neighbourhood Services,Technical Services,Supplies and Services,304358,Equipment and Materials,08-Sep-2014,2789722-9735,670.00,GEORGE VARDY HAULAGE.
Neighbourhood Services,Technical Services,Supplies and Services,304358,Equipment and Materials,08-Sep-2014,2789722-9736,"2,215.52",GEORGE VARDY HAULAGE.
Neighbourhood Services,Technical Services,Supplies and Services,304358,Equipment and Materials,08-Sep-2014,2789722-9738,690.00,GEORGE VARDY HAULAGE.
Neighbourhood Services,Technical Services,Supplies and Services,304358,Equipment and Materials,08-Sep-2014,2789722-9741,"1,040.00",GEORGE VARDY HAULAGE.
Neighbourhood Services,Technical Services,Supplies and Services,304358,Equipment and Materials,08-Sep-2014,2789722-9742,"1,040.00",GEORGE VARDY HAULAGE.
Neighbourhood Services,Technical Services,Supplies and Services,304358,Equipment and Materials,08-Sep-2014,2789722-9743,730.00,GEORGE VARDY HAULAGE.
Neighbourhood Services,Technical Services,Supplies and Services,304358,Equipment and Materials,08-Sep-2014,2789722-9753,730.00,GEORGE VARDY HAULAGE.
Neighbourhood Services,Technical Services,Supplies and Services,304358,Equipment and Materials,08-Sep-2014,2789722-9757,"1,153.26",GEORGE VARDY HAULAGE.
Neighbourhood Services,Technical Services,Supplies and Services,304358,Equipment and Materials,08-Sep-2014,2789722-9758,"1,449.26",GEORGE VARDY HAULAGE.
Neighbourhood Services,Technical Services,Supplies and Services,304358,Equipment and Materials,08-Sep-2014,2789722-9759,"1,184.00",GEORGE VARDY HAULAGE.
Neighbourhood Services,Technical Services,Supplies and Services,304358,Equipment and Materials,08-Sep-2014,2789722-9760,"1,443.50",GEORGE VARDY HAULAGE.
Neighbourhood Services,Technical Services,Supplies and Services,304358,Equipment and Materials,08-Sep-2014,2789722-9762,"1,176.00",GEORGE VARDY HAULAGE.
Neighbourhood Services,Technical Services,Supplies and Services,304358,Equipment and Materials,08-Sep-2014,2789722-9763,730.00,GEORGE VARDY HAULAGE.
Neighbourhood Services,Technical Services,Supplies and Services,304358,Equipment and Materials,08-Sep-2014,2789722-9764,690.00,GEORGE VARDY HAULAGE.
Neighbourhood Services,Technical Services,Supplies and Services,304358,Equipment and Materials,08-Sep-2014,2789722-9775,730.00,GEORGE VARDY HAULAGE.
Neighbourhood Services,Technical Services,Supplies and Services,304358,Equipment and Materials,08-Sep-2014,2789722-9777,"1,100.00",GEORGE VARDY HAULAGE.
Neighbourhood Services,Technical Services,Supplies and Services,304358,Equipment and Materials,08-Sep-2014,2789722-9778,"1,378.50",GEORGE VARDY HAULAGE.
Neighbourhood Services,Technical Services,Supplies and Services,304358,Equipment and Materials,08-Sep-2014,2789723-9719,730.00,GEORGE VARDY HAULAGE.
RED HRA,Housing Revenue Account,Supplies and Services,338027,Services,08-Sep-2014,2789724-GDC/14/158,"8,352.60",GERALD DAVIES CONSULTING LTD.
Children and Adult Services,Childrens Services,Supplies and Services,336005,Advertising,08-Sep-2014,2789726-1405232/7,"3,993.81",GLOBAL RADIO SERVICES LTD.
Neighbourhood Services,Direct Services,Stock,926004,Stock,08-Sep-2014,2789728-116624,"1,028.51",GREENLAY (GRASS MACHINERY) LTD.
Neighbourhood Services,Culture & Sport,Supplies and Services,338047,Services,08-Sep-2014,2789730-FBC676,600.00,GROWLING CLOWN.
Neighbourhood Services,Direct Services,Stock,926004,Stock,08-Sep-2014,2789735-695810,"19,141.20",HARVEST ENERGY LTD.
Neighbourhood Services,Direct Services,Stock,926004,Stock,08-Sep-2014,2789735-697639,"16,969.60",HARVEST ENERGY LTD.
Neighbourhood Services,Direct Services,Stock,926004,Stock,08-Sep-2014,2789735-697918,"14,813.07",HARVEST ENERGY LTD.
Neighbourhood Services,Direct Services,Stock,926004,Stock,08-Sep-2014,2789735-697919,"16,090.20",HARVEST ENERGY LTD.
Neighbourhood Services,Direct Services,Stock,926004,Stock,08-Sep-2014,2789735-697921,"20,965.90",HARVEST ENERGY LTD.
Neighbourhood Services,Direct Services,Stock,926004,Stock,08-Sep-2014,2789735-697922,"2,156.80",HARVEST ENERGY LTD.
Neighbourhood Services,Direct Services,Stock,926004,Stock,08-Sep-2014,2789735-697944,"19,074.60",HARVEST ENERGY LTD.
Neighbourhood Services,Direct Services,Stock,926004,Stock,08-Sep-2014,2789735-697945,"3,877.90",HARVEST ENERGY LTD.
Children and Adult Services,Childrens Services,Supplies and Services,352001,Conference Expenses,08-Sep-2014,2789736-920095,"3,060.00",HEART OF ENGLAND NHS FOUNDATION TRUST.
Children and Adult Services,Education,Supplies and Services,304245,Equipment and Materials,08-Sep-2014,2789741-P-7184,556.00,HIRE EDUCATION LTD T/A STARBECK EDUCATIONAL RESOURCES.
Neighbourhood Services,Projects and Business services,Third Party Payments,430113,Rendered by Private Contractors,08-Sep-2014,2789746-W142201,"257,982.44",HW MARTIN WASTE LTD.
Neighbourhood Services,Technical Services,Stock,926900,Stock in hand-Inventory system,08-Sep-2014,2789747-085650,"4,813.62",HYDRAM ENGINEERING LTD.
Neighbourhood Services,Technical Services,Stock,926900,Stock in hand-Inventory system,08-Sep-2014,2789747-085756,"10,516.38",HYDRAM ENGINEERING LTD.
Children and Adult Services,Education,Transport,230008,Contract Hire,08-Sep-2014,2789749-107,"1,632.40",I CLYDESDALE T/A BURNOPFIELD TAXIS.
Neighbourhood Services,Culture & Sport,Third Party Payments,430100,Rendered by Private Contractors,08-Sep-2014,2789750-1764,"3,535.00",IAN ADAMSON T/A COMPLETE WEED CONTROL (TYNE & WEAR).
Neighbourhood Services,Direct Services,Vehicles Equipment Furniture and Fittings,912541,Purchase-vehicles,08-Sep-2014,2789758-4029,"3,500.00",J WATSON HAULAGE LTD.
Children and Adult Services,Education,Third Party Payments,440999,Other Third Party Payments,08-Sep-2014,2789761-JD/DCC/1210,"18,524.80",JACK DRUM ARTS LTD.
Children and Adult Services,Head of Adults,Transport,230005,Contract Hire,08-Sep-2014,2789765-2014/17,865.00,JM HUMBLE COACH HIRE.
Neighbourhood Services,Technical Services,Supplies and Services,304221,Equipment and Materials,08-Sep-2014,2789767-1312238,"15,500.00",JOHN NIXON LTD.
Neighbourhood Services,Technical Services,Third Party Payments,430100,Rendered by Private Contractors,08-Sep-2014,2789771-0076,"23,166.00",JOSHUA THOMAS CONSTRUCTION LTD.
Neighbourhood Services,Technical Services,Third Party Payments,430100,Rendered by Private Contractors,08-Sep-2014,2789771-0077,"23,166.00",JOSHUA THOMAS CONSTRUCTION LTD.
Neighbourhood Services,Technical Services,Stock,926900,Stock in hand-Inventory system,08-Sep-2014,2789773-STI406775/D,"1,777.50",JT DOVE LTD.
Neighbourhood Services,Direct Services,Supplies and Services,304221,Equipment and Materials,08-Sep-2014,2789773-STI406784,"1,668.50",JT DOVE LTD.
Neighbourhood Services,Technical Services,Third Party Payments,430100,Rendered by Private Contractors,08-Sep-2014,2789774-3242,"4,950.00",KAEFER C & D - KD SCAFFOLDING DIVISION.
Neighbourhood Services,Technical Services,Supplies and Services,304221,Equipment and Materials,08-Sep-2014,2789781-9031474709,"1,335.60",LAFARGE TARMAC TRADING LTD.
Neighbourhood Services,Direct Services,Supplies and Services,304221,Equipment and Materials,08-Sep-2014,2789802-0000053827,844.16,MIKROFILL SYSTEMS LTD.
Neighbourhood Services,Direct Services,Premises,108135,Service Repairs and Maintenance,08-Sep-2014,2789814-DL1841,676.00,NBC BIRD & PEST SOLUTIONS LTD.
Neighbourhood Services,Direct Services,Third Party Payments,430100,Rendered by Private Contractors,08-Sep-2014,2789815-213,588.21,NE GREEN WASTE RECYCLING LTD.
Neighbourhood Services,Direct Services,Third Party Payments,430100,Rendered by Private Contractors,08-Sep-2014,2789815-214,"1,027.20",NE GREEN WASTE RECYCLING LTD.
Regeneration & Economic Development,Economic Development and Housing,Supplies and Services,308011,Furniture,08-Sep-2014,2789817-8204,550.00,NELSONS OF DURHAM.
Regeneration & Economic Development,Economic Development and Housing,Supplies and Services,384199,Miscellaneous Expenses,08-Sep-2014,2789819-NM29926,960.00,NEW MIND INTERNET CONSULTANCY LTD.
Neighbourhood Services,Direct Services,Third Party Payments,430100,Rendered by Private Contractors,08-Sep-2014,2789828-1365343,"4,161.52",NORTH EAST TRUCK & VAN LTD.
Regeneration & Economic Development,Spatial Policy Planning Assets & Environment,Construction Work,908105,Construction work,08-Sep-2014,2789829,"5,483.00",NORTHERN POWERGRID (NORTHEAST) LTD.
Neighbourhood Services,Direct Services,Supplies and Services,304221,Equipment and Materials,08-Sep-2014,2789836-0000267634,508.57,OVENTROP UK LTD.
Neighbourhood Services,Direct Services,Third Party Payments,430100,Rendered by Private Contractors,08-Sep-2014,2789838-298,500.00,PARAMOUNT CEILINGS & PARTITIONS.
Neighbourhood Services,Direct Services,Transport,230005,Contract Hire,08-Sep-2014,2789854-INV/24296A,"3,230.00",PREMIER TRUCK HIRE LTD.
Neighbourhood Services,Direct Services,Transport,230005,Contract Hire,08-Sep-2014,2789854-INV/24304A,"3,910.00",PREMIER TRUCK HIRE LTD.
Neighbourhood Services,Direct Services,Stock,926004,Stock,08-Sep-2014,2789864-713548,819.56,RICKERBY LTD.
Neighbourhood Services,Direct Services,Vehicles Equipment Furniture and Fittings,912541,Purchase-vehicles,08-Sep-2014,2789879-10023134,"12,267.78",S JENNINGS LTD.
Neighbourhood Services,Direct Services,Transport,230005,Contract Hire,08-Sep-2014,2789886-10507026,"1,240.00",SHB HIRE LTD.
Neighbourhood Services,Direct Services,Transport,230005,Contract Hire,08-Sep-2014,2789886-10507027,"1,240.00",SHB HIRE LTD.
Assistant Chief Executive,Partnerships & Community Engagement Div.,Transfer Payments,525030,Other,08-Sep-2014,2789888-51/218,"6,680.56",SHOPJACKET LTD.
Children and Adult Services,Childrens Services,Supplies and Services,364999,Grants to Voluntary Organisations,08-Sep-2014,2789905-CAS-08-2014-251,"3,393.00",STANHOPE COMMUNITY CENTRE.
Children and Adult Services,Childrens Services,Supplies and Services,364353,Grants to Voluntary Organisations,08-Sep-2014,2789910-217,918.92,STONHAM HOUSING ASSOCIATION LTD.
Neighbourhood Services,Direct Services,Supplies and Services,304221,Equipment and Materials,08-Sep-2014,2789915-1270313,"2,228.78",T CROSSLING & CO LTD.
Neighbourhood Services,Direct Services,Supplies and Services,304221,Equipment and Materials,08-Sep-2014,2789915-1270314,"1,290.18",T CROSSLING & CO LTD.
Neighbourhood Services,Direct Services,Supplies and Services,304221,Equipment and Materials,08-Sep-2014,2789915-1276090,"4,794.50",T CROSSLING & CO LTD.
Neighbourhood Services,Direct Services,Supplies and Services,304221,Equipment and Materials,08-Sep-2014,2789917-0000071571,"1,744.80",TA PLASTIC SUPPLIES LTD.
Neighbourhood Services,Direct Services,Vehicles Equipment Furniture and Fittings,912541,Purchase-vehicles,08-Sep-2014,2789925-963512686,"32,477.56",TENNANT UK CLEANING SOLUTIONS LTD.
Neighbourhood Services,Direct Services,Transport,210057,Repair and Maintenance of Vehicles,08-Sep-2014,2789926-96300469,704.75,TERBERG MATEC (UK) LTD.
Neighbourhood Services,Culture & Sport,Supplies and Services,336005,Advertising,08-Sep-2014,2789933-1512,"1,905.00",THREE MOTION MEDIA LTD.
Neighbourhood Services,Culture & Sport,Supplies and Services,336005,Advertising,08-Sep-2014,2789934,"1,500.00",TINY COW PR & CREATIVE LTD.
Neighbourhood Services,Direct Services,Supplies and Services,304221,Equipment and Materials,08-Sep-2014,2789935-100189,"1,542.00",TOMMY WARDLE.
Neighbourhood Services,Direct Services,Supplies and Services,304221,Equipment and Materials,08-Sep-2014,2789937-29350,"1,277.00",TOTAL PUMP SOLUTIONS LTD.
Neighbourhood Services,Direct Services,Supplies and Services,304221,Equipment and Materials,08-Sep-2014,2789937-29407,"1,740.00",TOTAL PUMP SOLUTIONS LTD.
Neighbourhood Services,Direct Services,Supplies and Services,304221,Equipment and Materials,08-Sep-2014,2789937-29424,"1,540.00",TOTAL PUMP SOLUTIONS LTD.
Neighbourhood Services,Projects and Business services,Vehicles Equipment Furniture and Fittings,912529,Purchase-equipment,08-Sep-2014,2789941-40917,729.00,TURNKEY INSTRUMENTS LTD.
Neighbourhood Services,Direct Services,Third Party Payments,430100,Rendered by Private Contractors,08-Sep-2014,2789942-93178,"3,757.25",TW STEAM & HEATING SERVICES LTD.
Neighbourhood Services,Technical Services,Supplies and Services,304221,Equipment and Materials,08-Sep-2014,2789944-137163,747.52,TYNEDALE ROADSTONE LTD.
Neighbourhood Services,Technical Services,Supplies and Services,304221,Equipment and Materials,08-Sep-2014,2789944-139046,979.11,TYNEDALE ROADSTONE LTD.
Neighbourhood Services,Technical Services,Supplies and Services,304221,Equipment and Materials,08-Sep-2014,2789944-139130,782.16,TYNEDALE ROADSTONE LTD.
Neighbourhood Services,Technical Services,Supplies and Services,304221,Equipment and Materials,08-Sep-2014,2789944-139199,770.04,TYNEDALE ROADSTONE LTD.
Neighbourhood Services,Technical Services,Supplies and Services,304221,Equipment and Materials,08-Sep-2014,2789944-139200,"1,125.56",TYNEDALE ROADSTONE LTD.
Neighbourhood Services,Technical Services,Supplies and Services,304221,Equipment and Materials,08-Sep-2014,2789944-139384,994.26,TYNEDALE ROADSTONE LTD.
Neighbourhood Services,Technical Services,Supplies and Services,304221,Equipment and Materials,08-Sep-2014,2789944-139385,"1,168.99",TYNEDALE ROADSTONE LTD.
Neighbourhood Services,Technical Services,Supplies and Services,304221,Equipment and Materials,08-Sep-2014,2789944-139386,978.10,TYNEDALE ROADSTONE LTD.
Neighbourhood Services,Technical Services,Supplies and Services,304221,Equipment and Materials,08-Sep-2014,2789944-139387,"1,175.85",TYNEDALE ROADSTONE LTD.
Neighbourhood Services,Technical Services,Supplies and Services,304221,Equipment and Materials,08-Sep-2014,2789944-139709,982.14,TYNEDALE ROADSTONE LTD.
Neighbourhood Services,Technical Services,Supplies and Services,304221,Equipment and Materials,08-Sep-2014,2789944-139795,863.28,TYNEDALE ROADSTONE LTD.
Neighbourhood Services,Technical Services,Supplies and Services,304221,Equipment and Materials,08-Sep-2014,2789944-139796,811.24,TYNEDALE ROADSTONE LTD.
Neighbourhood Services,Technical Services,Supplies and Services,304221,Equipment and Materials,08-Sep-2014,2789944-139797,981.13,TYNEDALE ROADSTONE LTD.
Neighbourhood Services,Technical Services,Supplies and Services,304221,Equipment and Materials,08-Sep-2014,2789944-139846,"1,005.99",TYNEDALE ROADSTONE LTD.
Neighbourhood Services,Technical Services,Supplies and Services,304221,Equipment and Materials,08-Sep-2014,2789944-139946,977.09,TYNEDALE ROADSTONE LTD.
Neighbourhood Services,Technical Services,Supplies and Services,304221,Equipment and Materials,08-Sep-2014,2789944-139948,730.00,TYNEDALE ROADSTONE LTD.
Neighbourhood Services,Technical Services,Supplies and Services,304221,Equipment and Materials,08-Sep-2014,2789944-139961,"1,003.02",TYNEDALE ROADSTONE LTD.
Neighbourhood Services,Technical Services,Supplies and Services,304221,Equipment and Materials,08-Sep-2014,2789944-139962,"1,170.00",TYNEDALE ROADSTONE LTD.
Neighbourhood Services,Technical Services,Supplies and Services,304221,Equipment and Materials,08-Sep-2014,2789944-139963,975.97,TYNEDALE ROADSTONE LTD.
Neighbourhood Services,Technical Services,Supplies and Services,304221,Equipment and Materials,08-Sep-2014,2789944-139964,995.99,TYNEDALE ROADSTONE LTD.
Neighbourhood Services,Technical Services,Supplies and Services,304221,Equipment and Materials,08-Sep-2014,2789944-139965,983.15,TYNEDALE ROADSTONE LTD.
Neighbourhood Services,Technical Services,Supplies and Services,304221,Equipment and Materials,08-Sep-2014,2789944-140132,833.43,TYNEDALE ROADSTONE LTD.
Neighbourhood Services,Technical Services,Supplies and Services,304221,Equipment and Materials,08-Sep-2014,2789944-140134,"1,062.88",TYNEDALE ROADSTONE LTD.
Neighbourhood Services,Technical Services,Supplies and Services,304221,Equipment and Materials,08-Sep-2014,2789944-140135,992.24,TYNEDALE ROADSTONE LTD.
Neighbourhood Services,Culture & Sport,Supplies and Services,384199,Miscellaneous Expenses,08-Sep-2014,2789949-000504,"12,180.00",VELO 29.
Neighbourhood Services,Direct Services,Supplies and Services,304221,Equipment and Materials,08-Sep-2014,2789953-6890171500,"4,452.20",VIESSMANN LTD.
Neighbourhood Services,Technical Services,Premises,150015,Apportioned Exps of Operational Blds,08-Sep-2014,2789959-326283,638.69,WERNICK HIRE LTD.
Children and Adult Services,Childrens Services,Supplies and Services,364999,Grants to Voluntary Organisations,08-Sep-2014,2789961-CAS-08-2014-283,"2,890.00",WEST DURHAM YOUTH & COMMUNITY RESOURCE.
Resources,I.C.T. Services,Supplies and Services,304245,Equipment and Materials,09-Sep-2014,2789973-WJ4060594,888.00,ANTALIS LTD.
Neighbourhood Services,Direct Services,Third Party Payments,430100,Rendered by Private Contractors,09-Sep-2014,2789974-1432,"2,868.00",AWR ROOFING & ALUMIN RAINWATER SYSTEMS LTD.
Neighbourhood Services,Direct Services,Supplies and Services,352001,Conference Expenses,09-Sep-2014,2789977-SINV22498,"1,800.00",BISHOP AUCKLAND COLLEGE.
Regeneration & Economic Development,Economic Development and Housing,Supplies and Services,338029,Services,09-Sep-2014,2789978-44,"9,552.59",BLUE SKY THINK LLP.
Neighbourhood Services,Projects and Business services,Third Party Payments,430103,Rendered by Private Contractors,09-Sep-2014,2789981,696.43,BRITISH HEART FOUNDATION.
Resources,I.C.T. Services,Supplies and Services,342051,Computers and Communications,09-Sep-2014,2789985-389346,"3,714.78",BYTES SOFTWARE SERVICES LTD.
Children and Adult Services,Education,Third Party Payments,440999,Other Third Party Payments,09-Sep-2014,2789988-860/100,"1,989.00",CHILDREN NORTH EAST.
Neighbourhood Services,Technical Services,Third Party Payments,430100,Rendered by Private Contractors,09-Sep-2014,2789994-N004683,820.00,D DRILL (MASTER DRILLERS) LTD.
RED HRA,Housing Revenue Account,Premises,105013,HRA Repair & Maintenance,09-Sep-2014,2789996-203931,"2,645.94",DELTA ELECTRICAL & MECHANICAL SERVICES.
RED HRA,Housing Revenue Account,Premises,105013,HRA Repair & Maintenance,09-Sep-2014,2789996-203952,"1,206.47",DELTA ELECTRICAL & MECHANICAL SERVICES.
Neighbourhood Services,Culture & Sport,Supplies and Services,338099,Services,09-Sep-2014,2790001-1509,"2,404.00",EMERGENCY MEDICAL SERVICES (UK) LTD.
Children and Adult Services,Education,Third Party Payments,440999,Other Third Party Payments,09-Sep-2014,2790002-DCC010/2014,"2,838.00",ENERGIZE TRAINING.
Neighbourhood Services,Culture & Sport,Supplies and Services,384199,Miscellaneous Expenses,09-Sep-2014,2790003-1401,"1,000.00",EVENT INTERNATIONAL CO LTD.
Children and Adult Services,Education,Third Party Payments,440999,Other Third Party Payments,09-Sep-2014,2790004-3493,"11,439.00",FANE LTD.
Children and Adult Services,Education,Third Party Payments,440999,Other Third Party Payments,09-Sep-2014,2790004-3618,627.75,FANE LTD.
Neighbourhood Services,Direct Services,Supplies and Services,304221,Equipment and Materials,09-Sep-2014,2790005-1407-208999,960.80,FLAME HEATING SPARES LTD.
Neighbourhood Services,Culture & Sport,Employees,040001,Recruitment Instruction and Training,09-Sep-2014,2790010-925054,900.00,GUARDIAN NEWS & MEDIA LTD.
Neighbourhood Services,Direct Services,Premises,108135,Service Repairs and Maintenance,09-Sep-2014,2790011-SIN7040427,"1,493.05",HCS DRAIN SERVICES LTD.
Dedicated Schools Grant,Dedicated Schools Grant,Supplies and Services,304999,Equipment and Materials,09-Sep-2014,2790016-00115997,"2,118.90",JENX LTD.
Neighbourhood Services,Technical Services,Stock,926900,Stock in hand-Inventory system,09-Sep-2014,2790020-NI025741,"122,916.00",JOHN MACLEAN & SONS ELECTRICAL (DINGWALL) LTD.
Neighbourhood Services,Direct Services,Supplies and Services,304221,Equipment and Materials,09-Sep-2014,2790021-105484,"2,802.07",JOHNSON WRIGHT FLOORING LTD.
Regeneration & Economic Development,Economic Development and Housing,Supplies and Services,336005,Advertising,09-Sep-2014,2790025-PBPG010,760.00,LEC CONSULTANCY.
Neighbourhood Services,Direct Services,Supplies and Services,304221,Equipment and Materials,09-Sep-2014,2790028-4993920,"2,585.37",LINDAB LTD.
Neighbourhood Services,Direct Services,Supplies and Services,304221,Equipment and Materials,09-Sep-2014,2790029-3361477,"6,626.86",LONDON GENERAL SALES LTD.
Neighbourhood Services,Direct Services,Supplies and Services,304259,Equipment and Materials,09-Sep-2014,2790030-SLS/20016290,557.90,MAHA UK LTD.
Neighbourhood Services,Technical Services,Third Party Payments,430100,Rendered by Private Contractors,09-Sep-2014,2790031-9009050751,"1,765.53",MAMMOET UK LTD.
Children and Adult Services,Childrens Services,Supplies and Services,384199,Miscellaneous Expenses,09-Sep-2014,2790037-48333418,"1,059.10",NHS PROPERTY SERVICES LTD.
Neighbourhood Services,Technical Services,Supplies and Services,304221,Equipment and Materials,09-Sep-2014,2790040-DI20194779,776.59,NORTHERN POWERGRID (NORTHEAST) LTD.
RED HRA,Housing Revenue Account,Supplies and Services,338027,Services,09-Sep-2014,2790043-1547,"3,488.28",OPEN COMMUNITIES LTD.
Neighbourhood Services,Technical Services,Third Party Payments,430100,Rendered by Private Contractors,09-Sep-2014,2790044-SIN3012067,850.00,OWEN PUGH & CO LTD.
Neighbourhood Services,Technical Services,Stock,926900,Stock in hand-Inventory system,09-Sep-2014,2790045-XL123106,"2,099.10",PARK ELECTRICAL DISTRIBUTORS LTD.
Children and Adult Services,Education,Supplies and Services,312009,Newspapers Books and Periodicals,09-Sep-2014,2790046-1518861,"1,790.02",PETERS LTD.
Neighbourhood Services,Direct Services,Supplies and Services,304221,Equipment and Materials,09-Sep-2014,2790047-4120168839,855.04,PLUMBING TRADE SUPPLIES LTD.
Neighbourhood Services,Direct Services,Third Party Payments,430100,Rendered by Private Contractors,09-Sep-2014,2790048-68478,"1,184.22",PROTECTOR SECURITY GROUP LTD.
Regeneration & Economic Development,Spatial Policy Planning Assets & Environment,Supplies and Services,384199,Miscellaneous Expenses,09-Sep-2014,2789989-BURSARY2AUG14,542.90,REDACTED - PAYMENT TO INDIVIDUAL
Neighbourhood Services,Direct Services,Supplies and Services,304221,Equipment and Materials,09-Sep-2014,2790050-0000032247,983.90,RINNAI UK LTD.
Neighbourhood Services,Technical Services,Third Party Payments,430100,Rendered by Private Contractors,09-Sep-2014,2790052-2148,"2,993.60",ROUTE ONE HIGHWAYS LTD.
Children and Adult Services,Commissioning inc Supporting People,Third Party Payments,479111,Purchase of Care,09-Sep-2014,2790057-1738,"4,532.60",SKILLS FOR PEOPLE.
Resources,I.C.T. Services,Construction Work,908105,Construction work,09-Sep-2014,2790059-INV01002768,852.00,SOFTCAT LTD.
Neighbourhood Services,Direct Services,Supplies and Services,304221,Equipment and Materials,09-Sep-2014,2790061-51267,678.00,STAINLESS DESIGN SERVICES LTD.
Children and Adult Services,Commissioning inc Supporting People,Third Party Payments,479111,Purchase of Care,09-Sep-2014,2790062-CRM5122,"12,175.00",STROKE ASSOCIATION.
Children and Adult Services,Education,Third Party Payments,440999,Other Third Party Payments,09-Sep-2014,2790063-389,"10,166.94",SUNDERLAND NORTH FAMILY ZONE.
Neighbourhood Services,Direct Services,Supplies and Services,304221,Equipment and Materials,09-Sep-2014,2790065-1245354,"1,345.00",T CROSSLING & CO LTD.
Neighbourhood Services,Technical Services,Third Party Payments,430100,Rendered by Private Contractors,09-Sep-2014,2790067-6609,"2,313.00",TEAMS ROOFING LTD.
Neighbourhood Services,Projects and Business services,Third Party Payments,430103,Rendered by Private Contractors,09-Sep-2014,2790068,"6,378.96",TEESDALE CONSERVATION VOLUNTEERS.
Neighbourhood Services,Technical Services,Supplies and Services,304221,Equipment and Materials,09-Sep-2014,2790070-INV026287,678.60,URBIS SCHREDER LTD.
Neighbourhood Services,Direct Services,Supplies and Services,304259,Equipment and Materials,09-Sep-2014,2790072-8239,584.07,WESLEY MUSIC.
Resources,Financial Services,Supplies and Services,338066,Services,09-Sep-2014,2790074-38395,873.00,WILKS HEAD & EVE.
Resources,I.C.T. Services,Stock,926900,Stock in hand-Inventory system,09-Sep-2014,2790075-V891285,"1,352.95",XMA LTD.
Resources,Legal & Democratic Services,Supplies and Services,340001,Postages,10-Sep-2014,2790077-IS1240790,"7,149.94",ADARE INSPIRED COMMUNICATIONS.
Neighbourhood Services,Direct Services,Third Party Payments,430100,Rendered by Private Contractors,10-Sep-2014,2790078-51457,"4,574.00",AIRCON REFRIGERATION LTD.
Neighbourhood Services,Projects and Business services,Supplies and Services,338027,Services,10-Sep-2014,2790080-HL165384,"4,075.97",ALCONTROL LABORATORIES.
Neighbourhood Services,Culture & Sport,Supplies and Services,304337,Equipment and Materials,10-Sep-2014,2790081-390,512.80,ALISON BLACK LTD T/A SPORTMAX.
Children and Adult Services,Childrens Services,Supplies and Services,336005,Advertising,10-Sep-2014,2790082-UK14-4034,"4,780.00",ALVERN MEDIA.
Resources,I.C.T. Services,Supplies and Services,344137,Telephones,10-Sep-2014,2790085-620720,"75,942.04",AZZURRI COMMUNICATIONS LTD.
Children and Adult Services,Childrens Services,Supplies and Services,384199,Miscellaneous Expenses,10-Sep-2014,2790092-00176,780.00,CLARE HODGSON T/A DEBUTOTS EARLY YEARS DRAMA.
Children and Adult Services,Head of Adults,Supplies and Services,338370,Services,10-Sep-2014,2790093-3910004797,"54,033.73",CO DURHAM & DARLINGTON NHS FOUNDATION TRUST.
Regeneration & Economic Development,Transport and Contracted Services,Supplies and Services,384899,Miscellaneous Expenses,10-Sep-2014,2790097-2578554,"5,000.00",DARLINGTON BOROUGH COUNCIL.
Resources,I.C.T. Services,Vehicles Equipment Furniture and Fittings,912701,Computer equipment,10-Sep-2014,2790099-7402142440,"20,999.30",DELL COMPUTER CORPORATION LTD.
Resources,I.C.T. Services,Stock,926900,Stock in hand-Inventory system,10-Sep-2014,2790099-7402143230,"6,032.25",DELL COMPUTER CORPORATION LTD.
Resources,I.C.T. Services,Vehicles Equipment Furniture and Fittings,912529,Purchase-equipment,10-Sep-2014,2790100-7402141513,"21,054.00",DELL COMPUTER CORPORATION LTD.
Neighbourhood Services,Culture & Sport,Supplies and Services,384199,Miscellaneous Expenses,10-Sep-2014,2790101-C1914,843.75,DURHAM CATHEDRAL LTD.
RED HRA,HRA Capital,Fees,901001,Internal fees,10-Sep-2014,2790102-SINV/00003444,"112,500.00",EAST DURHAM HOMES.
RED HRA,Housing Revenue Account,Third Party Payments,430100,Rendered by Private Contractors,10-Sep-2014,2790102-SINV/00003443,"940,417.00",EAST DURHAM HOMES.
Regeneration & Economic Development,Economic Development and Housing,Supplies and Services,304259,Equipment and Materials,10-Sep-2014,2790104-SI12865,856.75,ELECTROMASTER TELECOMMUNICATIONS LTD.
Neighbourhood Services,Culture & Sport,Supplies and Services,384540,Miscellaneous Expenses,10-Sep-2014,2790107-SINV00013436,"2,820.00",EXTERION MEDIA.
Neighbourhood Services,Projects and Business services,Third Party Payments,430120,Rendered by Private Contractors,10-Sep-2014,2790109-SINV8586159,"1,224.29",FINNING (UK) LTD.
Neighbourhood Services,Projects and Business services,Third Party Payments,430120,Rendered by Private Contractors,10-Sep-2014,2790109-SINV8592368,"2,547.55",FINNING (UK) LTD.
Neighbourhood Services,Direct Services,Premises,108135,Service Repairs and Maintenance,10-Sep-2014,2790116-SIN7040939,649.17,HCS DRAIN SERVICES LTD.
Resources,I.C.T. Services,Supplies and Services,332029,Printing Stationery and Gen Off Exps,10-Sep-2014,2790118-71057,"1,350.00",HILLPRINT MEDIA LTD.
Neighbourhood Services,Culture & Sport,Premises,106080,Centrally Controlled Rep and Maint,10-Sep-2014,2790119-7080426161,"2,703.49",HONEYWELL NOVAR SYSTEMS LTD.
Neighbourhood Services,Projects and Business services,Third Party Payments,430113,Rendered by Private Contractors,10-Sep-2014,2790122-W150041,"261,373.65",HW MARTIN WASTE LTD.
Children and Adult Services,Education,Construction Work,908105,Construction work,10-Sep-2014,2790126-DURH/0534,"15,900.00",INSPIREDSPACES DURHAM LTD.
Neighbourhood Services,Technical Services,Supplies and Services,304221,Equipment and Materials,10-Sep-2014,2790128-08/80948,"1,673.76",JOHN DAVIDSON (PIPES) LTD.
Neighbourhood Services,Technical Services,Supplies and Services,304221,Equipment and Materials,10-Sep-2014,2790128-08/81010,"1,543.68",JOHN DAVIDSON (PIPES) LTD.
Neighbourhood Services,Technical Services,Supplies and Services,304221,Equipment and Materials,10-Sep-2014,2790128-08/81076,815.67,JOHN DAVIDSON (PIPES) LTD.
Neighbourhood Services,Technical Services,Supplies and Services,304221,Equipment and Materials,10-Sep-2014,2790128-08/81117,570.90,JOHN DAVIDSON (PIPES) LTD.
Neighbourhood Services,Technical Services,Supplies and Services,304221,Equipment and Materials,10-Sep-2014,2790128-08/81118,636.48,JOHN DAVIDSON (PIPES) LTD.
Neighbourhood Services,Technical Services,Supplies and Services,304221,Equipment and Materials,10-Sep-2014,2790131-CNI20330/D,"2,390.00",JT DOVE LTD.
Neighbourhood Services,Technical Services,Supplies and Services,304221,Equipment and Materials,10-Sep-2014,2790131-CNI20331/D,"2,210.00",JT DOVE LTD.
Neighbourhood Services,Direct Services,Supplies and Services,304221,Equipment and Materials,10-Sep-2014,2790131-NB1123277,819.00,JT DOVE LTD.
Regeneration & Economic Development,Economic Development and Housing,Supplies and Services,384199,Miscellaneous Expenses,10-Sep-2014,2790140-NM29952,800.00,NEW MIND INTERNET CONSULTANCY LTD.
Regeneration & Economic Development,Transport and Contracted Services,Third Party Payments,430100,Rendered by Private Contractors,10-Sep-2014,2790144-026770,"20,585.78",NSL LTD.
Regeneration & Economic Development,Transport and Contracted Services,Third Party Payments,430100,Rendered by Private Contractors,10-Sep-2014,2790144-026771,"59,403.67",NSL LTD.
Regeneration & Economic Development,Transport and Contracted Services,Third Party Payments,430100,Rendered by Private Contractors,10-Sep-2014,2790144-026772,"8,190.63",NSL LTD.
Regeneration & Economic Development,Transport and Contracted Services,Third Party Payments,430100,Rendered by Private Contractors,10-Sep-2014,2790144-026777,"3,713.00",NSL LTD.
Regeneration & Economic Development,Transport and Contracted Services,Third Party Payments,430100,Rendered by Private Contractors,10-Sep-2014,2790144-026778,"14,546.81",NSL LTD.
Regeneration & Economic Development,Transport and Contracted Services,Third Party Payments,430100,Rendered by Private Contractors,10-Sep-2014,2790144-026779,"10,973.87",NSL LTD.
Regeneration & Economic Development,Transport and Contracted Services,Third Party Payments,430100,Rendered by Private Contractors,10-Sep-2014,2790144-026845,790.00,NSL LTD.
Neighbourhood Services,Technical Services,Stock,926900,Stock in hand-Inventory system,10-Sep-2014,2790146-XL121697,"5,000.00",PARK ELECTRICAL DISTRIBUTORS LTD.
Neighbourhood Services,Technical Services,Stock,926900,Stock in hand-Inventory system,10-Sep-2014,2790146-XL121859,"5,580.87",PARK ELECTRICAL DISTRIBUTORS LTD.
Neighbourhood Services,Technical Services,Stock,926900,Stock in hand-Inventory system,10-Sep-2014,2790146-XL121903,784.00,PARK ELECTRICAL DISTRIBUTORS LTD.
Neighbourhood Services,Technical Services,Stock,926900,Stock in hand-Inventory system,10-Sep-2014,2790146-XL122622,"6,635.62",PARK ELECTRICAL DISTRIBUTORS LTD.
Neighbourhood Services,Direct Services,Supplies and Services,304221,Equipment and Materials,10-Sep-2014,2790146-XL122643,519.75,PARK ELECTRICAL DISTRIBUTORS LTD.
Neighbourhood Services,Technical Services,Stock,926900,Stock in hand-Inventory system,10-Sep-2014,2790146-XL122673,877.80,PARK ELECTRICAL DISTRIBUTORS LTD.
Neighbourhood Services,Technical Services,Stock,926900,Stock in hand-Inventory system,10-Sep-2014,2790146-XL122967,949.20,PARK ELECTRICAL DISTRIBUTORS LTD.
Neighbourhood Services,Technical Services,Stock,926900,Stock in hand-Inventory system,10-Sep-2014,2790146-XL122978,"5,966.60",PARK ELECTRICAL DISTRIBUTORS LTD.
Neighbourhood Services,Technical Services,Stock,926900,Stock in hand-Inventory system,10-Sep-2014,2790146-XL123010,700.00,PARK ELECTRICAL DISTRIBUTORS LTD.
Neighbourhood Services,Technical Services,Stock,926900,Stock in hand-Inventory system,10-Sep-2014,2790146-XL123188,980.00,PARK ELECTRICAL DISTRIBUTORS LTD.
Children and Adult Services,Education,Supplies and Services,312009,Newspapers Books and Periodicals,10-Sep-2014,2790147-1519544,"1,152.79",PETERS LTD.
Regeneration & Economic Development,Transport and Contracted Services,Supplies and Services,384540,Miscellaneous Expenses,10-Sep-2014,2790149-90450,"1,562.70",PINDAR TRAVEL INFORMATION SYSTEMS LTD T/A PINDAR CREATIVE.
Neighbourhood Services,Direct Services,Supplies and Services,338066,Services,10-Sep-2014,2790151-1354229656,"7,578.00",PRICEWATERHOUSECOOPERS.
Neighbourhood Services,Technical Services,Third Party Payments,430100,Rendered by Private Contractors,10-Sep-2014,2790153-69141,550.00,PROTECTOR SECURITY GROUP LTD.
Children and Adult Services,Childrens Services,Supplies and Services,304259,Equipment and Materials,10-Sep-2014,2790154-BB821524,859.31,PURCHASE POWER.
Neighbourhood Services,Technical Services,Supplies and Services,304221,Equipment and Materials,10-Sep-2014,2790161-274946/120259,596.40,SIGNATURE LTD T/A POST & COLUMN CO LTD.
Neighbourhood Services,Technical Services,Supplies and Services,304221,Equipment and Materials,10-Sep-2014,2790162-65551,"3,724.02",SIMMONSIGNS LTD.
Neighbourhood Services,Technical Services,Supplies and Services,304221,Equipment and Materials,10-Sep-2014,2790162-65552,"1,992.76",SIMMONSIGNS LTD.
Neighbourhood Services,Technical Services,Stock,926900,Stock in hand-Inventory system,10-Sep-2014,2790164-326411,"82,246.00",SMITH BROS (CAER CONAN) WHOLESALE LTD.
Neighbourhood Services,Technical Services,Stock,926900,Stock in hand-Inventory system,10-Sep-2014,2790166-184831,"3,787.20",SNAPFAST.
Neighbourhood Services,Technical Services,Stock,926900,Stock in hand-Inventory system,10-Sep-2014,2790166-184848,631.20,SNAPFAST.
Resources,I.C.T. Services,Construction Work,908105,Construction work,10-Sep-2014,2790167-INV01002146,"18,181.00",SOFTCAT LTD.
Resources,I.C.T. Services,Supplies and Services,342033,Computers and Communications,10-Sep-2014,2790167-INV01006694,"1,616.12",SOFTCAT LTD.
Resources,I.C.T. Services,Supplies and Services,332029,Printing Stationery and Gen Off Exps,10-Sep-2014,2790168-7669,620.00,SPOT ON DISPLAYS LTD.
Children and Adult Services,Education,Third Party Payments,440999,Other Third Party Payments,10-Sep-2014,2790171-0000004399,"55,010.34",SUNDERLAND AFC FOUNDATION.
Children and Adult Services,Education,Third Party Payments,440999,Other Third Party Payments,10-Sep-2014,2790171-0000004419,"24,089.34",SUNDERLAND AFC FOUNDATION.
Children and Adult Services,Education,Third Party Payments,440999,Other Third Party Payments,10-Sep-2014,2790171-0000004447,"25,000.00",SUNDERLAND AFC FOUNDATION.
Resources,I.C.T. Services,Supplies and Services,332029,Printing Stationery and Gen Off Exps,10-Sep-2014,2790186-1603278464,"3,947.82",XEROX (UK) LTD.
Resources,I.C.T. Services,Stock,926900,Stock in hand-Inventory system,10-Sep-2014,2790187-V917972,"5,056.74",XMA LTD.
Resources,I.C.T. Services,Stock,926900,Stock in hand-Inventory system,10-Sep-2014,2790187-V992913,"1,116.00",XMA LTD.
RED HRA,HRA Capital,Construction Work,908105,Construction work,10-Sep-2014,2790189-31921,"8,995.89",YWC GROUP LTD.
Children and Adult Services,Head of Adults,Third Party Payments,470101,Purchase of Care,12-Sep-2014,2790804-2186496,"6,031.16",3 RED ADMIRAL COURT.
Children and Adult Services,Head of Adults,Third Party Payments,470101,Purchase of Care,12-Sep-2014,2790805-2186929,"6,397.60",368 THE RIDGE.
Children and Adult Services,Head of Adults,Third Party Payments,474101,Purchase of Care,12-Sep-2014,2790806-2184212,"1,920.08",A CHARLES THOMAS (CARE) LTD.
Children and Adult Services,Head of Adults,Third Party Payments,474101,Purchase of Care,12-Sep-2014,2790806-2184214,"1,920.08",A CHARLES THOMAS (CARE) LTD.
Children and Adult Services,Head of Adults,Third Party Payments,470101,Purchase of Care,12-Sep-2014,2790806-2184216,"1,828.76",A CHARLES THOMAS (CARE) LTD.
Children and Adult Services,Head of Adults,Third Party Payments,474101,Purchase of Care,12-Sep-2014,2790806-2184217,"1,920.08",A CHARLES THOMAS (CARE) LTD.
Children and Adult Services,Head of Adults,Third Party Payments,474101,Purchase of Care,12-Sep-2014,2790806-2184219,"1,920.08",A CHARLES THOMAS (CARE) LTD.
Children and Adult Services,Head of Adults,Third Party Payments,470101,Purchase of Care,12-Sep-2014,2790806-2184222,"1,828.76",A CHARLES THOMAS (CARE) LTD.
Children and Adult Services,Head of Adults,Third Party Payments,474101,Purchase of Care,12-Sep-2014,2790806-2184223,"1,920.08",A CHARLES THOMAS (CARE) LTD.
Children and Adult Services,Head of Adults,Third Party Payments,470101,Purchase of Care,12-Sep-2014,2790806-2184225,"1,828.76",A CHARLES THOMAS (CARE) LTD.
Children and Adult Services,Head of Adults,Third Party Payments,470101,Purchase of Care,12-Sep-2014,2790806-2184226,"1,828.76",A CHARLES THOMAS (CARE) LTD.
Children and Adult Services,Head of Adults,Third Party Payments,474101,Purchase of Care,12-Sep-2014,2790806-2184227,"1,920.08",A CHARLES THOMAS (CARE) LTD.
Children and Adult Services,Head of Adults,Third Party Payments,474101,Purchase of Care,12-Sep-2014,2790806-2184229,822.89,A CHARLES THOMAS (CARE) LTD.
Children and Adult Services,Head of Adults,Third Party Payments,470101,Purchase of Care,12-Sep-2014,2790806-2184231,"1,828.76",A CHARLES THOMAS (CARE) LTD.
Children and Adult Services,Head of Adults,Third Party Payments,470101,Purchase of Care,12-Sep-2014,2790806-2184232,"1,828.76",A CHARLES THOMAS (CARE) LTD.
Children and Adult Services,Head of Adults,Third Party Payments,470101,Purchase of Care,12-Sep-2014,2790806-2184233,"1,828.76",A CHARLES THOMAS (CARE) LTD.
Children and Adult Services,Head of Adults,Third Party Payments,470101,Purchase of Care,12-Sep-2014,2790806-2184234,"1,828.76",A CHARLES THOMAS (CARE) LTD.
Children and Adult Services,Head of Adults,Third Party Payments,474101,Purchase of Care,12-Sep-2014,2790806-2184235,"1,920.08",A CHARLES THOMAS (CARE) LTD.
Children and Adult Services,Head of Adults,Third Party Payments,474101,Purchase of Care,12-Sep-2014,2790806-2184237,"1,920.08",A CHARLES THOMAS (CARE) LTD.
Children and Adult Services,Head of Adults,Third Party Payments,474101,Purchase of Care,12-Sep-2014,2790806-2184239,"1,165.76",A CHARLES THOMAS (CARE) LTD.
Children and Adult Services,Head of Adults,Third Party Payments,474101,Purchase of Care,12-Sep-2014,2790806-2184241,"1,920.08",A CHARLES THOMAS (CARE) LTD.
Children and Adult Services,Head of Adults,Third Party Payments,470101,Purchase of Care,12-Sep-2014,2790806-2184243,"1,828.76",A CHARLES THOMAS (CARE) LTD.
Children and Adult Services,Head of Adults,Third Party Payments,470101,Purchase of Care,12-Sep-2014,2790806-2184244,"1,828.76",A CHARLES THOMAS (CARE) LTD.
Children and Adult Services,Head of Adults,Third Party Payments,470101,Purchase of Care,12-Sep-2014,2790806-2184245,"1,828.76",A CHARLES THOMAS (CARE) LTD.
Children and Adult Services,Head of Adults,Third Party Payments,470101,Purchase of Care,12-Sep-2014,2790806-2184246,"1,828.76",A CHARLES THOMAS (CARE) LTD.
Children and Adult Services,Head of Adults,Third Party Payments,470101,Purchase of Care,12-Sep-2014,2790806-2184249,"1,828.76",A CHARLES THOMAS (CARE) LTD.
Children and Adult Services,Head of Adults,Third Party Payments,470101,Purchase of Care,12-Sep-2014,2790806-2184250,"1,828.76",A CHARLES THOMAS (CARE) LTD.
Children and Adult Services,Head of Adults,Third Party Payments,474101,Purchase of Care,12-Sep-2014,2790806-2184251,"1,920.08",A CHARLES THOMAS (CARE) LTD.
Children and Adult Services,Head of Adults,Third Party Payments,470101,Purchase of Care,12-Sep-2014,2790806-2184254,"1,828.76",A CHARLES THOMAS (CARE) LTD.
Children and Adult Services,Head of Adults,Third Party Payments,474101,Purchase of Care,12-Sep-2014,2790806-2184257,"1,920.08",A CHARLES THOMAS (CARE) LTD.
Children and Adult Services,Head of Adults,Third Party Payments,474101,Purchase of Care,12-Sep-2014,2790806-2184259,"1,920.08",A CHARLES THOMAS (CARE) LTD.
Children and Adult Services,Head of Adults,Third Party Payments,470101,Purchase of Care,12-Sep-2014,2790806-2184262,"1,828.76",A CHARLES THOMAS (CARE) LTD.
Children and Adult Services,Head of Adults,Third Party Payments,474101,Purchase of Care,12-Sep-2014,2790807-2185840,"3,010.00",ABBEYMOOR CLINIC.
Children and Adult Services,Head of Adults,Third Party Payments,474101,Purchase of Care,12-Sep-2014,2790807-2185842,"2,303.28",ABBEYMOOR CLINIC.
Children and Adult Services,Head of Adults,Third Party Payments,474101,Purchase of Care,12-Sep-2014,2790807-2187994,"1,016.88",ABBEYMOOR CLINIC.
Children and Adult Services,Head of Adults,Third Party Payments,471101,Purchase of Care,12-Sep-2014,2790808-2187000,"2,003.56",ABBEYVALE.
Children and Adult Services,Head of Adults,Third Party Payments,471101,Purchase of Care,12-Sep-2014,2790808-2187001,"1,860.44",ABBEYVALE.
Children and Adult Services,Head of Adults,Third Party Payments,470101,Purchase of Care,12-Sep-2014,2790808-2187003,"3,312.48",ABBEYVALE.
Children and Adult Services,Head of Adults,Third Party Payments,470101,Purchase of Care,12-Sep-2014,2790808-2187004,"1,932.28",ABBEYVALE.
Children and Adult Services,Head of Adults,Third Party Payments,471101,Purchase of Care,12-Sep-2014,2790808-2187005,"2,003.56",ABBEYVALE.
Children and Adult Services,Head of Adults,Third Party Payments,470101,Purchase of Care,12-Sep-2014,2790808-2187012,"1,932.28",ABBEYVALE.
Children and Adult Services,Head of Adults,Third Party Payments,470101,Purchase of Care,12-Sep-2014,2790808-2187013,"1,932.28",ABBEYVALE.
Children and Adult Services,Head of Adults,Third Party Payments,471101,Purchase of Care,12-Sep-2014,2790808-2187014,"2,003.56",ABBEYVALE.
Children and Adult Services,Head of Adults,Third Party Payments,470101,Purchase of Care,12-Sep-2014,2790808-2187015,"1,932.28",ABBEYVALE.
Children and Adult Services,Head of Adults,Third Party Payments,471101,Purchase of Care,12-Sep-2014,2790808-2187016,"2,003.56",ABBEYVALE.
Children and Adult Services,Head of Adults,Third Party Payments,470101,Purchase of Care,12-Sep-2014,2790808-2187018,"1,932.28",ABBEYVALE.
Children and Adult Services,Head of Adults,Third Party Payments,470101,Purchase of Care,12-Sep-2014,2790808-2187019,"1,390.00",ABBEYVALE.
Children and Adult Services,Head of Adults,Third Party Payments,470101,Purchase of Care,12-Sep-2014,2790808-2187020,"1,932.28",ABBEYVALE.
Children and Adult Services,Head of Adults,Third Party Payments,470101,Purchase of Care,12-Sep-2014,2790808-2187021,"2,500.00",ABBEYVALE.
Children and Adult Services,Head of Adults,Third Party Payments,470101,Purchase of Care,12-Sep-2014,2790808-2187022,"1,932.28",ABBEYVALE.
Children and Adult Services,Head of Adults,Third Party Payments,470101,Purchase of Care,12-Sep-2014,2790808-2187023,"1,932.28",ABBEYVALE.
Children and Adult Services,Head of Adults,Third Party Payments,471101,Purchase of Care,12-Sep-2014,2790808-2187024,"2,003.56",ABBEYVALE.
Children and Adult Services,Head of Adults,Third Party Payments,470101,Purchase of Care,12-Sep-2014,2790808-2187025,"2,500.00",ABBEYVALE.
Children and Adult Services,Head of Adults,Third Party Payments,471101,Purchase of Care,12-Sep-2014,2790808-2187026,"2,003.56",ABBEYVALE.
Children and Adult Services,Head of Adults,Third Party Payments,470101,Purchase of Care,12-Sep-2014,2790808-2187027,"1,932.28",ABBEYVALE.
Children and Adult Services,Head of Adults,Third Party Payments,470101,Purchase of Care,12-Sep-2014,2790808-2187028,"2,500.00",ABBEYVALE.
Children and Adult Services,Head of Adults,Third Party Payments,470101,Purchase of Care,12-Sep-2014,2790808-2187029,"1,932.28",ABBEYVALE.
Children and Adult Services,Head of Adults,Third Party Payments,470101,Purchase of Care,12-Sep-2014,2790808-2187030,"1,932.28",ABBEYVALE.
Children and Adult Services,Head of Adults,Third Party Payments,471101,Purchase of Care,12-Sep-2014,2790808-2187031,"2,003.56",ABBEYVALE.
Children and Adult Services,Head of Adults,Third Party Payments,470101,Purchase of Care,12-Sep-2014,2790808-2187032,"2,500.00",ABBEYVALE.
Children and Adult Services,Head of Adults,Third Party Payments,470101,Purchase of Care,12-Sep-2014,2790808-2187033,"1,992.28",ABBEYVALE.
Children and Adult Services,Head of Adults,Third Party Payments,471101,Purchase of Care,12-Sep-2014,2790808-2187034,"2,003.56",ABBEYVALE.
Children and Adult Services,Head of Adults,Third Party Payments,471101,Purchase of Care,12-Sep-2014,2790808-2187035,"2,539.28",ABBEYVALE.
Children and Adult Services,Head of Adults,Third Party Payments,471101,Purchase of Care,12-Sep-2014,2790808-2187036,"2,003.56",ABBEYVALE.
Children and Adult Services,Head of Adults,Third Party Payments,470101,Purchase of Care,12-Sep-2014,2790808-2187037,"1,932.28",ABBEYVALE.
Children and Adult Services,Head of Adults,Third Party Payments,471101,Purchase of Care,12-Sep-2014,2790808-2187038,"2,003.56",ABBEYVALE.
Children and Adult Services,Head of Adults,Third Party Payments,470101,Purchase of Care,12-Sep-2014,2790808-2187039,"1,932.28",ABBEYVALE.
Children and Adult Services,Head of Adults,Third Party Payments,471101,Purchase of Care,12-Sep-2014,2790808-2187040,"2,003.56",ABBEYVALE.
Children and Adult Services,Head of Adults,Third Party Payments,470101,Purchase of Care,12-Sep-2014,2790808-2187041,"1,932.28",ABBEYVALE.
Children and Adult Services,Head of Adults,Third Party Payments,470101,Purchase of Care,12-Sep-2014,2790808-2187042,"2,500.00",ABBEYVALE.
Children and Adult Services,Head of Adults,Third Party Payments,470101,Purchase of Care,12-Sep-2014,2790808-2187043,"1,932.28",ABBEYVALE.
Children and Adult Services,Head of Adults,Third Party Payments,470101,Purchase of Care,12-Sep-2014,2790808-2188049,897.13,ABBEYVALE.
Children and Adult Services,Head of Adults,Third Party Payments,471101,Purchase of Care,12-Sep-2014,2790808-2188051,500.89,ABBEYVALE.
Children and Adult Services,Head of Adults,Third Party Payments,470101,Purchase of Care,12-Sep-2014,2790809-2184551,"1,794.26",ABBOTTS COURT CARE HOME.
Children and Adult Services,Head of Adults,Third Party Payments,470101,Purchase of Care,12-Sep-2014,2790809-2184552,"1,932.28",ABBOTTS COURT CARE HOME.
Children and Adult Services,Head of Adults,Third Party Payments,470101,Purchase of Care,12-Sep-2014,2790809-2184554,"1,932.28",ABBOTTS COURT CARE HOME.
Children and Adult Services,Head of Adults,Third Party Payments,470101,Purchase of Care,12-Sep-2014,2790809-2184555,"1,932.28",ABBOTTS COURT CARE HOME.
Children and Adult Services,Head of Adults,Third Party Payments,470101,Purchase of Care,12-Sep-2014,2790809-2184556,"1,932.28",ABBOTTS COURT CARE HOME.
Children and Adult Services,Head of Adults,Third Party Payments,470101,Purchase of Care,12-Sep-2014,2790809-2184557,"1,932.28",ABBOTTS COURT CARE HOME.
Children and Adult Services,Head of Adults,Third Party Payments,470101,Purchase of Care,12-Sep-2014,2790809-2184558,"1,932.28",ABBOTTS COURT CARE HOME.
Children and Adult Services,Head of Adults,Third Party Payments,471101,Purchase of Care,12-Sep-2014,2790809-2184559,"2,003.56",ABBOTTS COURT CARE HOME.
Children and Adult Services,Head of Adults,Third Party Payments,470101,Purchase of Care,12-Sep-2014,2790809-2184560,"1,932.28",ABBOTTS COURT CARE HOME.
Children and Adult Services,Head of Adults,Third Party Payments,471101,Purchase of Care,12-Sep-2014,2790809-2184561,"2,003.56",ABBOTTS COURT CARE HOME.
Children and Adult Services,Head of Adults,Third Party Payments,471101,Purchase of Care,12-Sep-2014,2790809-2184562,"2,003.56",ABBOTTS COURT CARE HOME.
Children and Adult Services,Head of Adults,Third Party Payments,470101,Purchase of Care,12-Sep-2014,2790809-2184563,"1,932.28",ABBOTTS COURT CARE HOME.
Children and Adult Services,Head of Adults,Third Party Payments,471101,Purchase of Care,12-Sep-2014,2790809-2184564,"2,003.56",ABBOTTS COURT CARE HOME.
Children and Adult Services,Head of Adults,Third Party Payments,470101,Purchase of Care,12-Sep-2014,2790809-2184565,"1,932.28",ABBOTTS COURT CARE HOME.
Children and Adult Services,Head of Adults,Third Party Payments,470101,Purchase of Care,12-Sep-2014,2790809-2184566,"1,932.28",ABBOTTS COURT CARE HOME.
Children and Adult Services,Head of Adults,Third Party Payments,471101,Purchase of Care,12-Sep-2014,2790809-2184567,"2,003.56",ABBOTTS COURT CARE HOME.
Children and Adult Services,Head of Adults,Third Party Payments,471101,Purchase of Care,12-Sep-2014,2790809-2184568,"2,003.56",ABBOTTS COURT CARE HOME.
Children and Adult Services,Head of Adults,Third Party Payments,470101,Purchase of Care,12-Sep-2014,2790809-2184569,"1,932.28",ABBOTTS COURT CARE HOME.
Children and Adult Services,Head of Adults,Third Party Payments,471101,Purchase of Care,12-Sep-2014,2790809-2184570,"2,003.56",ABBOTTS COURT CARE HOME.
Children and Adult Services,Head of Adults,Third Party Payments,471101,Purchase of Care,12-Sep-2014,2790809-2184571,"2,003.56",ABBOTTS COURT CARE HOME.
Children and Adult Services,Head of Adults,Third Party Payments,471101,Purchase of Care,12-Sep-2014,2790809-2184572,"2,003.56",ABBOTTS COURT CARE HOME.
Children and Adult Services,Head of Adults,Third Party Payments,471101,Purchase of Care,12-Sep-2014,2790809-2184573,"2,003.56",ABBOTTS COURT CARE HOME.
Children and Adult Services,Head of Adults,Third Party Payments,470101,Purchase of Care,12-Sep-2014,2790809-2184574,"1,932.28",ABBOTTS COURT CARE HOME.
Children and Adult Services,Head of Adults,Third Party Payments,471101,Purchase of Care,12-Sep-2014,2790809-2184575,"2,003.56",ABBOTTS COURT CARE HOME.
Children and Adult Services,Head of Adults,Third Party Payments,470101,Purchase of Care,12-Sep-2014,2790809-2184576,"1,932.28",ABBOTTS COURT CARE HOME.
Children and Adult Services,Head of Adults,Third Party Payments,471101,Purchase of Care,12-Sep-2014,2790809-2187931,"1,216.44",ABBOTTS COURT CARE HOME.
Children and Adult Services,Head of Adults,Third Party Payments,471101,Purchase of Care,12-Sep-2014,2790809-2187932,787.11,ABBOTTS COURT CARE HOME.
Children and Adult Services,Head of Adults,Third Party Payments,470101,Purchase of Care,12-Sep-2014,2790809-2188034,690.10,ABBOTTS COURT CARE HOME.
Children and Adult Services,Head of Adults,Third Party Payments,470101,Purchase of Care,12-Sep-2014,2790810-2187657,"1,864.56",ACOMB COURT.
Children and Adult Services,Head of Adults,Third Party Payments,470101,Purchase of Care,12-Sep-2014,2790811-2184862,"1,828.76",ACORN GRANGE NURSING HOME.
Children and Adult Services,Head of Adults,Third Party Payments,471101,Purchase of Care,12-Sep-2014,2790811-2184864,"1,901.08",ACORN GRANGE NURSING HOME.
Children and Adult Services,Head of Adults,Third Party Payments,470101,Purchase of Care,12-Sep-2014,2790811-2184865,"1,828.76",ACORN GRANGE NURSING HOME.
Children and Adult Services,Head of Adults,Third Party Payments,471101,Purchase of Care,12-Sep-2014,2790811-2184869,"1,901.08",ACORN GRANGE NURSING HOME.
Children and Adult Services,Head of Adults,Third Party Payments,470101,Purchase of Care,12-Sep-2014,2790811-2184870,"1,828.76",ACORN GRANGE NURSING HOME.
Children and Adult Services,Head of Adults,Third Party Payments,471101,Purchase of Care,12-Sep-2014,2790811-2184871,"1,901.08",ACORN GRANGE NURSING HOME.
Children and Adult Services,Head of Adults,Third Party Payments,471101,Purchase of Care,12-Sep-2014,2790811-2184872,"1,901.08",ACORN GRANGE NURSING HOME.
Children and Adult Services,Head of Adults,Third Party Payments,470101,Purchase of Care,12-Sep-2014,2790811-2184873,"1,828.76",ACORN GRANGE NURSING HOME.
Children and Adult Services,Head of Adults,Third Party Payments,470101,Purchase of Care,12-Sep-2014,2790811-2184875,"1,828.76",ACORN GRANGE NURSING HOME.
Children and Adult Services,Head of Adults,Third Party Payments,471101,Purchase of Care,12-Sep-2014,2790811-2184876,"1,901.08",ACORN GRANGE NURSING HOME.
Children and Adult Services,Head of Adults,Third Party Payments,471101,Purchase of Care,12-Sep-2014,2790811-2184877,"1,901.08",ACORN GRANGE NURSING HOME.
Children and Adult Services,Head of Adults,Third Party Payments,471101,Purchase of Care,12-Sep-2014,2790811-2184878,"1,901.08",ACORN GRANGE NURSING HOME.
Children and Adult Services,Head of Adults,Third Party Payments,471101,Purchase of Care,12-Sep-2014,2790811-2184879,"1,901.08",ACORN GRANGE NURSING HOME.
Children and Adult Services,Head of Adults,Third Party Payments,471101,Purchase of Care,12-Sep-2014,2790811-2184880,"1,901.08",ACORN GRANGE NURSING HOME.
Children and Adult Services,Head of Adults,Third Party Payments,470101,Purchase of Care,12-Sep-2014,2790811-2184881,"1,828.76",ACORN GRANGE NURSING HOME.
Children and Adult Services,Head of Adults,Third Party Payments,470101,Purchase of Care,12-Sep-2014,2790811-2184882,"1,828.76",ACORN GRANGE NURSING HOME.
Children and Adult Services,Head of Adults,Third Party Payments,470101,Purchase of Care,12-Sep-2014,2790811-2184883,"1,828.76",ACORN GRANGE NURSING HOME.
Children and Adult Services,Head of Adults,Third Party Payments,470101,Purchase of Care,12-Sep-2014,2790811-2184884,"1,828.76",ACORN GRANGE NURSING HOME.
Children and Adult Services,Head of Adults,Third Party Payments,470101,Purchase of Care,12-Sep-2014,2790811-2184885,"1,828.76",ACORN GRANGE NURSING HOME.
Children and Adult Services,Head of Adults,Third Party Payments,470101,Purchase of Care,12-Sep-2014,2790811-2184886,"1,828.76",ACORN GRANGE NURSING HOME.
Children and Adult Services,Head of Adults,Third Party Payments,470101,Purchase of Care,12-Sep-2014,2790811-2184887,"1,828.76",ACORN GRANGE NURSING HOME.
